Workbook

Sheet Trial (hidden)
A1: Opening date | B1: 2012-06-23
A2: Expire date | B2: 2013-06-23
A3: Have opened | B3: Yes

Sheet Introduction
A2: © S. Christian Albright, 2011, All Rights Reserved

Sheet List of Topics (hidden)
C2: + | D2: Introduction | G2: Search (Ctrl-Shift-Q) for:
D3: + | E3: Changes in Excel 2007
F4: Tabs and Ribbons
F5: Office Button
F6: Quick Access Toolbar (QAT)
F7: Excel Options
F8: File Extensions
F9: Right-clicking
D10: + | E10: Changes in Excel 2010
F11: File Tab
F12: Modifying Ribbons
F13: Selected Range Coloring
F14: New and Renamed Functions
F15: Add-Ins Buttons
F16: Slicers
F17: Sparklines
F18: New Solver
C19: - | D19: Excel Basics
D20: + | E20: Moving and Selecting
F21: Going Home to Cell A1
F22: Using End-Arrow Combinations
F23: Splitting the Screen
F24: Selecting a Range
F25: Selecting Multiple Ranges
F26: Go To Options
D27: + | E27: Copying, Cutting, Pasting
F28: Copying and pasting
F29: Copying and Pasting Special
F30: Transposing a Range
F31: Cutting and Pasting
D32: - | E32: Other Basic Tools
F33: Undoing Actions
F34: Manipulating Rows and Columns
F35: Manipulating Worksheets
F36: Filling a Series
F37: Sorting
F38: Using Hyperlinks
F39: Documenting Your Work
F40: Printing
C41: + | D41: Working with Formulas
E42: Using Absolute, Relative Addresses
E43: Showing Formulas in R1C1 Notation
E44: Using Range Names
E45: Auditing Formulas
E46: Calculation Options
E47: AutoSum button
E48: Evaluating a Formula
E49: Using External Formula References
C50: + | D50: Working with Charts
E51: Creating a Chart
E52: Locating a Chart
E53: Modifying a Chart
C54: + | D54: Working with Functions
E55: Function Help
D56: + | E56: Two Essential Excel Functions
F57: IF Function
F58: VLOOKUP Function
D59: + | E59: Counting, Summing, Averaging Functions
F60: SUM, AVERAGE Functions
F61: COUNT, COUNTA, COUNTBLANK Functions
F62: COUNTIF, SUMIF, AVERAGEIF Functions
F63: COUNTIFS, SUMIFS, AVERAGEIFS Functions
F64: SUMPRODUCT Function
D65: + | E65: Math Functions
F66: INT, ROUND Functions
F67: ABS, SQRT, SUMSQ Functions
F68: LN, EXP Functions
F69: RAND, RANDBETWEEN Functions
D70: + | E70: Text Functions
F71: TRIM, VALUE Functions
F72: Concatenating Text
F73: Parsing with Text to Columns
F74: Parsing with Text Functions
D75: + | E75: Date Functions
F76: Y2K Problem
F77: NOW, TODAY Functions
F78: YEAR, MONTH, DAY, WEEKDAY Functions
F79: DATEDIF Function
F80: DATE, DATEVALUE Functions
F81: NETWORKDAYS, WORKDAY Functions
D82: + | E82: Statistical Functions
F83: MAX, MIN Functions
F84: MEDIAN, PERCENTILE, QUARTILE Functions
F85: STDEV, VAR Functions
F86: CORREL, COVAR Functions
F87: RANK, LARGE, SMALL Functions
D88: + | E88: Financial Functions
F89: PMT Function
F90: NPV, XNPV Functions
F91: IRR Function
D92: + | E92: Reference Functions
F93: INDEX Function
F94: MATCH Function
F95: OFFSET Function
F96: INDIRECT Function
C97: + | D97: Tools for Analyzing Data
D98: + | E98: Data Tables
F99: One-Way Data Tables
F100: Two-Way Data Tables
E101: Tables
E102: Pivot Tables
E103: Goal Seek
E104: Solver
C105: + | D105: Importing External Data
E106: From Built-in Connections
E107: From the Web
E108: From a Text File
E109: From a Database
C110: + | D110: Making Professional Applications
E111: Conditional Formatting
E112: Data Validation
E113: Protecting Worksheets and Workbooks
E114: Adding Form Controls
E115: Recording Macros
C141: © S. Christian Albright, 2011, All Rights Reserved

Sheet Changes in Excel 2007 (hidden)
A2: © S. Christian Albright, 2011, All Rights Reserved

Sheet Tabs, Ribbons (hidden)
A2: © S. Christian Albright, 2011, All Rights Reserved

Sheet Office button (hidden)
A2: © S. Christian Albright, 2011, All Rights Reserved

Sheet QAT (hidden)
A2: © S. Christian Albright, 2011, All Rights Reserved

Sheet Excel Options (hidden)
A2: © S. Christian Albright, 2011, All Rights Reserved

Sheet File extensions (hidden)
A2: © S. Christian Albright, 2011, All Rights Reserved

Sheet Right-clicking (hidden)
A2: © S. Christian Albright, 2011, All Rights Reserved
K3: Month | L3: Sales
K4: 2009-01-01 | L4: 3108
K5: 2009-02-01 | L5: 3993
K6: 2009-03-01 | L6: 1644
K7: 2009-04-01 | L7: 3078
K8: 2009-05-01 | L8: 1830
K9: 2009-06-01 | L9: 3279
K10: 2009-07-01 | L10: 3413
K11: 2009-08-01 | L11: 1197

Sheet Changes in Excel 2010 (hidden)
A2: © S. Christian Albright, 2011, All Rights Reserved

Sheet File tab (hidden)
A2: © S. Christian Albright, 2011, All Rights Reserved

Sheet Modifying ribbons (hidden)
A2: © S. Christian Albright, 2011, All Rights Reserved

Sheet Selected range coloring (hidden)
A2: © S. Christian Albright, 2011, All Rights Reserved

Sheet New and Renamed functions (hidden)
A2: © S. Christian Albright, 2011, All Rights Reserved
K3: New function | L3: Old version | M3: New example | N3: Old example | O3: Result
K4: NORM.DIST | L4: NORMDIST | M4: =_xlfn.NORM.DIST(80,100,25,1) -> 0.2118553986 | N4: =NORMDIST(80,100,25,1) -> 0.2118553986 | O4: Probability to the left of 80
K5: NORM.INV | L5: NORMINV | M5: =_xlfn.NORM.INV(0.8,100,25) -> 121.0405308 | N5: =NORMINV(0.8,100,25) -> 121.0405308 | O5: Value with probability 0.8 to the left of it
K6: BINOM.DIST | L6: BINOMDIST | M6: =_xlfn.BINOM.DIST(45,100,0.5,1) -> 0.1841008087 | N6: =BINOMDIST(45,100,0.5,1) -> 0.1841008087 | O6: Probability of <= 45 successes
K7: BINOM.INV | L7: CRITBINOM | M7: =_xlfn.BINOM.INV(100,0.5,0.95) -> 58 | N7: =CRITBINOM(100,0.5,0.95) -> 58 | O7: Value such that there is about probability 0.95 of being <= it
K8: CHISQ.DIST | L8: CHIDIST | M8: =_xlfn.CHISQ.DIST(15,20,1) -> 0.223592387 | N8: =1-CHIDIST(15,20) -> 0.223592387 | O8: Probability to the left of 15
K9: CHISQ.DIST.RT | L9: CHIDIST | M9: =_xlfn.CHISQ.DIST.RT(15,20) -> 0.776407613 | N9: =CHIDIST(15,20) -> 0.776407613 | O9: Probability to the right of 15
K10: CHISQ.INV | L10: CHIINV | M10: =_xlfn.CHISQ.INV(0.25,20) -> 15.45177354 | N10: =CHIINV(0.75,20) -> 15.45177354 | O10: Value with probability 0.25 to the left of it
K11: CHISQ.INV.RT | L11: CHIINV | M11: =_xlfn.CHISQ.INV.RT(0.05,20) -> 31.41043284 | N11: =CHIINV(0.05,20) -> 31.41043284 | O11: Value with probability 0.05 to the right of it
K12: T.DIST | L12: TDIST | M12: =_xlfn.T.DIST(1,20,1) -> 0.8353717114 | N12: =1-TDIST(1,20,1) -> 0.8353717114 | O12: Probability to the left of 1
K13: T.DIST.2T | L13: TDIST | M13: =_xlfn.T.DIST.2T(1,20) -> 0.3292565772 | N13: =TDIST(1,20,2) -> 0.3292565772 | O13: Probability to the left of -1 plus probability to the right of 1 (i.e., combined probability in tails)
K14: T.DIST.RT | L14: TDIST | M14: =_xlfn.T.DIST.RT(1,20) -> 0.1646282886 | N14: =TDIST(1,20,1) -> 0.1646282886 | O14: Probability to the right of 1
K15: T.INV | L15: TINV | M15: =_xlfn.T.INV(0.05,20) -> -1.724718243 | N15: =-TINV(0.1,20) -> -1.724718243 | O15: Value with probability 0.05 to the left of it
K16: T.INV.2T | L16: TINV | M16: =_xlfn.T.INV.2T(0.95,20) -> 0.06349838874 | N16: =TINV(0.95,20) -> 0.06349838874 | O16: Value with probability 0.05 between it and the negative of it (i.e., combined 0.95 in the tails)

Sheet Add-ins buttons (hidden)
A2: © S. Christian Albright, 2011, All Rights Reserved

Sheet Slicers (hidden)
A2: © S. Christian Albright, 2011, All Rights Reserved
B20: Sum of Total Cost | C20: Column Labels
B21: Row Labels | C21: MidWest | D21: NorthEast | E21: South | F21: West | G21: Grand Total
B22: Female | C22: 59.65 | D22: 878.1 | E22: 1068.58 | F22: 1205.29 | G22: 3211.62
B23: Male | C23: 159.33 | D23: 140.61 | E23: 141.39 | F23: 372.95 | G23: 814.28
B24: Grand Total | C24: 218.98 | D24: 1018.71 | E24: 1209.97 | F24: 1578.24 | G24: 4025.9

Sheet Sparklines (hidden)
A2: © S. Christian Albright, 2011, All Rights Reserved
K3: Weekly closing prices from 01/01/2006 to 07/30/2009
K5: Week | L5: AAPL | M5: CSCO | N5: HPQ | O5: IBM | P5: MSFT
K6: 1 | L6: 71.89 | M6: 17.12 | N6: 27.82 | O6: 77.78 | P6: 24.64
K7: 2 | L7: 76.3 | M7: 18.77 | N7: 29.38 | O7: 80.38 | P7: 25.36
K8: 3 | L8: 85.59 | M8: 18.92 | N8: 31 | O8: 78.7 | P8: 25.62
K9: 4 | L9: 76.09 | M9: 18.51 | N9: 30.84 | O9: 76.98 | P9: 24.89
K10: 5 | L10: 72.03 | M10: 18.78 | N10: 30.4 | O10: 76.66 | P10: 26.19
K11: 6 | L11: 71.85 | M11: 18.15 | N11: 29.69 | O11: 75.67 | P11: 25.95
K12: 7 | L12: 67.31 | M12: 19.76 | N12: 30.62 | O12: 77.15 | P12: 25.15
K13: 8 | L13: 70.29 | M13: 19.86 | N13: 33.1 | O13: 76.56 | P13: 25.25
K14: 9 | L14: 71.46 | M14: 19.85 | N14: 31.11 | O14: 75.98 | P14: 25.18
K15: 10 | L15: 67.72 | M15: 21.04 | N15: 32.32 | O15: 75.85 | P15: 25.47
K16: 11 | L16: 63.19 | M16: 20.82 | N16: 32.05 | O16: 77.38 | P16: 25.69
K17: 12 | L17: 64.66 | M17: 21.62 | N17: 33.27 | O17: 79.02 | P17: 26
K18: 13 | L18: 59.96 | M18: 21.36 | N18: 32.31 | O18: 79.07 | P18: 25.54
K19: 14 | L19: 62.72 | M19: 21.67 | N19: 32.04 | O19: 78.23 | P19: 25.73
K20: 15 | L20: 69.79 | M20: 20.81 | N20: 32.5 | O20: 78.24 | P20: 25.77
K21: 16 | L21: 66.47 | M21: 21.18 | N21: 31.77 | O21: 77.76 | P21: 25.6
K22: 17 | L22: 67.04 | M22: 20.68 | N22: 32.1 | O22: 77.46 | P22: 25.67
K23: 18 | L23: 70.39 | M23: 20.95 | N23: 31.63 | O23: 78.11 | P23: 22.84
K24: 19 | L24: 71.89 | M24: 21.75 | N24: 32.99 | O24: 79 | P24: 22.51
K25: 20 | L25: 67.7 | M25: 20.34 | N25: 31.29 | O25: 78.44 | P25: 21.91
K26: 21 | L26: 64.51 | M26: 20.87 | N26: 31.19 | O26: 76.43 | P26: 21.42
K27: 22 | L27: 63.55 | M27: 20.31 | N27: 31.69 | O27: 76.88 | P27: 22.52
K28: 23 | L28: 61.66 | M28: 20.44 | N28: 31.56 | O28: 75.7 | P28: 21.61
K29: 24 | L29: 59.24 | M29: 19.97 | N29: 29.16 | O29: 73.9 | P29: 20.81
K30: 25 | L30: 57.56 | M30: 19.98 | N30: 32.27 | O30: 74.21 | P30: 20.98
K31: 26 | L31: 58.83 | M31: 19.61 | N31: 31.9 | O31: 73.4 | P31: 21.36
K32: 27 | L32: 57.27 | M32: 19.53 | N32: 30.94 | O32: 73.13 | P32: 22.12
K33: 28 | L33: 55.4 | M33: 19.39 | N33: 32.08 | O33: 72.75 | P33: 22.12
K34: 29 | L34: 50.67 | M34: 17.94 | N34: 30.04 | O34: 70.04 | P34: 21.16
K35: 30 | L35: 60.72 | M35: 17.46 | N35: 29.81 | O35: 71.27 | P35: 22.66
K36: 31 | L36: 65.59 | M36: 18.08 | N36: 31.36 | O36: 73.27 | P36: 23.02
K37: 32 | L37: 68.3 | M37: 17.24 | N37: 31.68 | O37: 72.27 | P37: 23.06
K38: 33 | L38: 63.65 | M38: 19.54 | N38: 32.28 | O38: 72.14 | P38: 23.19
K39: 34 | L39: 67.91 | M39: 20.86 | N39: 34.69 | O39: 76.37 | P39: 24.57
K40: 35 | L40: 68.75 | M40: 21.05 | N40: 34.41 | O40: 76.35 | P40: 24.63
K41: 36 | L41: 68.38 | M41: 22.27 | N41: 35.68 | O41: 77.81 | P41: 24.62
K42: 37 | L42: 72.52 | M42: 21.75 | N42: 35.32 | O42: 77.1 | P42: 24.39
K43: 38 | L43: 74.1 | M43: 22.72 | N43: 35.41 | O43: 79.27 | P43: 25.58
K44: 39 | L44: 73 | M44: 22.88 | N44: 34.37 | O44: 77.62 | P44: 25.4
K45: 40 | L45: 76.98 | M45: 22.98 | N45: 35.91 | O45: 78.32 | P45: 26.06
K46: 41 | L46: 74.22 | M46: 24.09 | N46: 36.92 | O46: 79.47 | P46: 26.55
K47: 42 | L47: 75.02 | M47: 24.53 | N47: 38.04 | O47: 82.28 | P47: 27.03
K48: 43 | L48: 79.95 | M48: 24.55 | N48: 38.54 | O48: 86.48 | P48: 27.09
K49: 44 | L49: 80.41 | M49: 23.72 | N49: 37.64 | O49: 86.75 | P49: 27
K50: 45 | L50: 78.29 | M50: 23.77 | N50: 37.41 | O50: 87.37 | P50: 27.37
K51: 46 | L51: 83.12 | M51: 26.74 | N51: 39.14 | O51: 87.99 | P51: 27.86
K52: 47 | L52: 85.85 | M52: 26.93 | N52: 38.93 | O52: 89.96 | P52: 28.11
K53: 48 | L53: 91.63 | M53: 26.84 | N53: 38.72 | O53: 89.51 | P53: 28.45
K54: 49 | L54: 91.32 | M54: 26.69 | N54: 38.6 | O54: 87.5 | P54: 27.84
K55: 50 | L55: 88.26 | M55: 26.98 | N55: 38.8 | O55: 90 | P55: 28.11
K56: 51 | L56: 87.72 | M56: 27.56 | N56: 39.17 | O56: 91.38 | P56: 28.86
K57: 52 | L57: 82.2 | M57: 26.93 | N57: 39.85 | O57: 91.34 | P57: 28.34
K58: 53 | L58: 84.84 | M58: 27.33 | N58: 40.4 | O58: 93.16 | P58: 28.55
K59: 54 | L59: 85.05 | M59: 28.47 | N59: 41.39 | O59: 93.42 | P59: 28.34
K60: 55 | L60: 94.62 | M60: 28.92 | N60: 42.69 | O60: 95.26 | P60: 29.84
K61: 56 | L61: 88.5 | M61: 26.7 | N61: 41.19 | O61: 92.22 | P61: 29.74
K62: 57 | L62: 85.38 | M62: 26.35 | N62: 40.89 | O62: 93.45 | P62: 29.26
K63: 58 | L63: 84.75 | M63: 27.14 | N63: 41.26 | O63: 95.1 | P63: 28.86
K64: 59 | L64: 83.27 | M64: 27.71 | N64: 41.42 | O64: 94.79 | P64: 27.71
K65: 60 | L65: 84.83 | M65: 27.52 | N65: 41.95 | O65: 95.21 | P65: 27.57
K66: 61 | L66: 89.07 | M66: 27.51 | N66: 40.03 | O66: 94 | P66: 27.73
K67: 62 | L67: 85.41 | M67: 25.3 | N67: 37.93 | O67: 87.43 | P67: 26.63
K68: 63 | L68: 87.97 | M68: 26.08 | N68: 39.34 | O68: 89.72 | P68: 26.18
K69: 64 | L69: 89.59 | M69: 25.99 | N69: 39.22 | O69: 89.69 | P69: 26.22
K70: 65 | L70: 93.52 | M70: 26.19 | N70: 39.73 | O70: 91.4 | P70: 26.88
K71: 66 | L71: 92.91 | M71: 25.53 | N71: 39.45 | O71: 90.66 | P71: 26.74
K72: 67 | L72: 94.68 | M72: 26.06 | N72: 41.08 | O72: 92.83 | P72: 27.39
K73: 68 | L73: 90.24 | M73: 26.68 | N73: 40.47 | O73: 91.3 | P73: 27.45
K74: 69 | L74: 90.97 | M74: 26.99 | N74: 40.66 | O74: 90.97 | P74: 27.84
K75: 70 | L75: 99.92 | M75: 27.03 | N75: 41.56 | O75: 97.31 | P75: 28.9
K76: 71 | L76: 100.81 | M76: 27.91 | N76: 43.03 | O76: 99.03 | P76: 29.32
K77: 72 | L77: 108.74 | M77: 26.63 | N77: 44.46 | O77: 102.33 | P77: 29.63
K78: 73 | L78: 110.02 | M78: 26.21 | N78: 43.81 | O78: 104.27 | P78: 29.67
K79: 74 | L79: 113.62 | M79: 25.52 | N79: 44.83 | O79: 101.56 | P79: 29.34
K80: 75 | L80: 118.4 | M80: 26.86 | N80: 45.02 | O80: 102.87 | P80: 29.44
K81: 76 | L81: 124.49 | M81: 26.48 | N81: 44.99 | O81: 99.52 | P81: 28.92
K82: 77 | L82: 120.5 | M82: 27.39 | N82: 45 | O82: 101.47 | P82: 29.35
K83: 78 | L83: 123 | M83: 26.92 | N83: 44.48 | O83: 100.84 | P83: 28.38
K84: 79 | L84: 122.04 | M84: 27.85 | N84: 43.93 | O84: 101.62 | P84: 28.36
K85: 80 | L85: 132.3 | M85: 28.47 | N85: 45.26 | O85: 105.27 | P85: 28.85
K86: 81 | L86: 137.73 | M86: 29.89 | N86: 46.51 | O86: 104.86 | P86: 28.7
K87: 82 | L87: 143.75 | M87: 29.59 | N87: 47.78 | O87: 110.85 | P87: 29.99
K88: 83 | L88: 143.85 | M88: 28.97 | N88: 45.74 | O88: 111.64 | P88: 28.29
K89: 84 | L89: 131.85 | M89: 29.46 | N89: 46.67 | O89: 108.03 | P89: 27.87
K90: 85 | L90: 125 | M90: 31.39 | N90: 46.48 | O90: 109.14 | P90: 27.63
K91: 86 | L91: 122.06 | M91: 29.99 | N91: 46.42 | O91: 107.46 | P91: 27.29
K92: 87 | L92: 135.3 | M92: 30.73 | N92: 47.35 | O92: 109.72 | P92: 27.83
K93: 88 | L93: 138.48 | M93: 31.92 | N93: 48.58 | O93: 113.07 | P93: 27.75
K94: 89 | L94: 131.77 | M94: 31.52 | N94: 48.09 | O94: 111.96 | P94: 27.47
K95: 90 | L95: 138.81 | M95: 31.56 | N95: 47.71 | O95: 111.56 | P95: 28.05
K96: 91 | L96: 144.15 | M96: 32.3 | N96: 49.83 | O96: 113.15 | P96: 27.67
K97: 92 | L97: 153.47 | M97: 33.13 | N97: 49.1 | O97: 114.14 | P97: 28.45
K98: 93 | L98: 161.45 | M98: 32.65 | N98: 50.19 | O98: 112.69 | P98: 28.82
K99: 94 | L99: 167.25 | M99: 32.92 | N99: 50.83 | O99: 114.15 | P99: 29.14
K100: 95 | L100: 170.42 | M100: 31.5 | N100: 50.68 | O100: 108.79 | P100: 29.14
K101: 96 | L101: 184.7 | M101: 31.9 | N101: 51.74 | O101: 110.2 | P101: 33.83
K102: 97 | L102: 187.87 | M102: 32.51 | N102: 51.67 | O102: 111.03 | P102: 35.79
K103: 98 | L103: 165.37 | M103: 28.58 | N103: 47.72 | O103: 97.48 | P103: 32.58
K104: 99 | L104: 166.39 | M104: 29.94 | N104: 50.04 | O104: 101.9 | P104: 33.03
K105: 100 | L105: 171.54 | M105: 28.69 | N105: 48.48 | O105: 101.18 | P105: 33.05
K106: 101 | L106: 182.22 | M106: 28.02 | N106: 50.45 | O106: 102.28 | P106: 32.56
K107: 102 | L107: 194.3 | M107: 27.45 | N107: 51.12 | O107: 105.85 | P107: 33.46
K108: 103 | L108: 190.39 | M108: 28.65 | N108: 51.49 | O108: 102.85 | P108: 34.22
K109: 104 | L109: 193.91 | M109: 28.6 | N109: 51.38 | O109: 107.98 | P109: 34.94
K110: 105 | L110: 199.83 | M110: 27.56 | N110: 50.72 | O110: 107.05 | P110: 35
K111: 106 | L111: 180.05 | M111: 26.12 | N111: 46.29 | O111: 98.34 | P111: 33.32
K112: 107 | L112: 172.69 | M112: 25.87 | N112: 44.44 | O112: 94.97 | P112: 32.86
K113: 108 | L113: 161.36 | M113: 24.3 | N113: 43.21 | O113: 100.55 | P113: 31.99
K114: 109 | L114: 130.01 | M114: 24.2 | N114: 43.2 | O114: 101.63 | P114: 31.92
K115: 110 | L115: 133.75 | M115: 24.94 | N115: 43.87 | O115: 106.07 | P115: 29.51
K116: 111 | L116: 125.48 | M116: 23.54 | N116: 41.36 | O116: 100.8 | P116: 27.68
K117: 112 | L117: 124.63 | M117: 23.3 | N117: 43.33 | O117: 103.62 | P117: 27.54
K118: 113 | L118: 119.46 | M118: 23.6 | N118: 46.81 | O118: 105.49 | P118: 26.93
K119: 114 | L119: 125.02 | M119: 24.39 | N119: 47.18 | O119: 111.14 | P119: 26.46
K120: 115 | L120: 122.25 | M120: 24.11 | N120: 46.72 | O120: 111.22 | P120: 27.11
K121: 116 | L121: 126.61 | M121: 24.32 | N121: 45.43 | O121: 112.48 | P121: 27.2
K122: 117 | L122: 133.27 | M122: 24.77 | N122: 46 | O122: 115.5 | P122: 28.39
K123: 118 | L123: 143.01 | M123: 24.08 | N123: 45.59 | O123: 111.83 | P123: 27.15
K124: 119 | L124: 153.08 | M124: 24.39 | N124: 45.9 | O124: 112.99 | P124: 28.37
K125: 120 | L125: 147.14 | M125: 23.38 | N125: 44.98 | O125: 113.23 | P125: 27.51
K126: 121 | L126: 161.04 | M126: 24.51 | N126: 47.66 | O126: 121.43 | P126: 29.18
K127: 122 | L127: 169.73 | M127: 25.6 | N127: 46.94 | O127: 120.14 | P127: 29.02
K128: 123 | L128: 180.94 | M128: 26.75 | N128: 47.84 | O128: 120.24 | P128: 28.44
K129: 124 | L129: 183.45 | M129: 25.49 | N129: 48.6 | O129: 121.59 | P129: 28.59
K130: 125 | L130: 187.62 | M130: 26.51 | N130: 46.78 | O130: 125.28 | P130: 29.28
K131: 126 | L131: 181.17 | M131: 25.1 | N131: 44.48 | O131: 121.73 | P131: 27.39
K132: 127 | L132: 188.75 | M132: 26.72 | N132: 46.55 | O132: 126.85 | P132: 27.65
K133: 128 | L133: 185.64 | M133: 26.54 | N133: 47.12 | O133: 122.45 | P133: 26.84
K134: 129 | L134: 172.37 | M134: 26.37 | N134: 47.02 | O134: 123.64 | P134: 28.38
K135: 130 | L135: 175.27 | M135: 24.64 | N135: 45.23 | O135: 120.3 | P135: 27.56
K136: 131 | L136: 170.09 | M136: 23.61 | N136: 44.18 | O136: 117.66 | P136: 26.98
K137: 132 | L137: 170.12 | M137: 23.12 | N137: 43.05 | O137: 117.16 | P137: 25.37
K138: 133 | L138: 172.58 | M138: 21.82 | N138: 41.21 | O138: 119.69 | P138: 24.65
K139: 134 | L139: 165.15 | M139: 21.66 | N139: 43.03 | O139: 127.31 | P139: 25.25
K140: 135 | L140: 162.12 | M140: 22.43 | N140: 43.31 | O140: 125.97 | P140: 25.54
K141: 136 | L141: 156.66 | M141: 21.99 | N141: 43.56 | O141: 124.12 | P141: 24.84
K142: 137 | L142: 169.55 | M142: 24.25 | N142: 45.4 | O142: 126.74 | P142: 27.47
K143: 138 | L143: 175.74 | M143: 24.91 | N143: 45.18 | O143: 124.33 | P143: 27.15
K144: 139 | L144: 176.79 | M144: 24.71 | N144: 46.63 | O144: 122.92 | P144: 27.29
K145: 140 | L145: 169.53 | M145: 24.05 | N145: 46.49 | O145: 119.77 | P145: 26.75
K146: 141 | L146: 160.18 | M146: 22.26 | N146: 44.55 | O146: 112.49 | P146: 25.14
K147: 142 | L147: 148.94 | M147: 23.46 | N147: 46.63 | O147: 117.06 | P147: 27.08
K148: 143 | L148: 140.91 | M148: 24.29 | N148: 47.91 | O148: 116.94 | P148: 24.66
K149: 144 | L149: 128.24 | M149: 23.82 | N149: 47.46 | O149: 117.5 | P149: 26.86
K150: 145 | L150: 97.07 | M150: 21.25 | N150: 42.69 | O150: 101.78 | P150: 25.8
K151: 146 | L151: 96.8 | M151: 17.23 | N151: 36.73 | O151: 86.34 | P151: 21.08
K152: 147 | L152: 97.4 | M152: 17.91 | N152: 39.42 | O152: 89.32 | P152: 23.46
K153: 148 | L153: 96.38 | M153: 16.31 | N153: 32.2 | O153: 80.75 | P153: 21.53
K154: 149 | L154: 107.59 | M154: 17.77 | N154: 38 | O154: 91.48 | P154: 21.89
K155: 150 | L155: 98.24 | M155: 17.58 | N155: 34.39 | O155: 85.36 | P155: 21.08
K156: 151 | L156: 90.24 | M156: 16.62 | N156: 30.24 | O156: 79.48 | P156: 19.66
K157: 152 | L157: 82.58 | M157: 15.17 | N157: 34.39 | O157: 74.09 | P157: 19.42
K158: 153 | L158: 92.67 | M158: 16.54 | N158: 35.02 | O158: 80.74 | P158: 19.96
K159: 154 | L159: 94 | M159: 15.94 | N159: 33.28 | O159: 79.74 | P159: 19.61
K160: 155 | L160: 98.27 | M160: 16.99 | N160: 35.71 | O160: 81.33 | P160: 19.11
K161: 156 | L161: 90 | M161: 16.64 | N161: 35.22 | O161: 82.64 | P161: 18.87
K162: 157 | L162: 85.81 | M162: 16.27 | N162: 34.79 | O162: 80.47 | P162: 18.88
K163: 158 | L163: 90.75 | M163: 16.96 | N163: 36.62 | O163: 86.45 | P163: 20.06
K164: 159 | L164: 90.58 | M164: 16.7 | N164: 37.3 | O164: 83.8 | P164: 19.26
K165: 160 | L165: 82.33 | M165: 15.82 | N165: 34.59 | O165: 84.02 | P165: 19.45
K166: 161 | L166: 88.36 | M166: 15.89 | N166: 35.61 | O166: 88.54 | P166: 16.98
K167: 162 | L167: 90.13 | M167: 14.97 | N167: 34.57 | O167: 90.68 | P167: 16.88
K168: 163 | L168: 99.72 | M168: 17.04 | N168: 36.66 | O168: 95.64 | P168: 19.4
K169: 164 | L169: 99.16 | M169: 16.1 | N169: 35.69 | O169: 93.35 | P169: 18.84
K170: 165 | L170: 91.2 | M170: 15.08 | N170: 31.08 | O170: 88.33 | P170: 17.89
K171: 166 | L171: 89.31 | M171: 14.57 | N171: 28.88 | O171: 91.55 | P171: 16.05
K172: 167 | L172: 85.3 | M172: 14.18 | N172: 26.84 | O172: 85.36 | P172: 15.18
K173: 168 | L173: 95.93 | M173: 15.51 | N173: 29.39 | O173: 89.89 | P173: 16.54
K174: 169 | L174: 101.59 | M174: 15.91 | N174: 28.79 | O174: 92.03 | P174: 16.95
K175: 170 | L175: 106.85 | M175: 16.95 | N175: 33.26 | O175: 93.66 | P175: 18.02
K176: 171 | L176: 115.99 | M176: 18.16 | N176: 34.08 | O176: 101.69 | P176: 18.63
K177: 172 | L177: 119.57 | M177: 17.82 | N177: 34.36 | O177: 101.17 | P177: 19.55
K178: 173 | L178: 123.42 | M178: 17.99 | N178: 36.22 | O178: 100.74 | P178: 19.08
K179: 174 | L179: 123.9 | M179: 18.42 | N179: 35.72 | O179: 99.56 | P179: 20.78
K180: 175 | L180: 127.24 | M180: 19.58 | N180: 36.44 | O180: 104.07 | P180: 20.11
K181: 176 | L181: 129.19 | M181: 18.73 | N181: 34.61 | O181: 101.49 | P181: 19.3
K182: 177 | L182: 122.42 | M182: 17.92 | N182: 34.94 | O182: 101.37 | P182: 20.09
K183: 178 | L183: 122.5 | M183: 17.9 | N183: 34.07 | O183: 101.89 | P183: 19.75
K184: 179 | L184: 135.81 | M184: 18.5 | N184: 34.28 | O184: 106.28 | P184: 20.89
K185: 180 | L185: 144.67 | M185: 19.87 | N185: 37.27 | O185: 107.24 | P185: 22.14
K186: 181 | L186: 136.97 | M186: 19.91 | N186: 37.76 | O186: 108.21 | P186: 23.33
K187: 182 | L187: 139.48 | M187: 18.92 | N187: 38.35 | O187: 105.89 | P187: 24.07
K188: 183 | L188: 142.44 | M188: 18.91 | N188: 37.61 | O188: 105.68 | P188: 23.35
K189: 184 | L189: 140.02 | M189: 18.5 | N189: 37.85 | O189: 101.73 | P189: 23.37
K190: 185 | L190: 138.52 | M190: 18.34 | N190: 37.24 | O190: 100.83 | P190: 22.39
K191: 186 | L191: 151.75 | M191: 20.51 | N191: 39.98 | O191: 115.42 | P191: 24.29
K192: 187 | L192: 159.99 | M192: 21.88 | N192: 41.72 | O192: 117.64 | P192: 23.45
K193: 188 | L193: 160.03 | M193: 21.72 | N193: 42.19 | O193: 117.26 | P193: 23.8

Sheet New Solver (hidden)
A2: © S. Christian Albright, 2011, All Rights Reserved

Sheet Excel Basics (hidden)
A2: © S. Christian Albright, 2011, All Rights Reserved

Sheet Moving and Selecting (hidden)
A2: © S. Christian Albright, 2011, All Rights Reserved

Sheet Going Home to Cell A1 (hidden)
A2: © S. Christian Albright, 2011, All Rights Reserved

Sheet Using End-Arrow Combinations (hidden)
A2: © S. Christian Albright, 2011, All Rights Reserved
K8: 8 | L8: 1 | M8: 1 | N8: 1
K9: 5 | L9: 5 | M9: 7 | N9: 6
K10: 10 | L10: 5 | M10: 3 | N10: 10
K11: 10 | L11: 10 | M11: 5 | N11: 9
K12: 5 | L12: 4 | M12: 3 | N12: 4
K13: 7 | L13: 4 | M13: 5 | N13: 1
K14: 2 | L14: 8 | M14: 9 | N14: 10
K18: 8 | L18: 1 | M18: 1 | N18: 1
K19: 5 | L19: 5 | M19: 7 | N19: 6
K20: 10 | L20: 5 | M20: 3 | N20: 10
K21: 10 | L21: 10 | M21: 5 | N21: 9
K22: 5 | L22: 4 | M22: 3 | N22: 4
K23: 7 | L23: 4 | M23: 5 | N23: 1
K24: 2 | L24: 8 | M24: 9 | N24: 10
K27: 8 | L27: 1 | N27: 1
K28: 5 | L28: 5 | M28: 7
K29: 10 | L29: 5 | M29: 3 | N29: 10
K30: 10 | L30: 10 | N30: 9
L31: 4 | M31: 3 | N31: 4
K32: 7 | L32: 4 | M32: 5 | N32: 1
K33: 2 | M33: 9 | N33: 10

Sheet Splitting the Screen (hidden)
A2: © S. Christian Albright, 2011, All Rights Reserved
K3: 61 | L3: 91 | M3: 84 | N3: 8 | O3: 3 | P3: 62 | Q3: 11 | R3: 33 | S3: 83 | T3: 70 | U3: 84 | V3: 94 | W3: 30 | X3: 49 | Y3: 86 | Z3: 7 | AA3: 18 | AB3: 39 | AC3: 54 | AD3: 4
K4: 95 | L4: 8 | M4: 14 | N4: 68 | O4: 33 | P4: 23 | Q4: 13 | R4: 12 | S4: 3 | T4: 100 | U4: 42 | V4: 23 | W4: 85 | X4: 57 | Y4: 84 | Z4: 89 | AA4: 53 | AB4: 25 | AC4: 57 | AD4: 97
K5: 33 | L5: 93 | M5: 80 | N5: 5 | O5: 60 | P5: 30 | Q5: 13 | R5: 34 | S5: 23 | T5: 57 | U5: 56 | V5: 82 | W5: 3 | X5: 62 | Y5: 89 | Z5: 17 | AA5: 6 | AB5: 28 | AC5: 99 | AD5: 26
K6: 49 | L6: 47 | M6: 37 | N6: 41 | O6: 56 | P6: 38 | Q6: 46 | R6: 50 | S6: 100 | T6: 40 | U6: 59 | V6: 34 | W6: 22 | X6: 37 | Y6: 39 | Z6: 24 | AA6: 64 | AB6: 31 | AC6: 5 | AD6: 86
K7: 10 | L7: 65 | M7: 46 | N7: 42 | O7: 52 | P7: 90 | Q7: 37 | R7: 31 | S7: 56 | T7: 29 | U7: 78 | V7: 88 | W7: 67 | X7: 62 | Y7: 23 | Z7: 32 | AA7: 72 | AB7: 65 | AC7: 32 | AD7: 98
K8: 14 | L8: 69 | M8: 15 | N8: 73 | O8: 11 | P8: 75 | Q8: 77 | R8: 36 | S8: 66 | T8: 32 | U8: 97 | V8: 51 | W8: 41 | X8: 90 | Y8: 79 | Z8: 49 | AA8: 16 | AB8: 49 | AC8: 75 | AD8: 78
K9: 21 | L9: 80 | M9: 46 | N9: 93 | O9: 35 | P9: 95 | Q9: 35 | R9: 95 | S9: 27 | T9: 25 | U9: 39 | V9: 33 | W9: 93 | X9: 81 | Y9: 44 | Z9: 4 | AA9: 88 | AB9: 50 | AC9: 19 | AD9: 1
K10: 8 | L10: 74 | M10: 24 | N10: 77 | O10: 9 | P10: 92 | Q10: 46 | R10: 28 | S10: 100 | T10: 22 | U10: 31 | V10: 97 | W10: 78 | X10: 79 | Y10: 17 | Z10: 62 | AA10: 1 | AB10: 69 | AC10: 26 | AD10: 74
K11: 94 | L11: 33 | M11: 56 | N11: 88 | O11: 51 | P11: 73 | Q11: 22 | R11: 39 | S11: 93 | T11: 77 | U11: 39 | V11: 51 | W11: 75 | X11: 63 | Y11: 6 | Z11: 63 | AA11: 31 | AB11: 7 | AC11: 55 | AD11: 24
K12: 84 | L12: 17 | M12: 60 | N12: 87 | O12: 32 | P12: 46 | Q12: 100 | R12: 61 | S12: 83 | T12: 71 | U12: 93 | V12: 74 | W12: 34 | X12: 52 | Y12: 4 | Z12: 26 | AA12: 55 | AB12: 60 | AC12: 27 | AD12: 51
K13: 62 | L13: 79 | M13: 43 | N13: 80 | O13: 11 | P13: 9 | Q13: 24 | R13: 52 | S13: 22 | T13: 58 | U13: 80 | V13: 41 | W13: 93 | X13: 77 | Y13: 33 | Z13: 8 | AA13: 38 | AB13: 89 | AC13: 95 | AD13: 20
K14: 16 | L14: 29 | M14: 76 | N14: 6 | O14: 90 | P14: 32 | Q14: 40 | R14: 62 | S14: 94 | T14: 34 | U14: 34 | V14: 91 | W14: 57 | X14: 9 | Y14: 49 | Z14: 93 | AA14: 62 | AB14: 45 | AC14: 7 | AD14: 62
K15: 93 | L15: 54 | M15: 2 | N15: 11 | O15: 82 | P15: 33 | Q15: 18 | R15: 31 | S15: 42 | T15: 58 | U15: 13 | V15: 20 | W15: 20 | X15: 58 | Y15: 23 | Z15: 16 | AA15: 69 | AB15: 51 | AC15: 15 | AD15: 70
K16: 6 | L16: 39 | M16: 52 | N16: 66 | O16: 33 | P16: 2 | Q16: 23 | R16: 49 | S16: 87 | T16: 46 | U16: 75 | V16: 58 | W16: 95 | X16: 64 | Y16: 9 | Z16: 8 | AA16: 100 | AB16: 60 | AC16: 65 | AD16: 68
K17: 28 | L17: 91 | M17: 57 | N17: 78 | O17: 29 | P17: 82 | Q17: 24 | R17: 88 | S17: 45 | T17: 3 | U17: 30 | V17: 36 | W17: 90 | X17: 61 | Y17: 40 | Z17: 12 | AA17: 19 | AB17: 89 | AC17: 39 | AD17: 34
K18: 66 | L18: 28 | M18: 57 | N18: 51 | O18: 87 | P18: 44 | Q18: 99 | R18: 18 | S18: 32 | T18: 34 | U18: 71 | V18: 54 | W18: 65 | X18: 39 | Y18: 72 | Z18: 94 | AA18: 59 | AB18: 47 | AC18: 24 | AD18: 86
K19: 56 | L19: 100 | M19: 36 | N19: 48 | O19: 46 | P19: 60 | Q19: 71 | R19: 33 | S19: 30 | T19: 26 | U19: 38 | V19: 78 | W19: 44 | X19: 4 | Y19: 59 | Z19: 90 | AA19: 43 | AB19: 100 | AC19: 9 | AD19: 70
K20: 3 | L20: 34 | M20: 87 | N20: 45 | O20: 45 | P20: 76 | Q20: 85 | R20: 86 | S20: 28 | T20: 100 | U20: 70 | V20: 72 | W20: 45 | X20: 7 | Y20: 49 | Z20: 10 | AA20: 21 | AB20: 27 | AC20: 54 | AD20: 43
K21: 33 | L21: 13 | M21: 50 | N21: 83 | O21: 53 | P21: 20 | Q21: 83 | R21: 13 | S21: 7 | T21: 27 | U21: 92 | V21: 43 | W21: 19 | X21: 59 | Y21: 8 | Z21: 91 | AA21: 55 | AB21: 42 | AC21: 23 | AD21: 11
K22: 34 | L22: 55 | M22: 3 | N22: 9 | O22: 67 | P22: 99 | Q22: 25 | R22: 33 | S22: 93 | T22: 18 | U22: 92 | V22: 16 | W22: 9 | X22: 95 | Y22: 61 | Z22: 27 | AA22: 11 | AB22: 5 | AC22: 36 | AD22: 4
K23: 80 | L23: 45 | M23: 89 | N23: 83 | O23: 23 | P23: 31 | Q23: 12 | R23: 14 | S23: 27 | T23: 75 | U23: 89 | V23: 99 | W23: 9 | X23: 46 | Y23: 3 | Z23: 51 | AA23: 38 | AB23: 24 | AC23: 33 | AD23: 63
K24: 53 | L24: 96 | M24: 54 | N24: 41 | O24: 100 | P24: 1 | Q24: 28 | R24: 21 | S24: 29 | T24: 68 | U24: 76 | V24: 44 | W24: 97 | X24: 68 | Y24: 7 | Z24: 19 | AA24: 6 | AB24: 5 | AC24: 58 | AD24: 66
K25: 77 | L25: 57 | M25: 38 | N25: 52 | O25: 44 | P25: 94 | Q25: 46 | R25: 72 | S25: 50 | T25: 83 | U25: 56 | V25: 12 | W25: 29 | X25: 60 | Y25: 65 | Z25: 93 | AA25: 60 | AB25: 21 | AC25: 8 | AD25: 47
K26: 64 | L26: 86 | M26: 26 | N26: 30 | O26: 35 | P26: 69 | Q26: 52 | R26: 28 | S26: 48 | T26: 27 | U26: 67 | V26: 62 | W26: 52 | X26: 39 | Y26: 46 | Z26: 20 | AA26: 82 | AB26: 66 | AC26: 58 | AD26: 1
K27: 39 | L27: 28 | M27: 43 | N27: 41 | O27: 27 | P27: 86 | Q27: 76 | R27: 44 | S27: 12 | T27: 47 | U27: 79 | V27: 46 | W27: 32 | X27: 58 | Y27: 36 | Z27: 71 | AA27: 83 | AB27: 52 | AC27: 40 | AD27: 39
K28: 75 | L28: 97 | M28: 99 | N28: 71 | O28: 66 | P28: 63 | Q28: 42 | R28: 63 | S28: 15 | T28: 91 | U28: 40 | V28: 1 | W28: 68 | X28: 95 | Y28: 2 | Z28: 61 | AA28: 97 | AB28: 54 | AC28: 39 | AD28: 61
K29: 58 | L29: 14 | M29: 66 | N29: 95 | O29: 35 | P29: 18 | Q29: 41 | R29: 32 | S29: 29 | T29: 35 | U29: 46 | V29: 96 | W29: 80 | X29: 77 | Y29: 31 | Z29: 34 | AA29: 12 | AB29: 49 | AC29: 70 | AD29: 96
K30: 56 | L30: 58 | M30: 57 | N30: 81 | O30: 48 | P30: 63 | Q30: 27 | R30: 54 | S30: 97 | T30: 81 | U30: 34 | V30: 12 | W30: 85 | X30: 9 | Y30: 66 | Z30: 69 | AA30: 72 | AB30: 40 | AC30: 83 | AD30: 90
K31: 5 | L31: 99 | M31: 11 | N31: 59 | O31: 7 | P31: 8 | Q31: 84 | R31: 56 | S31: 76 | T31: 54 | U31: 23 | V31: 33 | W31: 77 | X31: 7 | Y31: 2 | Z31: 2 | AA31: 19 | AB31: 80 | AC31: 23 | AD31: 27
K32: 80 | L32: 67 | M32: 47 | N32: 99 | O32: 77 | P32: 50 | Q32: 42 | R32: 90 | S32: 92 | T32: 86 | U32: 59 | V32: 59 | W32: 94 | X32: 24 | Y32: 17 | Z32: 90 | AA32: 11 | AB32: 46 | AC32: 62 | AD32: 32
K33: 6 | L33: 22 | M33: 30 | N33: 3 | O33: 40 | P33: 19 | Q33: 67 | R33: 32 | S33: 57 | T33: 49 | U33: 8 | V33: 63 | W33: 64 | X33: 10 | Y33: 34 | Z33: 41 | AA33: 80 | AB33: 87 | AC33: 45 | AD33: 58
K34: 52 | L34: 100 | M34: 67 | N34: 91 | O34: 27 | P34: 59 | Q34: 11 | R34: 72 | S34: 12 | T34: 79 | U34: 9 | V34: 27 | W34: 31 | X34: 20 | Y34: 25 | Z34: 54 | AA34: 5 | AB34: 13 | AC34: 91 | AD34: 100
K35: 83 | L35: 32 | M35: 19 | N35: 90 | O35: 44 | P35: 22 | Q35: 100 | R35: 11 | S35: 18 | T35: 68 | U35: 91 | V35: 99 | W35: 41 | X35: 92 | Y35: 91 | Z35: 19 | AA35: 30 | AB35: 18 | AC35: 86 | AD35: 8
K36: 8 | L36: 51 | M36: 93 | N36: 30 | O36: 28 | P36: 55 | Q36: 97 | R36: 60 | S36: 46 | T36: 59 | U36: 77 | V36: 45 | W36: 7 | X36: 12 | Y36: 6 | Z36: 57 | AA36: 47 | AB36: 28 | AC36: 83 | AD36: 98
K37: 55 | L37: 21 | M37: 30 | N37: 49 | O37: 5 | P37: 26 | Q37: 1 | R37: 16 | S37: 86 | T37: 85 | U37: 86 | V37: 100 | W37: 90 | X37: 83 | Y37: 1 | Z37: 63 | AA37: 61 | AB37: 64 | AC37: 84 | AD37: 67
K38: 51 | L38: 88 | M38: 93 | N38: 61 | O38: 96 | P38: 88 | Q38: 59 | R38: 68 | S38: 44 | T38: 95 | U38: 13 | V38: 18 | W38: 81 | X38: 23 | Y38: 31 | Z38: 28 | AA38: 35 | AB38: 80 | AC38: 70 | AD38: 59
K39: 39 | L39: 97 | M39: 37 | N39: 14 | O39: 25 | P39: 17 | Q39: 44 | R39: 69 | S39: 92 | T39: 16 | U39: 86 | V39: 68 | W39: 83 | X39: 22 | Y39: 89 | Z39: 64 | AA39: 80 | AB39: 60 | AC39: 12 | AD39: 26
K40: 50 | L40: 80 | M40: 41 | N40: 96 | O40: 76 | P40: 49 | Q40: 43 | R40: 27 | S40: 73 | T40: 88 | U40: 11 | V40: 79 | W40: 6 | X40: 16 | Y40: 40 | Z40: 73 | AA40: 91 | AB40: 36 | AC40: 4 | AD40: 86
K41: 42 | L41: 73 | M41: 4 | N41: 25 | O41: 21 | P41: 30 | Q41: 74 | R41: 44 | S41: 68 | T41: 36 | U41: 69 | V41: 98 | W41: 35 | X41: 16 | Y41: 18 | Z41: 54 | AA41: 88 | AB41: 24 | AC41: 57 | AD41: 41
K42: 48 | L42: 60 | M42: 26 | N42: 34 | O42: 87 | P42: 79 | Q42: 62 | R42: 96 | S42: 39 | T42: 45 | U42: 13 | V42: 91 | W42: 85 | X42: 3 | Y42: 47 | Z42: 50 | AA42: 2 | AB42: 16 | AC42: 61 | AD42: 94
K43: 54 | L43: 12 | M43: 31 | N43: 66 | O43: 87 | P43: 68 | Q43: 48 | R43: 34 | S43: 46 | T43: 29 | U43: 50 | V43: 88 | W43: 14 | X43: 43 | Y43: 47 | Z43: 47 | AA43: 90 | AB43: 15 | AC43: 46 | AD43: 73
K44: 15 | L44: 63 | M44: 54 | N44: 42 | O44: 15 | P44: 32 | Q44: 73 | R44: 11 | S44: 91 | T44: 96 | U44: 14 | V44: 29 | W44: 64 | X44: 78 | Y44: 57 | Z44: 91 | AA44: 27 | AB44: 89 | AC44: 65 | AD44: 24
K45: 28 | L45: 41 | M45: 18 | N45: 72 | O45: 18 | P45: 36 | Q45: 54 | R45: 96 | S45: 3 | T45: 50 | U45: 58 | V45: 89 | W45: 69 | X45: 40 | Y45: 42 | Z45: 5 | AA45: 10 | AB45: 90 | AC45: 97 | AD45: 7
K46: 28 | L46: 15 | M46: 100 | N46: 28 | O46: 4 | P46: 9 | Q46: 94 | R46: 43 | S46: 56 | T46: 98 | U46: 80 | V46: 86 | W46: 71 | X46: 40 | Y46: 15 | Z46: 90 | AA46: 70 | AB46: 18 | AC46: 61 | AD46: 100
K47: 99 | L47: 3 | M47: 52 | N47: 27 | O47: 39 | P47: 60 | Q47: 4 | R47: 18 | S47: 63 | T47: 56 | U47: 22 | V47: 66 | W47: 36 | X47: 51 | Y47: 18 | Z47: 29 | AA47: 14 | AB47: 33 | AC47: 53 | AD47: 55
K48: 24 | L48: 32 | M48: 55 | N48: 62 | O48: 100 | P48: 30 | Q48: 82 | R48: 17 | S48: 79 | T48: 11 | U48: 41 | V48: 86 | W48: 87 | X48: 71 | Y48: 67 | Z48: 93 | AA48: 38 | AB48: 54 | AC48: 44 | AD48: 71
K49: 19 | L49: 28 | M49: 46 | N49: 73 | O49: 83 | P49: 78 | Q49: 96 | R49: 39 | S49: 32 | T49: 42 | U49: 45 | V49: 66 | W49: 2 | X49: 7 | Y49: 87 | Z49: 67 | AA49: 4 | AB49: 45 | AC49: 69 | AD49: 90
K50: 21 | L50: 31 | M50: 14 | N50: 78 | O50: 87 | P50: 14 | Q50: 49 | R50: 85 | S50: 75 | T50: 84 | U50: 43 | V50: 63 | W50: 48 | X50: 88 | Y50: 61 | Z50: 71 | AA50: 20 | AB50: 71 | AC50: 58 | AD50: 32
K51: 30 | L51: 76 | M51: 53 | N51: 91 | O51: 46 | P51: 94 | Q51: 2 | R51: 64 | S51: 34 | T51: 41 | U51: 41 | V51: 26 | W51: 17 | X51: 44 | Y51: 46 | Z51: 100 | AA51: 63 | AB51: 29 | AC51: 24 | AD51: 7
K52: 93 | L52: 98 | M52: 84 | N52: 86 | O52: 97 | P52: 9 | Q52: 98 | R52: 94 | S52: 44 | T52: 61 | U52: 47 | V52: 37 | W52: 24 | X52: 28 | Y52: 75 | Z52: 84 | AA52: 24 | AB52: 96 | AC52: 11 | AD52: 4
K53: 32 | L53: 54 | M53: 80 | N53: 51 | O53: 59 | P53: 62 | Q53: 6 | R53: 8 | S53: 29 | T53: 4 | U53: 30 | V53: 63 | W53: 63 | X53: 77 | Y53: 3 | Z53: 11 | AA53: 68 | AB53: 60 | AC53: 60 | AD53: 52
K54: 35 | L54: 32 | M54: 25 | N54: 34 | O54: 37 | P54: 83 | Q54: 51 | R54: 54 | S54: 45 | T54: 52 | U54: 57 | V54: 4 | W54: 41 | X54: 22 | Y54: 37 | Z54: 31 | AA54: 48 | AB54: 24 | AC54: 53 | AD54: 36
K55: 82 | L55: 86 | M55: 46 | N55: 28 | O55: 54 | P55: 56 | Q55: 26 | R55: 57 | S55: 3 | T55: 67 | U55: 91 | V55: 83 | W55: 73 | X55: 74 | Y55: 6 | Z55: 54 | AA55: 46 | AB55: 32 | AC55: 19 | AD55: 80
K56: 23 | L56: 94 | M56: 71 | N56: 95 | O56: 56 | P56: 37 | Q56: 97 | R56: 84 | S56: 7 | T56: 68 | U56: 8 | V56: 51 | W56: 24 | X56: 19 | Y56: 55 | Z56: 32 | AA56: 8 | AB56: 2 | AC56: 67 | AD56: 19
K57: 59 | L57: 62 | M57: 88 | N57: 21 | O57: 2 | P57: 57 | Q57: 19 | R57: 66 | S57: 65 | T57: 32 | U57: 89 | V57: 11 | W57: 58 | X57: 49 | Y57: 47 | Z57: 38 | AA57: 28 | AB57: 49 | AC57: 39 | AD57: 31
K58: 17 | L58: 19 | M58: 95 | N58: 63 | O58: 4 | P58: 99 | Q58: 93 | R58: 50 | S58: 100 | T58: 2 | U58: 28 | V58: 34 | W58: 92 | X58: 64 | Y58: 34 | Z58: 58 | AA58: 32 | AB58: 14 | AC58: 27 | AD58: 14
K59: 4 | L59: 62 | M59: 36 | N59: 55 | O59: 37 | P59: 49 | Q59: 11 | R59: 62 | S59: 7 | T59: 70 | U59: 31 | V59: 11 | W59: 67 | X59: 64 | Y59: 54 | Z59: 37 | AA59: 90 | AB59: 40 | AC59: 81 | AD59: 97
K60: 67 | L60: 58 | M60: 54 | N60: 91 | O60: 39 | P60: 76 | Q60: 25 | R60: 22 | S60: 55 | T60: 23 | U60: 23 | V60: 66 | W60: 74 | X60: 49 | Y60: 57 | Z60: 66 | AA60: 3 | AB60: 23 | AC60: 17 | AD60: 76
K61: 17 | L61: 41 | M61: 21 | N61: 18 | O61: 24 | P61: 6 | Q61: 65 | R61: 10 | S61: 83 | T61: 45 | U61: 42 | V61: 84 | W61: 57 | X61: 73 | Y61: 25 | Z61: 58 | AA61: 52 | AB61: 26 | AC61: 91 | AD61: 48
K62: 71 | L62: 8 | M62: 45 | N62: 90 | O62: 1 | P62: 34 | Q62: 11 | R62: 60 | S62: 21 | T62: 93 | U62: 63 | V62: 88 | W62: 93 | X62: 15 | Y62: 18 | Z62: 40 | AA62: 35 | AB62: 16 | AC62: 98 | AD62: 26
K63: 48 | L63: 41 | M63: 36 | N63: 7 | O63: 69 | P63: 54 | Q63: 5 | R63: 9 | S63: 46 | T63: 46 | U63: 60 | V63: 90 | W63: 18 | X63: 3 | Y63: 10 | Z63: 84 | AA63: 79 | AB63: 47 | AC63: 67 | AD63: 41
K64: 29 | L64: 97 | M64: 30 | N64: 76 | O64: 59 | P64: 85 | Q64: 39 | R64: 96 | S64: 30 | T64: 40 | U64: 26 | V64: 36 | W64: 82 | X64: 50 | Y64: 80 | Z64: 68 | AA64: 96 | AB64: 82 | AC64: 17 | AD64: 97
K65: 58 | L65: 15 | M65: 37 | N65: 56 | O65: 25 | P65: 71 | Q65: 3 | R65: 78 | S65: 83 | T65: 65 | U65: 98 | V65: 46 | W65: 78 | X65: 59 | Y65: 25 | Z65: 9 | AA65: 28 | AB65: 74 | AC65: 1 | AD65: 62
K66: 64 | L66: 66 | M66: 57 | N66: 26 | O66: 39 | P66: 63 | Q66: 17 | R66: 46 | S66: 76 | T66: 99 | U66: 14 | V66: 37 | W66: 30 | X66: 96 | Y66: 5 | Z66: 76 | AA66: 49 | AB66: 65 | AC66: 52 | AD66: 50
K67: 14 | L67: 48 | M67: 78 | N67: 6 | O67: 72 | P67: 26 | Q67: 1 | R67: 84 | S67: 26 | T67: 48 | U67: 29 | V67: 43 | W67: 21 | X67: 16 | Y67: 65 | Z67: 24 | AA67: 16 | AB67: 82 | AC67: 99 | AD67: 56
K68: 67 | L68: 56 | M68: 76 | N68: 7 | O68: 97 | P68: 89 | Q68: 44 | R68: 99 | S68: 19 | T68: 73 | U68: 67 | V68: 47 | W68: 34 | X68: 84 | Y68: 85 | Z68: 42 | AA68: 95 | AB68: 78 | AC68: 91 | AD68: 97
K69: 90 | L69: 97 | M69: 41 | N69: 63 | O69: 79 | P69: 20 | Q69: 90 | R69: 95 | S69: 87 | T69: 92 | U69: 71 | V69: 50 | W69: 68 | X69: 16 | Y69: 50 | Z69: 17 | AA69: 53 | AB69: 37 | AC69: 33 | AD69: 94
K70: 83 | L70: 17 | M70: 24 | N70: 75 | O70: 31 | P70: 11 | Q70: 98 | R70: 72 | S70: 91 | T70: 5 | U70: 65 | V70: 100 | W70: 75 | X70: 83 | Y70: 59 | Z70: 92 | AA70: 40 | AB70: 73 | AC70: 19 | AD70: 70
K71: 21 | L71: 32 | M71: 27 | N71: 46 | O71: 59 | P71: 22 | Q71: 82 | R71: 12 | S71: 65 | T71: 48 | U71: 24 | V71: 83 | W71: 93 | X71: 88 | Y71: 84 | Z71: 64 | AA71: 85 | AB71: 41 | AC71: 63 | AD71: 49
K72: 14 | L72: 27 | M72: 3 | N72: 62 | O72: 48 | P72: 39 | Q72: 43 | R72: 8 | S72: 81 | T72: 19 | U72: 36 | V72: 76 | W72: 57 | X72: 69 | Y72: 70 | Z72: 52 | AA72: 39 | AB72: 10 | AC72: 16 | AD72: 39
K73: 38 | L73: 87 | M73: 57 | N73: 5 | O73: 39 | P73: 100 | Q73: 56 | R73: 61 | S73: 5 | T73: 62 | U73: 84 | V73: 84 | W73: 11 | X73: 3 | Y73: 80 | Z73: 49 | AA73: 5 | AB73: 24 | AC73: 37 | AD73: 67
K74: 64 | L74: 15 | M74: 57 | N74: 23 | O74: 94 | P74: 63 | Q74: 96 | R74: 6 | S74: 54 | T74: 27 | U74: 1 | V74: 58 | W74: 23 | X74: 46 | Y74: 28 | Z74: 58 | AA74: 84 | AB74: 17 | AC74: 80 | AD74: 4
K75: 10 | L75: 24 | M75: 39 | N75: 52 | O75: 80 | P75: 100 | Q75: 28 | R75: 88 | S75: 21 | T75: 15 | U75: 62 | V75: 70 | W75: 91 | X75: 48 | Y75: 36 | Z75: 56 | AA75: 15 | AB75: 88 | AC75: 39 | AD75: 93
K76: 53 | L76: 10 | M76: 66 | N76: 31 | O76: 7 | P76: 99 | Q76: 48 | R76: 21 | S76: 85 | T76: 20 | U76: 63 | V76: 37 | W76: 20 | X76: 86 | Y76: 24 | Z76: 81 | AA76: 78 | AB76: 89 | AC76: 69 | AD76: 6
K77: 79 | L77: 70 | M77: 94 | N77: 39 | O77: 66 | P77: 37 | Q77: 7 | R77: 78 | S77: 57 | T77: 92 | U77: 31 | V77: 47 | W77: 61 | X77: 93 | Y77: 13 | Z77: 91 | AA77: 62 | AB77: 70 | AC77: 41 | AD77: 3
K78: 90 | L78: 19 | M78: 84 | N78: 3 | O78: 4 | P78: 48 | Q78: 34 | R78: 91 | S78: 41 | T78: 11 | U78: 41 | V78: 40 | W78: 59 | X78: 2 | Y78: 100 | Z78: 33 | AA78: 74 | AB78: 81 | AC78: 81 | AD78: 44
K79: 60 | L79: 59 | M79: 36 | N79: 83 | O79: 90 | P79: 42 | Q79: 45 | R79: 17 | S79: 64 | T79: 83 | U79: 9 | V79: 66 | W79: 92 | X79: 37 | Y79: 83 | Z79: 58 | AA79: 31 | AB79: 4 | AC79: 66 | AD79: 40
K80: 67 | L80: 9 | M80: 71 | N80: 3 | O80: 84 | P80: 2 | Q80: 95 | R80: 44 | S80: 67 | T80: 18 | U80: 14 | V80: 12 | W80: 31 | X80: 77 | Y80: 11 | Z80: 53 | AA80: 7 | AB80: 56 | AC80: 47 | AD80: 7
K81: 22 | L81: 53 | M81: 52 | N81: 45 | O81: 50 | P81: 20 | Q81: 39 | R81: 23 | S81: 68 | T81: 48 | U81: 12 | V81: 5 | W81: 79 | X81: 51 | Y81: 73 | Z81: 41 | AA81: 45 | AB81: 37 | AC81: 15 | AD81: 44
K82: 80 | L82: 17 | M82: 94 | N82: 59 | O82: 82 | P82: 93 | Q82: 50 | R82: 47 | S82: 67 | T82: 46 | U82: 19 | V82: 28 | W82: 23 | X82: 33 | Y82: 4 | Z82: 62 | AA82: 29 | AB82: 27 | AC82: 44 | AD82: 15
K83: 86 | L83: 16 | M83: 44 | N83: 67 | O83: 60 | P83: 14 | Q83: 38 | R83: 99 | S83: 57 | T83: 37 | U83: 53 | V83: 48 | W83: 92 | X83: 63 | Y83: 14 | Z83: 15 | AA83: 52 | AB83: 50 | AC83: 92 | AD83: 43
K84: 41 | L84: 46 | M84: 51 | N84: 42 | O84: 50 | P84: 52 | Q84: 38 | R84: 16 | S84: 49 | T84: 60 | U84: 66 | V84: 4 | W84: 10 | X84: 61 | Y84: 75 | Z84: 62 | AA84: 89 | AB84: 19 | AC84: 47 | AD84: 48
K85: 8 | L85: 66 | M85: 13 | N85: 63 | O85: 76 | P85: 23 | Q85: 58 | R85: 1 | S85: 70 | T85: 47 | U85: 15 | V85: 11 | W85: 25 | X85: 50 | Y85: 14 | Z85: 88 | AA85: 49 | AB85: 16 | AC85: 14 | AD85: 94
K86: 58 | L86: 52 | M86: 88 | N86: 11 | O86: 35 | P86: 21 | Q86: 57 | R86: 6 | S86: 14 | T86: 82 | U86: 3 | V86: 30 | W86: 59 | X86: 11 | Y86: 72 | Z86: 82 | AA86: 26 | AB86: 50 | AC86: 63 | AD86: 41
K87: 9 | L87: 10 | M87: 80 | N87: 57 | O87: 97 | P87: 49 | Q87: 89 | R87: 1 | S87: 5 | T87: 83 | U87: 24 | V87: 65 | W87: 32 | X87: 94 | Y87: 90 | Z87: 63 | AA87: 6 | AB87: 76 | AC87: 15 | AD87: 56
K88: 21 | L88: 23 | M88: 18 | N88: 11 | O88: 83 | P88: 7 | Q88: 50 | R88: 96 | S88: 3 | T88: 33 | U88: 46 | V88: 95 | W88: 22 | X88: 99 | Y88: 54 | Z88: 46 | AA88: 36 | AB88: 63 | AC88: 38 | AD88: 7
K89: 64 | L89: 79 | M89: 96 | N89: 60 | O89: 21 | P89: 49 | Q89: 80 | R89: 80 | S89: 80 | T89: 52 | U89: 4 | V89: 6 | W89: 2 | X89: 96 | Y89: 16 | Z89: 42 | AA89: 51 | AB89: 15 | AC89: 38 | AD89: 59
K90: 59 | L90: 93 | M90: 64 | N90: 38 | O90: 26 | P90: 71 | Q90: 1 | R90: 66 | S90: 39 | T90: 49 | U90: 58 | V90: 11 | W90: 42 | X90: 23 | Y90: 50 | Z90: 40 | AA90: 57 | AB90: 84 | AC90: 62 | AD90: 14
K91: 18 | L91: 54 | M91: 3 | N91: 25 | O91: 10 | P91: 80 | Q91: 46 | R91: 49 | S91: 26 | T91: 52 | U91: 92 | V91: 36 | W91: 2 | X91: 14 | Y91: 22 | Z91: 82 | AA91: 9 | AB91: 61 | AC91: 72 | AD91: 77
K92: 17 | L92: 49 | M92: 70 | N92: 22 | O92: 71 | P92: 98 | Q92: 81 | R92: 44 | S92: 23 | T92: 94 | U92: 46 | V92: 84 | W92: 7 | X92: 72 | Y92: 88 | Z92: 46 | AA92: 64 | AB92: 51 | AC92: 68 | AD92: 71
K93: 22 | L93: 24 | M93: 96 | N93: 90 | O93: 79 | P93: 26 | Q93: 13 | R93: 63 | S93: 60 | T93: 59 | U93: 38 | V93: 35 | W93: 22 | X93: 25 | Y93: 50 | Z93: 83 | AA93: 60 | AB93: 85 | AC93: 94 | AD93: 24
K94: 72 | L94: 62 | M94: 35 | N94: 54 | O94: 98 | P94: 13 | Q94: 94 | R94: 56 | S94: 28 | T94: 85 | U94: 44 | V94: 97 | W94: 88 | X94: 39 | Y94: 57 | Z94: 66 | AA94: 70 | AB94: 97 | AC94: 30 | AD94: 77
K95: 56 | L95: 81 | M95: 96 | N95: 90 | O95: 42 | P95: 44 | Q95: 88 | R95: 33 | S95: 37 | T95: 61 | U95: 67 | V95: 11 | W95: 88 | X95: 12 | Y95: 51 | Z95: 21 | AA95: 40 | AB95: 12 | AC95: 10 | AD95: 37
K96: 10 | L96: 95 | M96: 47 | N96: 39 | O96: 40 | P96: 74 | Q96: 48 | R96: 72 | S96: 44 | T96: 83 | U96: 30 | V96: 93 | W96: 97 | X96: 12 | Y96: 78 | Z96: 55 | AA96: 78 | AB96: 89 | AC96: 6 | AD96: 20
K97: 72 | L97: 77 | M97: 68 | N97: 43 | O97: 75 | P97: 89 | Q97: 23 | R97: 27 | S97: 53 | T97: 55 | U97: 59 | V97: 36 | W97: 73 | X97: 89 | Y97: 67 | Z97: 83 | AA97: 56 | AB97: 62 | AC97: 87 | AD97: 85
K98: 72 | L98: 46 | M98: 33 | N98: 91 | O98: 76 | P98: 68 | Q98: 54 | R98: 82 | S98: 74 | T98: 73 | U98: 26 | V98: 66 | W98: 95 | X98: 46 | Y98: 21 | Z98: 56 | AA98: 46 | AB98: 19 | AC98: 80 | AD98: 14
K99: 94 | L99: 62 | M99: 70 | N99: 62 | O99: 1 | P99: 71 | Q99: 46 | R99: 49 | S99: 90 | T99: 97 | U99: 12 | V99: 61 | W99: 50 | X99: 100 | Y99: 58 | Z99: 92 | AA99: 31 | AB99: 3 | AC99: 37 | AD99: 63
K100: 44 | L100: 16 | M100: 63 | N100: 96 | O100: 93 | P100: 42 | Q100: 98 | R100: 36 | S100: 32 | T100: 31 | U100: 92 | V100: 30 | W100: 61 | X100: 73 | Y100: 2 | Z100: 83 | AA100: 83 | AB100: 55 | AC100: 41 | AD100: 20
K101: 4 | L101: 78 | M101: 4 | N101: 57 | O101: 89 | P101: 63 | Q101: 14 | R101: 63 | S101: 11 | T101: 40 | U101: 87 | V101: 10 | W101: 30 | X101: 39 | Y101: 51 | Z101: 55 | AA101: 34 | AB101: 74 | AC101: 72 | AD101: 58
K102: 44 | L102: 53 | M102: 42 | N102: 63 | O102: 53 | P102: 73 | Q102: 15 | R102: 21 | S102: 38 | T102: 47 | U102: 62 | V102: 23 | W102: 62 | X102: 19 | Y102: 5 | Z102: 96 | AA102: 95 | AB102: 80 | AC102: 4 | AD102: 56
K103: 80 | L103: 8 | M103: 23 | N103: 12 | O103: 57 | P103: 71 | Q103: 55 | R103: 48 | S103: 77 | T103: 6 | U103: 80 | V103: 63 | W103: 34 | X103: 38 | Y103: 75 | Z103: 73 | AA103: 65 | AB103: 62 | AC103: 50 | AD103: 41
K104: 41 | L104: 77 | M104: 13 | N104: 57 | O104: 84 | P104: 1 | Q104: 92 | R104: 13 | S104: 19 | T104: 73 | U104: 93 | V104: 13 | W104: 72 | X104: 10 | Y104: 45 | Z104: 43 | AA104: 66 | AB104: 64 | AC104: 68 | AD104: 9
K105: 21 | L105: 28 | M105: 20 | N105: 14 | O105: 34 | P105: 77 | Q105: 12 | R105: 47 | S105: 30 | T105: 32 | U105: 43 | V105: 59 | W105: 89 | X105: 24 | Y105: 56 | Z105: 64 | AA105: 44 | AB105: 26 | AC105: 47 | AD105: 31
K106: 35 | L106: 79 | M106: 17 | N106: 53 | O106: 48 | P106: 31 | Q106: 52 | R106: 29 | S106: 16 | T106: 42 | U106: 32 | V106: 29 | W106: 99 | X106: 56 | Y106: 63 | Z106: 14 | AA106: 30 | AB106: 28 | AC106: 94 | AD106: 59
K107: 44 | L107: 19 | M107: 27 | N107: 44 | O107: 81 | P107: 54 | Q107: 47 | R107: 8 | S107: 24 | T107: 67 | U107: 7 | V107: 84 | W107: 28 | X107: 77 | Y107: 28 | Z107: 76 | AA107: 27 | AB107: 96 | AC107: 84 | AD107: 6
K108: 38 | L108: 82 | M108: 78 | N108: 93 | O108: 9 | P108: 49 | Q108: 1 | R108: 20 | S108: 76 | T108: 63 | U108: 63 | V108: 77 | W108: 16 | X108: 95 | Y108: 82 | Z108: 15 | AA108: 8 | AB108: 4 | AC108: 41 | AD108: 50
K109: 45 | L109: 91 | M109: 77 | N109: 37 | O109: 45 | P109: 46 | Q109: 5 | R109: 71 | S109: 47 | T109: 15 | U109: 18 | V109: 46 | W109: 36 | X109: 8 | Y109: 63 | Z109: 8 | AA109: 15 | AB109: 28 | AC109: 32 | AD109: 30
K110: 47 | L110: 24 | M110: 39 | N110: 50 | O110: 25 | P110: 65 | Q110: 52 | R110: 71 | S110: 14 | T110: 24 | U110: 94 | V110: 59 | W110: 63 | X110: 65 | Y110: 31 | Z110: 93 | AA110: 16 | AB110: 71 | AC110: 88 | AD110: 3
K111: 64 | L111: 36 | M111: 57 | N111: 8 | O111: 7 | P111: 85 | Q111: 97 | R111: 6 | S111: 16 | T111: 11 | U111: 84 | V111: 28 | W111: 95 | X111: 38 | Y111: 72 | Z111: 50 | AA111: 5 | AB111: 84 | AC111: 15 | AD111: 2
K112: 79 | L112: 62 | M112: 44 | N112: 21 | O112: 75 | P112: 43 | Q112: 58 | R112: 44 | S112: 84 | T112: 64 | U112: 99 | V112: 80 | W112: 70 | X112: 84 | Y112: 97 | Z112: 90 | AA112: 3 | AB112: 93 | AC112: 96 | AD112: 47
K113: 25 | L113: 11 | M113: 56 | N113: 79 | O113: 80 | P113: 68 | Q113: 68 | R113: 25 | S113: 21 | T113: 63 | U113: 85 | V113: 79 | W113: 37 | X113: 69 | Y113: 82 | Z113: 95 | AA113: 100 | AB113: 71 | AC113: 26 | AD113: 58
K114: 47 | L114: 1 | M114: 96 | N114: 34 | O114: 33 | P114: 30 | Q114: 92 | R114: 70 | S114: 17 | T114: 3 | U114: 22 | V114: 59 | W114: 5 | X114: 36 | Y114: 3 | Z114: 39 | AA114: 52 | AB114: 1 | AC114: 45 | AD114: 7
K115: 2 | L115: 65 | M115: 45 | N115: 17 | O115: 6 | P115: 16 | Q115: 19 | R115: 61 | S115: 9 | T115: 23 | U115: 37 | V115: 48 | W115: 20 | X115: 20 | Y115: 40 | Z115: 75 | AA115: 65 | AB115: 42 | AC115: 17 | AD115: 70
K116: 73 | L116: 21 | M116: 96 | N116: 87 | O116: 87 | P116: 33 | Q116: 95 | R116: 99 | S116: 19 | T116: 92 | U116: 88 | V116: 4 | W116: 57 | X116: 79 | Y116: 9 | Z116: 84 | AA116: 2 | AB116: 41 | AC116: 9 | AD116: 13
K117: 97 | L117: 29 | M117: 26 | N117: 8 | O117: 25 | P117: 35 | Q117: 27 | R117: 30 | S117: 69 | T117: 28 | U117: 63 | V117: 84 | W117: 25 | X117: 27 | Y117: 3 | Z117: 4 | AA117: 44 | AB117: 79 | AC117: 55 | AD117: 61
K118: 62 | L118: 31 | M118: 48 | N118: 1 | O118: 100 | P118: 11 | Q118: 71 | R118: 77 | S118: 87 | T118: 38 | U118: 88 | V118: 82 | W118: 92 | X118: 100 | Y118: 100 | Z118: 32 | AA118: 59 | AB118: 7 | AC118: 1 | AD118: 72
K119: 22 | L119: 42 | M119: 23 | N119: 87 | O119: 55 | P119: 73 | Q119: 89 | R119: 22 | S119: 73 | T119: 27 | U119: 67 | V119: 74 | W119: 73 | X119: 32 | Y119: 35 | Z119: 100 | AA119: 22 | AB119: 60 | AC119: 37 | AD119: 62
K120: 48 | L120: 12 | M120: 99 | N120: 78 | O120: 21 | P120: 25 | Q120: 58 | R120: 88 | S120: 4 | T120: 39 | U120: 15 | V120: 5 | W120: 10 | X120: 51 | Y120: 64 | Z120: 23 | AA120: 93 | AB120: 67 | AC120: 3 | AD120: 84
K121: 63 | L121: 62 | M121: 60 | N121: 7 | O121: 95 | P121: 7 | Q121: 9 | R121: 20 | S121: 37 | T121: 63 | U121: 33 | V121: 60 | W121: 25 | X121: 59 | Y121: 91 | Z121: 15 | AA121: 76 | AB121: 44 | AC121: 28 | AD121: 70
K122: 59 | L122: 83 | M122: 41 | N122: 52 | O122: 33 | P122: 77 | Q122: 59 | R122: 28 | S122: 78 | T122: 49 | U122: 16 | V122: 17 | W122: 13 | X122: 92 | Y122: 8 | Z122: 77 | AA122: 38 | AB122: 83 | AC122: 41 | AD122: 91
K123: 23 | L123: 53 | M123: 55 | N123: 94 | O123: 79 | P123: 73 | Q123: 53 | R123: 45 | S123: 93 | T123: 69 | U123: 6 | V123: 55 | W123: 98 | X123: 4 | Y123: 99 | Z123: 58 | AA123: 5 | AB123: 92 | AC123: 23 | AD123: 45
K124: 73 | L124: 85 | M124: 62 | N124: 26 | O124: 65 | P124: 82 | Q124: 48 | R124: 55 | S124: 5 | T124: 82 | U124: 50 | V124: 68 | W124: 83 | X124: 6 | Y124: 32 | Z124: 7 | AA124: 84 | AB124: 77 | AC124: 76 | AD124: 56
K125: 87 | L125: 76 | M125: 44 | N125: 15 | O125: 5 | P125: 76 | Q125: 8 | R125: 73 | S125: 54 | T125: 18 | U125: 3 | V125: 40 | W125: 51 | X125: 87 | Y125: 91 | Z125: 87 | AA125: 50 | AB125: 92 | AC125: 62 | AD125: 81
K126: 25 | L126: 36 | M126: 61 | N126: 5 | O126: 95 | P126: 95 | Q126: 55 | R126: 44 | S126: 81 | T126: 51 | U126: 39 | V126: 13 | W126: 30 | X126: 54 | Y126: 49 | Z126: 1 | AA126: 31 | AB126: 100 | AC126: 16 | AD126: 40
K127: 87 | L127: 49 | M127: 6 | N127: 24 | O127: 96 | P127: 32 | Q127: 90 | R127: 43 | S127: 43 | T127: 36 | U127: 37 | V127: 56 | W127: 47 | X127: 79 | Y127: 51 | Z127: 14 | AA127: 2 | AB127: 55 | AC127: 93 | AD127: 38
K128: 1 | L128: 65 | M128: 3 | N128: 98 | O128: 88 | P128: 93 | Q128: 52 | R128: 26 | S128: 76 | T128: 97 | U128: 51 | V128: 42 | W128: 54 | X128: 3 | Y128: 84 | Z128: 69 | AA128: 53 | AB128: 19 | AC128: 95 | AD128: 95
K129: 25 | L129: 7 | M129: 5 | N129: 62 | O129: 60 | P129: 41 | Q129: 36 | R129: 43 | S129: 94 | T129: 66 | U129: 60 | V129: 24 | W129: 100 | X129: 23 | Y129: 72 | Z129: 92 | AA129: 42 | AB129: 63 | AC129: 99 | AD129: 96
K130: 3 | L130: 15 | M130: 36 | N130: 21 | O130: 81 | P130: 37 | Q130: 48 | R130: 67 | S130: 87 | T130: 79 | U130: 56 | V130: 50 | W130: 52 | X130: 6 | Y130: 49 | Z130: 61 | AA130: 93 | AB130: 86 | AC130: 70 | AD130: 67
K131: 21 | L131: 88 | M131: 92 | N131: 53 | O131: 26 | P131: 82 | Q131: 74 | R131: 30 | S131: 71 | T131: 37 | U131: 57 | V131: 38 | W131: 79 | X131: 52 | Y131: 81 | Z131: 29 | AA131: 93 | AB131: 50 | AC131: 46 | AD131: 53
K132: 46 | L132: 8 | M132: 27 | N132: 24 | O132: 80 | P132: 66 | Q132: 74 | R132: 33 | S132: 76 | T132: 70 | U132: 91 | V132: 60 | W132: 83 | X132: 26 | Y132: 92 | Z132: 63 | AA132: 37 | AB132: 72 | AC132: 38 | AD132: 66
K133: 41 | L133: 32 | M133: 70 | N133: 57 | O133: 7 | P133: 68 | Q133: 37 | R133: 55 | S133: 84 | T133: 29 | U133: 57 | V133: 5 | W133: 82 | X133: 48 | Y133: 26 | Z133: 40 | AA133: 20 | AB133: 7 | AC133: 84 | AD133: 34
K134: 74 | L134: 5 | M134: 50 | N134: 73 | O134: 14 | P134: 35 | Q134: 70 | R134: 87 | S134: 65 | T134: 56 | U134: 85 | V134: 51 | W134: 54 | X134: 75 | Y134: 88 | Z134: 27 | AA134: 35 | AB134: 13 | AC134: 20 | AD134: 28
K135: 8 | L135: 52 | M135: 77 | N135: 79 | O135: 18 | P135: 82 | Q135: 17 | R135: 29 | S135: 56 | T135: 56 | U135: 56 | V135: 43 | W135: 30 | X135: 82 | Y135: 39 | Z135: 9 | AA135: 11 | AB135: 36 | AC135: 50 | AD135: 33
K136: 64 | L136: 28 | M136: 1 | N136: 99 | O136: 41 | P136: 63 | Q136: 89 | R136: 69 | S136: 97 | T136: 26 | U136: 50 | V136: 30 | W136: 9 | X136: 44 | Y136: 38 | Z136: 9 | AA136: 19 | AB136: 25 | AC136: 64 | AD136: 74
K137: 60 | L137: 75 | M137: 59 | N137: 23 | O137: 50 | P137: 98 | Q137: 8 | R137: 91 | S137: 84 | T137: 25 | U137: 59 | V137: 21 | W137: 50 | X137: 94 | Y137: 4 | Z137: 32 | AA137: 36 | AB137: 13 | AC137: 71 | AD137: 60
K138: 24 | L138: 32 | M138: 42 | N138: 22 | O138: 45 | P138: 40 | Q138: 78 | R138: 92 | S138: 9 | T138: 76 | U138: 58 | V138: 32 | W138: 44 | X138: 50 | Y138: 57 | Z138: 98 | AA138: 55 | AB138: 18 | AC138: 18 | AD138: 88
K139: 66 | L139: 100 | M139: 97 | N139: 47 | O139: 89 | P139: 46 | Q139: 89 | R139: 73 | S139: 33 | T139: 29 | U139: 43 | V139: 46 | W139: 41 | X139: 83 | Y139: 59 | Z139: 75 | AA139: 66 | AB139: 65 | AC139: 88 | AD139: 32
K140: 5 | L140: 21 | M140: 61 | N140: 56 | O140: 43 | P140: 59 | Q140: 39 | R140: 19 | S140: 41 | T140: 82 | U140: 2 | V140: 73 | W140: 84 | X140: 3 | Y140: 11 | Z140: 36 | AA140: 69 | AB140: 53 | AC140: 10 | AD140: 33
K141: 51 | L141: 11 | M141: 13 | N141: 49 | O141: 60 | P141: 16 | Q141: 15 | R141: 94 | S141: 67 | T141: 91 | U141: 32 | V141: 65 | W141: 21 | X141: 89 | Y141: 53 | Z141: 90 | AA141: 23 | AB141: 79 | AC141: 75 | AD141: 37
K142: 80 | L142: 38 | M142: 15 | N142: 55 | O142: 84 | P142: 4 | Q142: 68 | R142: 40 | S142: 85 | T142: 2 | U142: 68 | V142: 46 | W142: 3 | X142: 49 | Y142: 96 | Z142: 43 | AA142: 66 | AB142: 16 | AC142: 68 | AD142: 85
K143: 69 | L143: 59 | M143: 95 | N143: 21 | O143: 59 | P143: 78 | Q143: 9 | R143: 59 | S143: 36 | T143: 68 | U143: 21 | V143: 98 | W143: 28 | X143: 28 | Y143: 43 | Z143: 75 | AA143: 15 | AB143: 15 | AC143: 46 | AD143: 97
K144: 44 | L144: 43 | M144: 36 | N144: 99 | O144: 84 | P144: 57 | Q144: 72 | R144: 11 | S144: 93 | T144: 84 | U144: 75 | V144: 56 | W144: 15 | X144: 80 | Y144: 83 | Z144: 32 | AA144: 36 | AB144: 100 | AC144: 78 | AD144: 96
K145: 36 | L145: 96 | M145: 63 | N145: 2 | O145: 69 | P145: 5 | Q145: 56 | R145: 70 | S145: 66 | T145: 65 | U145: 75 | V145: 10 | W145: 97 | X145: 100 | Y145: 60 | Z145: 1 | AA145: 52 | AB145: 42 | AC145: 8 | AD145: 90
K146: 90 | L146: 35 | M146: 33 | N146: 45 | O146: 100 | P146: 95 | Q146: 30 | R146: 23 | S146: 92 | T146: 15 | U146: 64 | V146: 41 | W146: 25 | X146: 55 | Y146: 7 | Z146: 30 | AA146: 61 | AB146: 71 | AC146: 5 | AD146: 68
K147: 29 | L147: 11 | M147: 97 | N147: 85 | O147: 100 | P147: 17 | Q147: 81 | R147: 87 | S147: 5 | T147: 71 | U147: 57 | V147: 87 | W147: 40 | X147: 30 | Y147: 39 | Z147: 55 | AA147: 79 | AB147: 98 | AC147: 85 | AD147: 23
K148: 87 | L148: 99 | M148: 83 | N148: 90 | O148: 96 | P148: 54 | Q148: 33 | R148: 56 | S148: 59 | T148: 32 | U148: 34 | V148: 56 | W148: 17 | X148: 12 | Y148: 94 | Z148: 57 | AA148: 99 | AB148: 20 | AC148: 35 | AD148: 92
K149: 80 | L149: 41 | M149: 1 | N149: 99 | O149: 56 | P149: 87 | Q149: 85 | R149: 74 | S149: 85 | T149: 29 | U149: 6 | V149: 73 | W149: 40 | X149: 42 | Y149: 65 | Z149: 73 | AA149: 22 | AB149: 7 | AC149: 7 | AD149: 99
K150: 67 | L150: 86 | M150: 89 | N150: 90 | O150: 17 | P150: 97 | Q150: 64 | R150: 6 | S150: 43 | T150: 23 | U150: 3 | V150: 74 | W150: 60 | X150: 9 | Y150: 26 | Z150: 83 | AA150: 36 | AB150: 58 | AC150: 66 | AD150: 35
K151: 78 | L151: 98 | M151: 73 | N151: 2 | O151: 43 | P151: 55 | Q151: 81 | R151: 46 | S151: 6 | T151: 58 | U151: 18 | V151: 96 | W151: 91 | X151: 86 | Y151: 93 | Z151: 2 | AA151: 100 | AB151: 15 | AC151: 54 | AD151: 54
K152: 59 | L152: 7 | M152: 61 | N152: 27 | O152: 45 | P152: 25 | Q152: 32 | R152: 47 | S152: 66 | T152: 95 | U152: 22 | V152: 31 | W152: 61 | X152: 93 | Y152: 26 | Z152: 3 | AA152: 67 | AB152: 9 | AC152: 3 | AD152: 38
K153: 50 | L153: 65 | M153: 6 | N153: 73 | O153: 62 | P153: 5 | Q153: 96 | R153: 69 | S153: 65 | T153: 21 | U153: 72 | V153: 10 | W153: 27 | X153: 58 | Y153: 29 | Z153: 28 | AA153: 35 | AB153: 27 | AC153: 68 | AD153: 2
K154: 91 | L154: 58 | M154: 44 | N154: 11 | O154: 100 | P154: 82 | Q154: 50 | R154: 28 | S154: 26 | T154: 93 | U154: 81 | V154: 15 | W154: 33 | X154: 49 | Y154: 62 | Z154: 75 | AA154: 50 | AB154: 5 | AC154: 45 | AD154: 20
K155: 36 | L155: 92 | M155: 28 | N155: 37 | O155: 38 | P155: 4 | Q155: 30 | R155: 99 | S155: 17 | T155: 88 | U155: 37 | V155: 90 | W155: 1 | X155: 77 | Y155: 59 | Z155: 61 | AA155: 73 | AB155: 66 | AC155: 32 | AD155: 39
K156: 93 | L156: 31 | M156: 27 | N156: 55 | O156: 85 | P156: 54 | Q156: 65 | R156: 94 | S156: 90 | T156: 56 | U156: 4 | V156: 3 | W156: 84 | X156: 8 | Y156: 56 | Z156: 20 | AA156: 9 | AB156: 91 | AC156: 72 | AD156: 19
K157: 31 | L157: 42 | M157: 27 | N157: 37 | O157: 83 | P157: 42 | Q157: 5 | R157: 43 | S157: 24 | T157: 68 | U157: 57 | V157: 97 | W157: 67 | X157: 13 | Y157: 41 | Z157: 20 | AA157: 38 | AB157: 39 | AC157: 11 | AD157: 46
K158: 32 | L158: 76 | M158: 74 | N158: 40 | O158: 8 | P158: 61 | Q158: 46 | R158: 73 | S158: 31 | T158: 92 | U158: 79 | V158: 87 | W158: 18 | X158: 8 | Y158: 70 | Z158: 43 | AA158: 40 | AB158: 74 | AC158: 98 | AD158: 73
K159: 36 | L159: 13 | M159: 30 | N159: 44 | O159: 71 | P159: 60 | Q159: 83 | R159: 68 | S159: 76 | T159: 20 | U159: 8 | V159: 48 | W159: 25 | X159: 58 | Y159: 33 | Z159: 53 | AA159: 72 | AB159: 18 | AC159: 12 | AD159: 41
K160: 10 | L160: 72 | M160: 34 | N160: 68 | O160: 46 | P160: 1 | Q160: 35 | R160: 84 | S160: 32 | T160: 34 | U160: 98 | V160: 27 | W160: 52 | X160: 51 | Y160: 8 | Z160: 16 | AA160: 61 | AB160: 6 | AC160: 68 | AD160: 43
K161: 51 | L161: 41 | M161: 64 | N161: 66 | O161: 64 | P161: 25 | Q161: 66 | R161: 21 | S161: 38 | T161: 45 | U161: 31 | V161: 34 | W161: 17 | X161: 4 | Y161: 83 | Z161: 1 | AA161: 60 | AB161: 22 | AC161: 74 | AD161: 33
K162: 54 | L162: 51 | M162: 44 | N162: 70 | O162: 39 | P162: 66 | Q162: 38 | R162: 21 | S162: 74 | T162: 64 | U162: 99 | V162: 18 | W162: 98 | X162: 18 | Y162: 51 | Z162: 87 | AA162: 36 | AB162: 70 | AC162: 19 | AD162: 46
K163: 18 | L163: 22 | M163: 68 | N163: 19 | O163: 62 | P163: 49 | Q163: 31 | R163: 98 | S163: 76 | T163: 84 | U163: 89 | V163: 100 | W163: 96 | X163: 9 | Y163: 25 | Z163: 81 | AA163: 17 | AB163: 67 | AC163: 34 | AD163: 71
K164: 20 | L164: 36 | M164: 76 | N164: 29 | O164: 14 | P164: 36 | Q164: 22 | R164: 14 | S164: 68 | T164: 87 | U164: 89 | V164: 5 | W164: 42 | X164: 37 | Y164: 65 | Z164: 87 | AA164: 48 | AB164: 98 | AC164: 10 | AD164: 82
K165: 84 | L165: 81 | M165: 83 | N165: 45 | O165: 67 | P165: 76 | Q165: 65 | R165: 53 | S165: 76 | T165: 100 | U165: 39 | V165: 47 | W165: 28 | X165: 59 | Y165: 9 | Z165: 22 | AA165: 39 | AB165: 98 | AC165: 65 | AD165: 19
K166: 2 | L166: 32 | M166: 35 | N166: 35 | O166: 77 | P166: 100 | Q166: 51 | R166: 81 | S166: 67 | T166: 46 | U166: 93 | V166: 8 | W166: 83 | X166: 32 | Y166: 57 | Z166: 16 | AA166: 16 | AB166: 71 | AC166: 27 | AD166: 37
K167: 80 | L167: 80 | M167: 49 | N167: 44 | O167: 55 | P167: 44 | Q167: 25 | R167: 53 | S167: 58 | T167: 86 | U167: 24 | V167: 87 | W167: 48 | X167: 65 | Y167: 79 | Z167: 38 | AA167: 7 | AB167: 90 | AC167: 6 | AD167: 23
K168: 6 | L168: 73 | M168: 48 | N168: 54 | O168: 20 | P168: 12 | Q168: 73 | R168: 27 | S168: 82 | T168: 47 | U168: 50 | V168: 73 | W168: 76 | X168: 6 | Y168: 98 | Z168: 65 | AA168: 19 | AB168: 51 | AC168: 78 | AD168: 92
K169: 55 | L169: 88 | M169: 39 | N169: 92 | O169: 91 | P169: 88 | Q169: 70 | R169: 97 | S169: 86 | T169: 53 | U169: 95 | V169: 13 | W169: 61 | X169: 27 | Y169: 56 | Z169: 89 | AA169: 25 | AB169: 88 | AC169: 73 | AD169: 49
K170: 6 | L170: 14 | M170: 68 | N170: 28 | O170: 42 | P170: 87 | Q170: 68 | R170: 86 | S170: 16 | T170: 68 | U170: 5 | V170: 12 | W170: 97 | X170: 43 | Y170: 44 | Z170: 78 | AA170: 72 | AB170: 71 | AC170: 82 | AD170: 28
K171: 6 | L171: 85 | M171: 2 | N171: 88 | O171: 9 | P171: 46 | Q171: 3 | R171: 68 | S171: 30 | T171: 79 | U171: 3 | V171: 77 | W171: 14 | X171: 12 | Y171: 10 | Z171: 13 | AA171: 29 | AB171: 6 | AC171: 30 | AD171: 35
K172: 48 | L172: 82 | M172: 90 | N172: 87 | O172: 29 | P172: 56 | Q172: 68 | R172: 54 | S172: 49 | T172: 100 | U172: 34 | V172: 93 | W172: 31 | X172: 39 | Y172: 85 | Z172: 87 | AA172: 70 | AB172: 67 | AC172: 32 | AD172: 69
K173: 49 | L173: 16 | M173: 70 | N173: 33 | O173: 38 | P173: 89 | Q173: 89 | R173: 38 | S173: 22 | T173: 56 | U173: 2 | V173: 22 | W173: 71 | X173: 10 | Y173: 74 | Z173: 95 | AA173: 96 | AB173: 34 | AC173: 99 | AD173: 53
K174: 89 | L174: 65 | M174: 76 | N174: 38 | O174: 66 | P174: 65 | Q174: 90 | R174: 52 | S174: 67 | T174: 74 | U174: 77 | V174: 95 | W174: 88 | X174: 25 | Y174: 10 | Z174: 67 | AA174: 89 | AB174: 69 | AC174: 42 | AD174: 2
K175: 82 | L175: 96 | M175: 81 | N175: 70 | O175: 57 | P175: 16 | Q175: 56 | R175: 37 | S175: 50 | T175: 6 | U175: 73 | V175: 11 | W175: 82 | X175: 8 | Y175: 78 | Z175: 66 | AA175: 30 | AB175: 97 | AC175: 83 | AD175: 68
K176: 29 | L176: 39 | M176: 13 | N176: 40 | O176: 71 | P176: 72 | Q176: 68 | R176: 55 | S176: 21 | T176: 65 | U176: 45 | V176: 30 | W176: 73 | X176: 36 | Y176: 83 | Z176: 50 | AA176: 28 | AB176: 39 | AC176: 57 | AD176: 91
K177: 11 | L177: 49 | M177: 96 | N177: 18 | O177: 36 | P177: 30 | Q177: 71 | R177: 10 | S177: 51 | T177: 32 | U177: 27 | V177: 8 | W177: 26 | X177: 2 | Y177: 45 | Z177: 59 | AA177: 81 | AB177: 53 | AC177: 1 | AD177: 75
K178: 43 | L178: 21 | M178: 73 | N178: 40 | O178: 37 | P178: 28 | Q178: 24 | R178: 4 | S178: 14 | T178: 56 | U178: 65 | V178: 78 | W178: 7 | X178: 74 | Y178: 71 | Z178: 47 | AA178: 1 | AB178: 30 | AC178: 27 | AD178: 76
K179: 17 | L179: 77 | M179: 29 | N179: 50 | O179: 77 | P179: 10 | Q179: 53 | R179: 30 | S179: 55 | T179: 77 | U179: 79 | V179: 48 | W179: 25 | X179: 70 | Y179: 87 | Z179: 64 | AA179: 15 | AB179: 15 | AC179: 72 | AD179: 32
K180: 100 | L180: 87 | M180: 58 | N180: 88 | O180: 19 | P180: 44 | Q180: 54 | R180: 82 | S180: 62 | T180: 18 | U180: 84 | V180: 10 | W180: 61 | X180: 51 | Y180: 76 | Z180: 97 | AA180: 63 | AB180: 47 | AC180: 53 | AD180: 29
K181: 65 | L181: 56 | M181: 63 | N181: 89 | O181: 78 | P181: 60 | Q181: 49 | R181: 39 | S181: 34 | T181: 92 | U181: 15 | V181: 100 | W181: 19 | X181: 90 | Y181: 16 | Z181: 86 | AA181: 11 | AB181: 76 | AC181: 81 | AD181: 39
K182: 26 | L182: 50 | M182: 7 | N182: 90 | O182: 32 | P182: 25 | Q182: 80 | R182: 80 | S182: 9 | T182: 77 | U182: 47 | V182: 84 | W182: 5 | X182: 91 | Y182: 13 | Z182: 8 | AA182: 39 | AB182: 81 | AC182: 4 | AD182: 61
K183: 85 | L183: 4 | M183: 11 | N183: 95 | O183: 8 | P183: 72 | Q183: 16 | R183: 30 | S183: 36 | T183: 6 | U183: 38 | V183: 31 | W183: 51 | X183: 87 | Y183: 63 | Z183: 27 | AA183: 45 | AB183: 49 | AC183: 50 | AD183: 65
K184: 27 | L184: 34 | M184: 52 | N184: 95 | O184: 58 | P184: 72 | Q184: 88 | R184: 48 | S184: 92 | T184: 13 | U184: 86 | V184: 93 | W184: 91 | X184: 28 | Y184: 46 | Z184: 23 | AA184: 88 | AB184: 85 | AC184: 35 | AD184: 40
K185: 74 | L185: 50 | M185: 36 | N185: 79 | O185: 4 | P185: 91 | Q185: 62 | R185: 30 | S185: 79 | T185: 44 | U185: 2 | V185: 18 | W185: 39 | X185: 47 | Y185: 58 | Z185: 8 | AA185: 15 | AB185: 90 | AC185: 15 | AD185: 32
K186: 90 | L186: 4 | M186: 53 | N186: 74 | O186: 9 | P186: 37 | Q186: 100 | R186: 77 | S186: 22 | T186: 19 | U186: 16 | V186: 51 | W186: 66 | X186: 27 | Y186: 68 | Z186: 38 | AA186: 35 | AB186: 85 | AC186: 43 | AD186: 24
K187: 81 | L187: 67 | M187: 18 | N187: 3 | O187: 36 | P187: 41 | Q187: 24 | R187: 51 | S187: 89 | T187: 8 | U187: 90 | V187: 100 | W187: 27 | X187: 59 | Y187: 4 | Z187: 52 | AA187: 3 | AB187: 43 | AC187: 57 | AD187: 17
K188: 87 | L188: 10 | M188: 62 | N188: 20 | O188: 81 | P188: 35 | Q188: 2 | R188: 71 | S188: 26 | T188: 27 | U188: 50 | V188: 100 | W188: 5 | X188: 12 | Y188: 62 | Z188: 10 | AA188: 44 | AB188: 48 | AC188: 71 | AD188: 75
K189: 85 | L189: 30 | M189: 97 | N189: 86 | O189: 13 | P189: 26 | Q189: 91 | R189: 11 | S189: 80 | T189: 60 | U189: 98 | V189: 27 | W189: 76 | X189: 20 | Y189: 63 | Z189: 11 | AA189: 98 | AB189: 3 | AC189: 100 | AD189: 16
K190: 63 | L190: 71 | M190: 10 | N190: 68 | O190: 99 | P190: 9 | Q190: 92 | R190: 4 | S190: 75 | T190: 99 | U190: 24 | V190: 10 | W190: 49 | X190: 30 | Y190: 29 | Z190: 55 | AA190: 16 | AB190: 28 | AC190: 9 | AD190: 72
K191: 8 | L191: 18 | M191: 40 | N191: 81 | O191: 20 | P191: 19 | Q191: 21 | R191: 59 | S191: 12 | T191: 4 | U191: 72 | V191: 22 | W191: 93 | X191: 40 | Y191: 35 | Z191: 2 | AA191: 82 | AB191: 85 | AC191: 97 | AD191: 87
K192: 14 | L192: 23 | M192: 86 | N192: 50 | O192: 65 | P192: 69 | Q192: 52 | R192: 75 | S192: 28 | T192: 71 | U192: 32 | V192: 60 | W192: 39 | X192: 88 | Y192: 93 | Z192: 51 | AA192: 32 | AB192: 82 | AC192: 69 | AD192: 51
K193: 70 | L193: 68 | M193: 65 | N193: 22 | O193: 38 | P193: 67 | Q193: 79 | R193: 97 | S193: 13 | T193: 88 | U193: 93 | V193: 51 | W193: 51 | X193: 17 | Y193: 89 | Z193: 70 | AA193: 63 | AB193: 68 | AC193: 73 | AD193: 42
K194: 35 | L194: 20 | M194: 39 | N194: 36 | O194: 60 | P194: 83 | Q194: 62 | R194: 69 | S194: 11 | T194: 42 | U194: 51 | V194: 34 | W194: 36 | X194: 50 | Y194: 48 | Z194: 7 | AA194: 7 | AB194: 34 | AC194: 32 | AD194: 16
K195: 24 | L195: 42 | M195: 69 | N195: 77 | O195: 10 | P195: 87 | Q195: 33 | R195: 4 | S195: 55 | T195: 91 | U195: 52 | V195: 15 | W195: 62 | X195: 12 | Y195: 7 | Z195: 66 | AA195: 38 | AB195: 41 | AC195: 87 | AD195: 41
K196: 66 | L196: 34 | M196: 71 | N196: 48 | O196: 48 | P196: 54 | Q196: 45 | R196: 82 | S196: 35 | T196: 14 | U196: 54 | V196: 11 | W196: 40 | X196: 58 | Y196: 23 | Z196: 97 | AA196: 30 | AB196: 5 | AC196: 84 | AD196: 59
K197: 75 | L197: 35 | M197: 7 | N197: 53 | O197: 28 | P197: 9 | Q197: 82 | R197: 61 | S197: 82 | T197: 66 | U197: 43 | V197: 90 | W197: 67 | X197: 21 | Y197: 39 | Z197: 41 | AA197: 13 | AB197: 30 | AC197: 75 | AD197: 20
K198: 47 | L198: 61 | M198: 39 | N198: 77 | O198: 63 | P198: 54 | Q198: 89 | R198: 92 | S198: 56 | T198: 91 | U198: 73 | V198: 69 | W198: 83 | X198: 17 | Y198: 19 | Z198: 16 | AA198: 84 | AB198: 43 | AC198: 31 | AD198: 27
K199: 75 | L199: 83 | M199: 38 | N199: 56 | O199: 55 | P199: 5 | Q199: 96 | R199: 90 | S199: 75 | T199: 65 | U199: 80 | V199: 18 | W199: 42 | X199: 64 | Y199: 31 | Z199: 92 | AA199: 65 | AB199: 83 | AC199: 1 | AD199: 33
K200: 62 | L200: 32 | M200: 49 | N200: 76 | O200: 59 | P200: 48 | Q200: 40 | R200: 29 | S200: 33 | T200: 60 | U200: 20 | V200: 82 | W200: 56 | X200: 87 | Y200: 70 | Z200: 7 | AA200: 74 | AB200: 16 | AC200: 95 | AD200: 60
K201: 90 | L201: 2 | M201: 31 | N201: 1 | O201: 86 | P201: 96 | Q201: 41 | R201: 11 | S201: 89 | T201: 62 | U201: 22 | V201: 57 | W201: 67 | X201: 77 | Y201: 13 | Z201: 42 | AA201: 76 | AB201: 76 | AC201: 89 | AD201: 48
... 64 more rows

Sheet Selecting a Range (hidden)
A2: © S. Christian Albright, 2011, All Rights Reserved
K3: 9 | L3: 2 | M3: 10
K4: 1 | L4: 3 | M4: 8
K5: 8 | L5: 1 | M5: 10
K6: 7 | L6: 5 | M6: 4
K7: 5 | L7: 1 | M7: 1
K8: 5 | L8: 10 | M8: 7
K23: 63 | L23: 61 | M23: 4 | N23: 36 | O23: 45 | P23: 85 | Q23: 91 | R23: 23 | S23: 17 | T23: 76 | U23: 49 | V23: 49 | W23: 44 | X23: 70 | Y23: 31 | Z23: 67 | AA23: 78 | AB23: 20 | AC23: 98 | AD23: 47 | AE23: 88
K24: 52 | L24: 95 | M24: 40 | N24: 75 | O24: 28 | P24: 67 | Q24: 79 | R24: 75 | S24: 49 | T24: 76 | U24: 61 | V24: 77 | W24: 11 | X24: 51 | Y24: 34 | Z24: 31 | AA24: 56 | AB24: 61 | AC24: 83 | AD24: 33 | AE24: 24
K25: 18 | L25: 98 | M25: 47 | N25: 28 | O25: 65 | P25: 17 | Q25: 86 | R25: 23 | S25: 63 | T25: 73 | U25: 21 | V25: 16 | W25: 58 | X25: 34 | Y25: 98 | Z25: 16 | AA25: 16 | AB25: 3 | AC25: 76 | AD25: 5 | AE25: 25
K26: 25 | L26: 21 | M26: 7 | N26: 68 | O26: 16 | P26: 12 | Q26: 80 | R26: 87 | S26: 59 | T26: 29 | U26: 27 | V26: 56 | W26: 14 | X26: 91 | Y26: 25 | Z26: 91 | AA26: 6 | AB26: 63 | AC26: 35 | AD26: 98 | AE26: 67
K27: 26 | L27: 76 | M27: 55 | N27: 60 | O27: 55 | P27: 19 | Q27: 82 | R27: 61 | S27: 42 | T27: 44 | U27: 69 | V27: 9 | W27: 80 | X27: 23 | Y27: 78 | Z27: 100 | AA27: 6 | AB27: 96 | AC27: 47 | AD27: 41 | AE27: 50
K28: 42 | L28: 52 | M28: 72 | N28: 79 | O28: 16 | P28: 14 | Q28: 85 | R28: 49 | S28: 81 | T28: 7 | U28: 25 | V28: 30 | W28: 92 | X28: 61 | Y28: 71 | Z28: 26 | AA28: 85 | AB28: 93 | AC28: 71 | AD28: 55 | AE28: 67
K29: 14 | L29: 29 | M29: 75 | N29: 36 | O29: 52 | P29: 75 | Q29: 17 | R29: 33 | S29: 66 | T29: 50 | U29: 33 | V29: 13 | W29: 51 | X29: 65 | Y29: 39 | Z29: 29 | AA29: 26 | AB29: 41 | AC29: 17 | AD29: 65 | AE29: 93
K30: 87 | L30: 41 | M30: 48 | N30: 22 | O30: 25 | P30: 77 | Q30: 3 | R30: 57 | S30: 32 | T30: 3 | U30: 57 | V30: 3 | W30: 79 | X30: 32 | Y30: 66 | Z30: 4 | AA30: 18 | AB30: 40 | AC30: 62 | AD30: 45 | AE30: 4
K31: 100 | L31: 71 | M31: 10 | N31: 11 | O31: 90 | P31: 15 | Q31: 62 | R31: 24 | S31: 83 | T31: 66 | U31: 47 | V31: 88 | W31: 15 | X31: 53 | Y31: 21 | Z31: 64 | AA31: 70 | AB31: 1 | AC31: 78 | AD31: 81 | AE31: 16
K32: 59 | L32: 51 | M32: 90 | N32: 35 | O32: 94 | P32: 83 | Q32: 77 | R32: 26 | S32: 79 | T32: 61 | U32: 84 | V32: 100 | W32: 79 | X32: 8 | Y32: 5 | Z32: 42 | AA32: 12 | AB32: 28 | AC32: 95 | AD32: 25 | AE32: 63
K33: 43 | L33: 72 | M33: 53 | N33: 21 | O33: 60 | P33: 22 | Q33: 33 | R33: 67 | S33: 29 | T33: 71 | U33: 56 | V33: 28 | W33: 72 | X33: 4 | Y33: 48 | Z33: 24 | AA33: 95 | AB33: 93 | AC33: 61 | AD33: 92 | AE33: 70
K34: 19 | L34: 73 | M34: 49 | N34: 38 | O34: 33 | P34: 42 | Q34: 49 | R34: 84 | S34: 8 | T34: 49 | U34: 97 | V34: 11 | W34: 80 | X34: 93 | Y34: 63 | Z34: 95 | AA34: 86 | AB34: 51 | AC34: 19 | AD34: 2 | AE34: 50
K35: 86 | L35: 58 | M35: 55 | N35: 59 | O35: 41 | P35: 63 | Q35: 75 | R35: 19 | S35: 34 | T35: 37 | U35: 84 | V35: 29 | W35: 81 | X35: 94 | Y35: 78 | Z35: 9 | AA35: 7 | AB35: 89 | AC35: 73 | AD35: 42 | AE35: 37
K36: 7 | L36: 62 | M36: 41 | N36: 62 | O36: 26 | P36: 17 | Q36: 95 | R36: 97 | S36: 79 | T36: 98 | U36: 6 | V36: 20 | W36: 53 | X36: 54 | Y36: 18 | Z36: 4 | AA36: 82 | AB36: 59 | AC36: 48 | AD36: 62 | AE36: 76
K37: 52 | L37: 78 | M37: 37 | N37: 18 | O37: 45 | P37: 98 | Q37: 35 | R37: 40 | S37: 73 | T37: 72 | U37: 63 | V37: 10 | W37: 72 | X37: 6 | Y37: 36 | Z37: 30 | AA37: 88 | AB37: 50 | AC37: 5 | AD37: 57 | AE37: 27
K38: 18 | L38: 32 | M38: 62 | N38: 79 | O38: 86 | P38: 31 | Q38: 58 | R38: 3 | S38: 14 | T38: 26 | U38: 15 | V38: 87 | W38: 60 | X38: 88 | Y38: 86 | Z38: 45 | AA38: 36 | AB38: 76 | AC38: 98 | AD38: 59 | AE38: 65
K39: 1 | L39: 89 | M39: 92 | N39: 86 | O39: 88 | P39: 94 | Q39: 12 | R39: 49 | S39: 38 | T39: 52 | U39: 54 | V39: 16 | W39: 18 | X39: 26 | Y39: 17 | Z39: 24 | AA39: 26 | AB39: 34 | AC39: 94 | AD39: 59 | AE39: 13
K40: 71 | L40: 71 | M40: 58 | N40: 14 | O40: 37 | P40: 27 | Q40: 73 | R40: 31 | S40: 83 | T40: 28 | U40: 3 | V40: 11 | W40: 85 | X40: 63 | Y40: 41 | Z40: 71 | AA40: 15 | AB40: 42 | AC40: 87 | AD40: 85 | AE40: 55
K41: 75 | L41: 18 | M41: 70 | N41: 77 | O41: 52 | P41: 6 | Q41: 45 | R41: 8 | S41: 57 | T41: 78 | U41: 24 | V41: 41 | W41: 43 | X41: 29 | Y41: 67 | Z41: 82 | AA41: 62 | AB41: 63 | AC41: 14 | AD41: 59 | AE41: 91
K42: 2 | L42: 5 | M42: 21 | N42: 95 | O42: 16 | P42: 8 | Q42: 66 | R42: 82 | S42: 72 | T42: 87 | U42: 85 | V42: 64 | W42: 24 | X42: 24 | Y42: 49 | Z42: 30 | AA42: 78 | AB42: 73 | AC42: 44 | AD42: 70 | AE42: 99
K43: 64 | L43: 89 | M43: 38 | N43: 32 | O43: 8 | P43: 51 | Q43: 63 | R43: 86 | S43: 1 | T43: 91 | U43: 68 | V43: 20 | W43: 2 | X43: 43 | Y43: 85 | Z43: 42 | AA43: 58 | AB43: 20 | AC43: 43 | AD43: 73 | AE43: 71
K44: 64 | L44: 67 | M44: 81 | N44: 11 | O44: 34 | P44: 16 | Q44: 30 | R44: 16 | S44: 39 | T44: 65 | U44: 51 | V44: 49 | W44: 14 | X44: 73 | Y44: 98 | Z44: 20 | AA44: 67 | AB44: 33 | AC44: 84 | AD44: 7 | AE44: 71
K45: 6 | L45: 30 | M45: 42 | N45: 3 | O45: 68 | P45: 27 | Q45: 12 | R45: 86 | S45: 77 | T45: 24 | U45: 87 | V45: 38 | W45: 25 | X45: 46 | Y45: 61 | Z45: 68 | AA45: 17 | AB45: 26 | AC45: 43 | AD45: 20 | AE45: 49
K46: 87 | L46: 78 | M46: 33 | N46: 53 | O46: 48 | P46: 86 | Q46: 17 | R46: 4 | S46: 61 | T46: 4 | U46: 59 | V46: 86 | W46: 33 | X46: 25 | Y46: 95 | Z46: 28 | AA46: 55 | AB46: 17 | AC46: 6 | AD46: 92 | AE46: 45
K47: 64 | L47: 64 | M47: 15 | N47: 28 | O47: 44 | P47: 65 | Q47: 29 | R47: 10 | S47: 57 | T47: 92 | U47: 91 | V47: 96 | W47: 93 | X47: 29 | Y47: 54 | Z47: 7 | AA47: 56 | AB47: 2 | AC47: 38 | AD47: 88 | AE47: 87
K48: 58 | L48: 33 | M48: 81 | N48: 90 | O48: 48 | P48: 26 | Q48: 55 | R48: 49 | S48: 34 | T48: 23 | U48: 15 | V48: 74 | W48: 17 | X48: 57 | Y48: 89 | Z48: 12 | AA48: 64 | AB48: 28 | AC48: 100 | AD48: 76 | AE48: 42
K49: 76 | L49: 54 | M49: 84 | N49: 66 | O49: 65 | P49: 78 | Q49: 3 | R49: 88 | S49: 17 | T49: 97 | U49: 53 | V49: 7 | W49: 40 | X49: 45 | Y49: 83 | Z49: 35 | AA49: 76 | AB49: 57 | AC49: 8 | AD49: 24 | AE49: 76
K50: 15 | L50: 79 | M50: 47 | N50: 71 | O50: 19 | P50: 74 | Q50: 58 | R50: 63 | S50: 57 | T50: 4 | U50: 83 | V50: 8 | W50: 31 | X50: 50 | Y50: 96 | Z50: 96 | AA50: 33 | AB50: 80 | AC50: 20 | AD50: 14 | AE50: 56
K51: 73 | L51: 85 | M51: 20 | N51: 100 | O51: 6 | P51: 46 | Q51: 17 | R51: 24 | S51: 86 | T51: 49 | U51: 11 | V51: 52 | W51: 3 | X51: 58 | Y51: 61 | Z51: 34 | AA51: 51 | AB51: 43 | AC51: 90 | AD51: 73 | AE51: 25
K52: 43 | L52: 40 | M52: 26 | N52: 30 | O52: 59 | P52: 98 | Q52: 46 | R52: 85 | S52: 23 | T52: 75 | U52: 83 | V52: 37 | W52: 53 | X52: 99 | Y52: 90 | Z52: 65 | AA52: 91 | AB52: 21 | AC52: 95 | AD52: 48 | AE52: 61
K53: 83 | L53: 54 | M53: 38 | N53: 91 | O53: 59 | P53: 27 | Q53: 82 | R53: 98 | S53: 39 | T53: 91 | U53: 77 | V53: 31 | W53: 75 | X53: 6 | Y53: 72 | Z53: 36 | AA53: 39 | AB53: 51 | AC53: 25 | AD53: 72 | AE53: 97
K54: 41 | L54: 85 | M54: 63 | N54: 28 | O54: 29 | P54: 59 | Q54: 47 | R54: 76 | S54: 81 | T54: 24 | U54: 49 | V54: 12 | W54: 36 | X54: 47 | Y54: 54 | Z54: 76 | AA54: 39 | AB54: 22 | AC54: 5 | AD54: 30 | AE54: 98
K55: 55 | L55: 72 | M55: 42 | N55: 24 | O55: 59 | P55: 41 | Q55: 78 | R55: 1 | S55: 53 | T55: 7 | U55: 65 | V55: 34 | W55: 60 | X55: 47 | Y55: 82 | Z55: 72 | AA55: 33 | AB55: 20 | AC55: 74 | AD55: 52 | AE55: 1
K56: 23 | L56: 22 | M56: 17 | N56: 76 | O56: 50 | P56: 67 | Q56: 17 | R56: 6 | S56: 97 | T56: 74 | U56: 84 | V56: 32 | W56: 10 | X56: 84 | Y56: 74 | Z56: 22 | AA56: 10 | AB56: 26 | AC56: 39 | AD56: 64 | AE56: 41
K57: 54 | L57: 74 | M57: 23 | N57: 86 | O57: 88 | P57: 85 | Q57: 98 | R57: 79 | S57: 83 | T57: 51 | U57: 6 | V57: 88 | W57: 15 | X57: 60 | Y57: 13 | Z57: 17 | AA57: 92 | AB57: 71 | AC57: 45 | AD57: 45 | AE57: 25
K58: 81 | L58: 54 | M58: 24 | N58: 61 | O58: 41 | P58: 43 | Q58: 13 | R58: 44 | S58: 91 | T58: 18 | U58: 59 | V58: 20 | W58: 62 | X58: 17 | Y58: 80 | Z58: 12 | AA58: 17 | AB58: 78 | AC58: 96 | AD58: 55 | AE58: 79
K59: 16 | L59: 86 | M59: 24 | N59: 58 | O59: 99 | P59: 49 | Q59: 50 | R59: 93 | S59: 65 | T59: 88 | U59: 8 | V59: 30 | W59: 73 | X59: 2 | Y59: 52 | Z59: 71 | AA59: 29 | AB59: 21 | AC59: 41 | AD59: 59 | AE59: 69
K60: 31 | L60: 38 | M60: 91 | N60: 46 | O60: 44 | P60: 15 | Q60: 23 | R60: 12 | S60: 32 | T60: 70 | U60: 22 | V60: 27 | W60: 1 | X60: 50 | Y60: 3 | Z60: 15 | AA60: 13 | AB60: 41 | AC60: 71 | AD60: 13 | AE60: 78
K61: 47 | L61: 67 | M61: 39 | N61: 26 | O61: 54 | P61: 85 | Q61: 65 | R61: 52 | S61: 4 | T61: 57 | U61: 1 | V61: 79 | W61: 98 | X61: 30 | Y61: 14 | Z61: 12 | AA61: 63 | AB61: 11 | AC61: 54 | AD61: 41 | AE61: 43
K62: 69 | L62: 4 | M62: 10 | N62: 56 | O62: 89 | P62: 66 | Q62: 13 | R62: 99 | S62: 22 | T62: 10 | U62: 18 | V62: 90 | W62: 45 | X62: 74 | Y62: 53 | Z62: 80 | AA62: 71 | AB62: 3 | AC62: 35 | AD62: 74 | AE62: 24
K63: 82 | L63: 28 | M63: 25 | N63: 20 | O63: 88 | P63: 92 | Q63: 28 | R63: 97 | S63: 42 | T63: 65 | U63: 45 | V63: 72 | W63: 47 | X63: 25 | Y63: 73 | Z63: 82 | AA63: 45 | AB63: 29 | AC63: 39 | AD63: 100 | AE63: 75
K64: 66 | L64: 69 | M64: 81 | N64: 19 | O64: 78 | P64: 100 | Q64: 57 | R64: 27 | S64: 52 | T64: 80 | U64: 9 | V64: 78 | W64: 17 | X64: 35 | Y64: 52 | Z64: 54 | AA64: 93 | AB64: 74 | AC64: 77 | AD64: 66 | AE64: 50
K65: 19 | L65: 85 | M65: 32 | N65: 47 | O65: 1 | P65: 69 | Q65: 68 | R65: 16 | S65: 19 | T65: 28 | U65: 71 | V65: 63 | W65: 73 | X65: 18 | Y65: 49 | Z65: 41 | AA65: 19 | AB65: 11 | AC65: 42 | AD65: 49 | AE65: 3
K66: 58 | L66: 30 | M66: 88 | N66: 16 | O66: 44 | P66: 90 | Q66: 9 | R66: 91 | S66: 68 | T66: 87 | U66: 24 | V66: 38 | W66: 39 | X66: 66 | Y66: 100 | Z66: 74 | AA66: 73 | AB66: 12 | AC66: 87 | AD66: 42 | AE66: 30
K67: 8 | L67: 98 | M67: 6 | N67: 1 | O67: 74 | P67: 2 | Q67: 53 | R67: 35 | S67: 85 | T67: 80 | U67: 71 | V67: 49 | W67: 91 | X67: 9 | Y67: 29 | Z67: 46 | AA67: 57 | AB67: 47 | AC67: 10 | AD67: 98 | AE67: 82
K68: 4 | L68: 22 | M68: 18 | N68: 11 | O68: 61 | P68: 5 | Q68: 100 | R68: 43 | S68: 49 | T68: 34 | U68: 10 | V68: 76 | W68: 40 | X68: 93 | Y68: 79 | Z68: 81 | AA68: 33 | AB68: 7 | AC68: 97 | AD68: 43 | AE68: 44
K69: 22 | L69: 89 | M69: 29 | N69: 84 | O69: 88 | P69: 18 | Q69: 67 | R69: 12 | S69: 26 | T69: 34 | U69: 18 | V69: 86 | W69: 17 | X69: 49 | Y69: 63 | Z69: 39 | AA69: 11 | AB69: 36 | AC69: 23 | AD69: 63 | AE69: 37
K70: 5 | L70: 81 | M70: 48 | N70: 65 | O70: 9 | P70: 67 | Q70: 13 | R70: 78 | S70: 55 | T70: 36 | U70: 53 | V70: 17 | W70: 97 | X70: 64 | Y70: 53 | Z70: 44 | AA70: 53 | AB70: 28 | AC70: 85 | AD70: 29 | AE70: 8
K71: 33 | L71: 95 | M71: 12 | N71: 21 | O71: 18 | P71: 73 | Q71: 31 | R71: 17 | S71: 85 | T71: 97 | U71: 86 | V71: 25 | W71: 77 | X71: 59 | Y71: 36 | Z71: 86 | AA71: 43 | AB71: 73 | AC71: 23 | AD71: 68 | AE71: 25
K72: 57 | L72: 32 | M72: 94 | N72: 59 | O72: 15 | P72: 22 | Q72: 18 | R72: 77 | S72: 4 | T72: 84 | U72: 63 | V72: 99 | W72: 36 | X72: 53 | Y72: 34 | Z72: 59 | AA72: 36 | AB72: 36 | AC72: 61 | AD72: 84 | AE72: 37
K73: 67 | L73: 55 | M73: 5 | N73: 66 | O73: 36 | P73: 26 | Q73: 34 | R73: 82 | S73: 59 | T73: 8 | U73: 48 | V73: 60 | W73: 41 | X73: 33 | Y73: 53 | Z73: 1 | AA73: 99 | AB73: 83 | AC73: 15 | AD73: 65 | AE73: 56
K74: 4 | L74: 10 | M74: 12 | N74: 86 | O74: 91 | P74: 11 | Q74: 73 | R74: 14 | S74: 28 | T74: 67 | U74: 95 | V74: 47 | W74: 63 | X74: 73 | Y74: 89 | Z74: 94 | AA74: 98 | AB74: 4 | AC74: 33 | AD74: 90 | AE74: 51
K75: 52 | L75: 69 | M75: 35 | N75: 8 | O75: 38 | P75: 63 | Q75: 20 | R75: 68 | S75: 16 | T75: 64 | U75: 58 | V75: 75 | W75: 86 | X75: 75 | Y75: 87 | Z75: 12 | AA75: 86 | AB75: 60 | AC75: 9 | AD75: 93 | AE75: 6
K76: 46 | L76: 25 | M76: 70 | N76: 45 | O76: 99 | P76: 56 | Q76: 34 | R76: 4 | S76: 98 | T76: 77 | U76: 70 | V76: 92 | W76: 42 | X76: 91 | Y76: 29 | Z76: 47 | AA76: 1 | AB76: 6 | AC76: 61 | AD76: 53 | AE76: 31
K77: 79 | L77: 71 | M77: 61 | N77: 38 | O77: 37 | P77: 66 | Q77: 24 | R77: 97 | S77: 91 | T77: 44 | U77: 29 | V77: 57 | W77: 83 | X77: 93 | Y77: 81 | Z77: 40 | AA77: 15 | AB77: 68 | AC77: 41 | AD77: 45 | AE77: 67
K78: 28 | L78: 51 | M78: 23 | N78: 75 | O78: 42 | P78: 89 | Q78: 79 | R78: 42 | S78: 22 | T78: 58 | U78: 99 | V78: 92 | W78: 40 | X78: 22 | Y78: 35 | Z78: 2 | AA78: 22 | AB78: 16 | AC78: 75 | AD78: 16 | AE78: 8
K79: 95 | L79: 41 | M79: 44 | N79: 60 | O79: 83 | P79: 57 | Q79: 61 | R79: 59 | S79: 39 | T79: 9 | U79: 7 | V79: 62 | W79: 71 | X79: 50 | Y79: 62 | Z79: 16 | AA79: 12 | AB79: 49 | AC79: 28 | AD79: 73 | AE79: 5
K80: 40 | L80: 76 | M80: 54 | N80: 4 | O80: 46 | P80: 23 | Q80: 28 | R80: 66 | S80: 29 | T80: 76 | U80: 37 | V80: 22 | W80: 59 | X80: 66 | Y80: 40 | Z80: 58 | AA80: 66 | AB80: 14 | AC80: 77 | AD80: 3 | AE80: 54
K81: 96 | L81: 61 | M81: 55 | N81: 1 | O81: 59 | P81: 67 | Q81: 37 | R81: 96 | S81: 52 | T81: 95 | U81: 10 | V81: 74 | W81: 12 | X81: 13 | Y81: 94 | Z81: 72 | AA81: 74 | AB81: 86 | AC81: 71 | AD81: 33 | AE81: 36
K82: 3 | L82: 7 | M82: 17 | N82: 28 | O82: 87 | P82: 5 | Q82: 98 | R82: 31 | S82: 62 | T82: 72 | U82: 52 | V82: 32 | W82: 71 | X82: 18 | Y82: 55 | Z82: 72 | AA82: 48 | AB82: 65 | AC82: 84 | AD82: 87 | AE82: 26
K83: 96 | L83: 37 | M83: 82 | N83: 70 | O83: 8 | P83: 56 | Q83: 25 | R83: 41 | S83: 16 | T83: 72 | U83: 94 | V83: 49 | W83: 11 | X83: 94 | Y83: 84 | Z83: 79 | AA83: 37 | AB83: 61 | AC83: 48 | AD83: 32 | AE83: 35
K84: 39 | L84: 33 | M84: 1 | N84: 82 | O84: 35 | P84: 51 | Q84: 71 | R84: 55 | S84: 66 | T84: 43 | U84: 20 | V84: 5 | W84: 77 | X84: 86 | Y84: 5 | Z84: 19 | AA84: 71 | AB84: 53 | AC84: 94 | AD84: 65 | AE84: 73
K85: 46 | L85: 15 | M85: 81 | N85: 86 | O85: 74 | P85: 69 | Q85: 22 | R85: 85 | S85: 64 | T85: 69 | U85: 17 | V85: 99 | W85: 90 | X85: 76 | Y85: 84 | Z85: 14 | AA85: 2 | AB85: 41 | AC85: 63 | AD85: 23 | AE85: 37
K86: 23 | L86: 24 | M86: 3 | N86: 40 | O86: 30 | P86: 27 | Q86: 73 | R86: 16 | S86: 85 | T86: 2 | U86: 20 | V86: 44 | W86: 68 | X86: 34 | Y86: 47 | Z86: 77 | AA86: 75 | AB86: 8 | AC86: 15 | AD86: 98 | AE86: 5
K87: 6 | L87: 64 | M87: 5 | N87: 95 | O87: 11 | P87: 15 | Q87: 90 | R87: 36 | S87: 44 | T87: 97 | U87: 99 | V87: 41 | W87: 50 | X87: 82 | Y87: 67 | Z87: 13 | AA87: 72 | AB87: 40 | AC87: 99 | AD87: 95 | AE87: 25
K88: 72 | L88: 36 | M88: 24 | N88: 58 | O88: 23 | P88: 89 | Q88: 45 | R88: 83 | S88: 68 | T88: 65 | U88: 48 | V88: 77 | W88: 13 | X88: 71 | Y88: 63 | Z88: 5 | AA88: 32 | AB88: 53 | AC88: 14 | AD88: 40 | AE88: 69
K89: 8 | L89: 34 | M89: 69 | N89: 26 | O89: 14 | P89: 77 | Q89: 15 | R89: 8 | S89: 21 | T89: 71 | U89: 64 | V89: 93 | W89: 34 | X89: 51 | Y89: 48 | Z89: 55 | AA89: 4 | AB89: 36 | AC89: 28 | AD89: 63 | AE89: 100
K90: 48 | L90: 91 | M90: 81 | N90: 13 | O90: 94 | P90: 87 | Q90: 18 | R90: 48 | S90: 63 | T90: 29 | U90: 16 | V90: 6 | W90: 60 | X90: 50 | Y90: 91 | Z90: 58 | AA90: 50 | AB90: 74 | AC90: 27 | AD90: 69 | AE90: 5
K91: 70 | L91: 29 | M91: 30 | N91: 5 | O91: 18 | P91: 75 | Q91: 97 | R91: 27 | S91: 62 | T91: 76 | U91: 3 | V91: 18 | W91: 66 | X91: 54 | Y91: 58 | Z91: 74 | AA91: 33 | AB91: 95 | AC91: 84 | AD91: 63 | AE91: 60
K92: 57 | L92: 78 | M92: 44 | N92: 99 | O92: 59 | P92: 65 | Q92: 31 | R92: 91 | S92: 38 | T92: 13 | U92: 35 | V92: 9 | W92: 85 | X92: 46 | Y92: 78 | Z92: 100 | AA92: 79 | AB92: 62 | AC92: 86 | AD92: 36 | AE92: 45
K93: 98 | L93: 92 | M93: 39 | N93: 60 | O93: 45 | P93: 75 | Q93: 30 | R93: 34 | S93: 53 | T93: 95 | U93: 70 | V93: 8 | W93: 93 | X93: 88 | Y93: 42 | Z93: 64 | AA93: 8 | AB93: 96 | AC93: 51 | AD93: 12 | AE93: 13
K94: 45 | L94: 23 | M94: 30 | N94: 91 | O94: 89 | P94: 36 | Q94: 9 | R94: 64 | S94: 11 | T94: 54 | U94: 8 | V94: 68 | W94: 10 | X94: 100 | Y94: 42 | Z94: 10 | AA94: 42 | AB94: 28 | AC94: 52 | AD94: 74 | AE94: 95
K95: 69 | L95: 70 | M95: 86 | N95: 55 | O95: 70 | P95: 5 | Q95: 78 | R95: 71 | S95: 51 | T95: 70 | U95: 48 | V95: 77 | W95: 78 | X95: 55 | Y95: 91 | Z95: 47 | AA95: 41 | AB95: 83 | AC95: 94 | AD95: 91 | AE95: 46
K96: 50 | L96: 56 | M96: 42 | N96: 18 | O96: 47 | P96: 2 | Q96: 85 | R96: 49 | S96: 53 | T96: 17 | U96: 51 | V96: 67 | W96: 58 | X96: 70 | Y96: 51 | Z96: 87 | AA96: 24 | AB96: 24 | AC96: 86 | AD96: 36 | AE96: 54
K97: 17 | L97: 20 | M97: 19 | N97: 68 | O97: 2 | P97: 10 | Q97: 2 | R97: 12 | S97: 79 | T97: 67 | U97: 93 | V97: 73 | W97: 40 | X97: 50 | Y97: 46 | Z97: 24 | AA97: 40 | AB97: 58 | AC97: 83 | AD97: 53 | AE97: 94
K98: 55 | L98: 56 | M98: 25 | N98: 28 | O98: 1 | P98: 71 | Q98: 64 | R98: 8 | S98: 7 | T98: 23 | U98: 15 | V98: 42 | W98: 28 | X98: 56 | Y98: 33 | Z98: 99 | AA98: 10 | AB98: 30 | AC98: 73 | AD98: 51 | AE98: 16
K99: 64 | L99: 68 | M99: 99 | N99: 77 | O99: 20 | P99: 38 | Q99: 29 | R99: 96 | S99: 6 | T99: 92 | U99: 60 | V99: 90 | W99: 85 | X99: 83 | Y99: 53 | Z99: 39 | AA99: 66 | AB99: 37 | AC99: 79 | AD99: 6 | AE99: 95
K100: 87 | L100: 77 | M100: 77 | N100: 13 | O100: 85 | P100: 62 | Q100: 4 | R100: 66 | S100: 11 | T100: 95 | U100: 99 | V100: 57 | W100: 13 | X100: 74 | Y100: 28 | Z100: 33 | AA100: 70 | AB100: 22 | AC100: 90 | AD100: 29 | AE100: 78
K101: 96 | L101: 72 | M101: 80 | N101: 61 | O101: 73 | P101: 72 | Q101: 86 | R101: 49 | S101: 79 | T101: 89 | U101: 52 | V101: 100 | W101: 9 | X101: 74 | Y101: 100 | Z101: 64 | AA101: 46 | AB101: 37 | AC101: 32 | AD101: 98 | AE101: 10

Sheet Selecting Multiple Ranges (hidden)
A2: © S. Christian Albright, 2011, All Rights Reserved
K3: 10 | L3: 13 | N3: 7 | O3: 9
K4: 1 | L4: 9 | N4: 12 | O4: 7
K5: 5 | L5: 4 | N5: 1 | O5: 1
N6: 6 | O6: 12
N7: 15 | O7: 2
L10: 13 | M10: 4 | N10: 10

Sheet Go To Options (hidden)
A2: © S. Christian Albright, 2011, All Rights Reserved
K13: Jan | L13: Q1 | M13: 2009
K16: Feb
K19: Mar
K22: Apr | L22: Q2
K25: May
K28: Jun

Sheet Copying, Cutting, Pasting (hidden)
A2: © S. Christian Albright, 2011, All Rights Reserved

Sheet Copying and Pasting (hidden)
A2: © S. Christian Albright, 2011, All Rights Reserved
K14: 3 | L14: 3 | M14: =K14*L14 -> 9
K15: 4 | L15: 1
K16: 2 | L16: 3
K17: 2 | L17: 1
K18: 5 | L18: 1
K19: 4 | L19: 2
K20: 3 | L20: 5
K33: 6 | L33: 2
K34: 9 | L34: 1
K35: 4 | L35: 9
K36: 7 | L36: 6
K37: 2 | L37: 3
K38: 8 | L38: 5
K39: 3 | L39: 9
K55: 10 | L55: 7 | M55: =K55*L55 -> 70
K56: 6 | L56: 9
K57: 4 | L57: 9
K58: 5 | L58: 1
K59: 2 | L59: 8
K60: 8 | L60: 10
K61: 10 | L61: 7
K70: 7 | L70: 8 | M70: =K70*L70 -> 56
K71: 2 | L71: 1
K72: 10 | L72: 2
K73: 4 | L73: 1
K74: 4 | L74: 5
K75: 3 | L75: 8
K76: 7 | L76: 8

Sheet Copying and Pasting Special (hidden)
A2: © S. Christian Albright, 2011, All Rights Reserved
K3: 1 | L3: 1 | M3: =K3*L3 -> 1
K4: 2 | L4: 3 | M4: 6
K5: 9 | L5: 5 | M5: 45
K6: 7 | L6: 4 | M6: 28
K7: 8 | L7: 8 | M7: 64
K8: 8 | L8: 10 | M8: 80
K9: 7 | L9: 6 | M9: 42
K19: Excel 2007 | N19: Excel 2010
K38: 10 | L38: 2 | M38: =PRODUCT(K38:L38) -> 20
K39: 6 | L39: 7 | M39: =PRODUCT(K39:L39) -> 42
K40: 1 | L40: 8 | M40: =PRODUCT(K40:L40) -> 8
O45: 47.65
O46: 44.2
O47: 37.68
O48: 31.34
O49: 89.36
O50: 68.15
O51: 28.57
K65: 147
K66: 173
K67: 217
K68: 178
K69: 120
K70: 203
K71: 137
K72: 217
K73: 153

Sheet Transposing a Range (hidden)
A2: © S. Christian Albright, 2011, All Rights Reserved
K3: Sales figures
L5: Jan | M5: Feb | N5: Mar
K6: North | L6: 2300 | M6: 3200 | N6: 4500
K7: West | L7: 4300 | M7: 3500 | N7: 4200
K8: East | L8: 5500 | M8: 6500 | N8: 6000
K10: Excel 2007 | N10: Excel 2010

Sheet Cutting and Pasting (hidden)
A2: © S. Christian Albright, 2011, All Rights Reserved
K3: 2 | L3: 3 | M3: =K3*L3 -> 6
K4: 7 | L4: 4 | M4: 28
K5: 3 | L5: 6 | M5: 18
K6: 3 | L6: 9 | M6: 27
K7: 6 | L7: 7 | M7: 42
K8: 6 | L8: 6 | M8: 36
K9: 1 | L9: 4 | M9: 4

Sheet Other Basic Tools (hidden)
A2: © S. Christian Albright, 2011, All Rights Reserved

Sheet Undoing Actions (hidden)
A2: © S. Christian Albright, 2011, All Rights Reserved
K26: =RANDBETWEEN(1,50) -> 27 | L26: 14
K27: 43 | L27: 48
K28: 7 | L28: 24
K29: 47 | L29: 1
K30: 48 | L30: 9
K31: 18 | L31: 2
K32: 15 | L32: 5
K33: 5 | L33: 19
K34: 44 | L34: 2
K35: 28 | L35: 9
K36: 16 | L36: 16
K37: 39 | L37: 10
K38: 6 | L38: 4

Sheet Manipulating Rows, Columns (hidden)
A2: © S. Christian Albright, 2011, All Rights Reserved
B26: Month | C26: Price | D26: Units sold | E26: Revenue
B27: Jan | C27: 3 | D27: 100 | E27: =C27*D27 -> 300
B28: Mar | C28: 3.25 | D28: 50 | E28: =C28*D28 -> 162.5
B29: Jun | C29: 3.5 | D29: 200 | E29: =C29*D29 -> 700
B64: Person | C64: Age
B65: 1 | C65: 36
B66: 2 | C66: 33
B67: 3 | C67: 49
B68: 4 | C68: 25
B69: 5 | C69: 21
B70: 6 | C70: 46
B71: 7 | C71: 27
B72: 8 | C72: 35
B73: 9 | C73: 22
B74: 10 | C74: 27
B75: 11 | C75: 37
B76: 12 | C76: 36
B77: 13 | C77: 21
B78: 14 | C78: 35
B79: 15 | C79: 39
B80: 16 | C80: 48
B81: 17 | C81: 35
B82: 18 | C82: 38
B83: 19 | C83: 36
B84: 20 | C84: 44
B85: 21 | C85: 34
B86: 22 | C86: 50
B87: 23 | C87: 44
B88: 24 | C88: 41
B89: 25 | C89: 43
B90: 26 | C90: 48
B91: 27 | C91: 29
B92: 28 | C92: 34
B93: 29 | C93: 22
B94: 30 | C94: 28

Sheet Manipulating Worksheets (hidden)
A2: © S. Christian Albright, 2011, All Rights Reserved

Sheet Filling a Series (hidden)
A2: © S. Christian Albright, 2011, All Rights Reserved
K3: Day | L3: Sales | N3: Day | O3: Sales
L4: 227 | O4: 167
L5: 157 | O5: 107
L6: 143 | O6: 255
L7: 129 | O7: 113
L8: 102 | O8: 186
L9: 116 | O9: 124
L10: 269 | O10: 271
L11: 111 | O11: 288
L12: 210 | O12: 273
L13: 117 | O13: 285
L14: 214 | O14: 231
L15: 150 | O15: 272
L16: 229 | O16: 169
L17: 241 | O17: 269
L18: 270 | O18: 274
L19: 224 | O19: 133
L20: 127 | O20: 280
L21: 246 | O21: 289
L22: 203 | O22: 254
L23: 207 | O23: 114
L24: 190 | O24: 181
L25: 256 | O25: 259
L26: 297 | O26: 185
L27: 175 | O27: 117
L28: 169 | O28: 224
K35: Original | L35: Series | M35: Difference | O35: Original | P35: Series | Q35: Ratio
K36: 1.1 | L36: 1 | O36: 1.1 | P36: 1.161348682
K37: 1.9 | L37: 2.05 | M37: =L37-L36 -> 1.05 | O37: 1.9 | P37: 1.82297378 | Q37: =P37/P36 -> 1.569704094
K38: 3.1 | L38: 3.1 | M38: 1.05 | O38: 3.1 | P38: 2.861529405 | Q38: 1.569704094
K39: 4.2 | L39: 4.15 | M39: 1.05 | O39: 4.2 | P39: 4.49175442 | Q39: 1.569704094
L40: 5.2 | M40: 1.05 | P40: 7.050725301 | Q40: 1.569704094
L41: 6.25 | M41: 1.05 | P41: 11.06755237 | Q41: 1.569704094
L42: 7.3 | M42: 1.05 | P42: 17.37278226 | Q42: 1.569704094
L43: 8.35 | M43: 1.05 | P43: 27.27012743 | Q43: 1.569704094
L44: 9.4 | M44: 1.05 | P44: 42.80603066 | Q44: 1.569704094
L45: 10.45 | M45: 1.05 | P45: 67.19280155 | Q45: 1.569704094
L46: 11.5 | M46: 1.05 | P46: 105.4728157 | Q46: 1.569704094
L47: 12.55 | M47: 1.05 | P47: 165.5611105 | Q47: 1.569704094
L48: 13.6 | M48: 1.05 | P48: 259.8819529 | Q48: 1.569704094
L49: 14.65 | M49: 1.05 | P49: 407.9377653 | Q49: 1.569704094
L50: 15.7 | M50: 1.05 | P50: 640.3415801 | Q50: 1.569704094
L51: 16.75 | M51: 1.05 | P51: 1005.1468 | Q51: 1.569704094

Sheet Sorting (hidden)
A2: © S. Christian Albright, 2011, All Rights Reserved
K3: Person | L3: Age | M3: Gender | N3: State | O3: Children | P3: Salary
K4: 1 | L4: 35 | M4: Male | N4: Ohio | O4: 1 | P4: 65400
K5: 2 | L5: 61 | M5: Female | N5: Illinois | O5: 2 | P5: 62000
K6: 3 | L6: 35 | M6: Male | N6: Illinois | O6: 0 | P6: 63200
K7: 4 | L7: 37 | M7: Male | N7: Indiana | O7: 2 | P7: 52000
K8: 5 | L8: 32 | M8: Female | N8: Ohio | O8: 3 | P8: 81400
K9: 6 | L9: 33 | M9: Female | N9: Illinois | O9: 3 | P9: 46300
K10: 7 | L10: 65 | M10: Female | N10: Illinois | O10: 2 | P10: 49600
K11: 8 | L11: 45 | M11: Male | N11: Ohio | O11: 1 | P11: 45900
K12: 9 | L12: 40 | M12: Male | N12: Illinois | O12: 3 | P12: 47700
K13: 10 | L13: 32 | M13: Female | N13: Ohio | O13: 1 | P13: 59900
K14: 11 | L14: 57 | M14: Male | N14: Illinois | O14: 1 | P14: 48100
K15: 12 | L15: 38 | M15: Female | N15: Indiana | O15: 0 | P15: 58100
K16: 13 | L16: 37 | M16: Female | N16: Indiana | O16: 2 | P16: 56000
K17: 14 | L17: 42 | M17: Female | N17: Ohio | O17: 2 | P17: 53400
K18: 15 | L18: 38 | M18: Female | N18: Ohio | O18: 2 | P18: 39000
K19: 16 | L19: 48 | M19: Male | N19: Ohio | O19: 1 | P19: 61500
K20: 17 | L20: 40 | M20: Male | N20: Indiana | O20: 0 | P20: 37700
K21: 18 | L21: 57 | M21: Female | N21: Indiana | O21: 2 | P21: 36700
K22: 19 | L22: 44 | M22: Male | N22: Illinois | O22: 2 | P22: 45200
K23: 20 | L23: 40 | M23: Male | N23: Ohio | O23: 0 | P23: 59000
K24: 21 | L24: 21 | M24: Female | N24: Indiana | O24: 2 | P24: 54300
K25: 22 | L25: 49 | M25: Male | N25: Ohio | O25: 1 | P25: 62100
K56: Grade | M56: Name
K57: A+ | M57: FRED
K58: A | M58: TOM
K59: A- | M59: jenny
K60: B+ | M60: doug
K61: B | M61: MARY
K62: B- | M62: sam
K63: C+ | M63: charlie
K64: C | M64: BOB
K65: C- | M65: CHRIS
K66: D+
K67: D
K68: D-
K69: F
K75: Order | L75: Time | M75: Day
K76: 1 | L76: Morning | M76: Saturday
K77: 2 | L77: Evening | M77: Wednesday
K78: 3 | L78: Evening | M78: Saturday
K79: 4 | L79: Afternoon | M79: Friday
K80: 5 | L80: Evening | M80: Tuesday
K81: 6 | L81: Morning | M81: Tuesday
K82: 7 | L82: Afternoon | M82: Monday
K83: 8 | L83: Afternoon | M83: Saturday
K84: 9 | L84: Afternoon | M84: Monday
K85: 10 | L85: Morning | M85: Tuesday
K86: 11 | L86: Evening | M86: Sunday
K87: 12 | L87: Morning | M87: Monday
K88: 13 | L88: Afternoon | M88: Wednesday
K89: 14 | L89: Morning | M89: Friday
K90: 15 | L90: Afternoon | M90: Saturday
K91: 16 | L91: Morning | M91: Tuesday
K92: 17 | L92: Afternoon | M92: Thursday
K93: 18 | L93: Afternoon | M93: Friday
K94: 19 | L94: Afternoon | M94: Friday
K95: 20 | L95: Evening | M95: Thursday
K96: 21 | L96: Morning | M96: Sunday
K97: 22 | L97: Morning | M97: Monday
K98: 23 | L98: Morning | M98: Sunday
K99: 24 | L99: Morning | M99: Sunday
K100: 25 | L100: Morning | M100: Saturday

Sheet Hyperlinks (hidden)
A2: © S. Christian Albright, 2011, All Rights Reserved
K3: Go to Undoing Actions Worksheet

Sheet Documenting Your Work (hidden)
A2: © S. Christian Albright, 2011, All Rights Reserved
Q14: Sales
Q15: 15.3
Q16: 14.7
Q17: 9.6
Q18: 12.1
Q19: 14.2

Sheet Printing (hidden)
A2: © S. Christian Albright, 2011, All Rights Reserved

Sheet Working with Formulas (hidden)
A2: © S. Christian Albright, 2011, All Rights Reserved

Sheet Relative Absolute (hidden)
A2: © S. Christian Albright, 2011, All Rights Reserved
K26: Fixed cost | L26: 50 | V26: Fixed cost | W26: 50
K27: Variable cost | L27: 2 | V27: Variable cost | W27: 2
K29: Month | L29: Jan | M29: Feb | N29: Mar | O29: Apr | V29: Month | W29: Jan | X29: Feb | Y29: Mar | Z29: Apr
K30: Units produced | L30: 224 | M30: 194 | N30: 228 | O30: 258 | V30: Units produced | W30: 224 | X30: 194 | Y30: 228 | Z30: 258
K31: Total cost | V31: Total cost | W31: =$W$26+$W$27*W30 -> 498 | X31: =$W$26+$W$27*X30 -> 438 | Y31: =$W$26+$W$27*Y30 -> 506 | Z31: =$W$26+$W$27*Z30 -> 566
K33: Table of revenues for various unit prices and units sold
M35: Units sold | X35: Units sold
M36: 50 | N36: 100 | O36: 150 | P36: 200 | X36: 50 | Y36: 100 | Z36: 150 | AA36: 200
K37: Unit price | L37: 3.25 | V37: Unit price | W37: 3.25 | X37: =$W37*X$36 -> 162.5 | Y37: 325 | Z37: 487.5 | AA37: 650
L38: 3.5 | W38: 3.5 | X38: 175 | Y38: 350 | Z38: 525 | AA38: 700
L39: 3.75 | W39: 3.75 | X39: 187.5 | Y39: 375 | Z39: 562.5 | AA39: 750
L40: 4 | W40: 4 | X40: 200 | Y40: 400 | Z40: 600 | AA40: 800
L41: 4.25 | W41: 4.25 | X41: 212.5 | Y41: 425 | Z41: 637.5 | AA41: 850

Sheet R1C1 Notation (hidden)
A2: © S. Christian Albright, 2011, All Rights Reserved
K15: Multiplication table
M16: 1 | N16: 2 | O16: 3 | P16: 4
L17: 1 | M17: =$L17*M$16 -> 1 | N17: 2 | O17: 3 | P17: 4
L18: 2 | M18: 2 | N18: 4 | O18: 6 | P18: 8
L19: 3 | M19: 3 | N19: 6 | O19: 9 | P19: 12
L20: 4 | M20: 4 | N20: 8 | O20: 12 | P20: 16
L21: Total | M21: =SUM(M17:M20) -> 10 | N21: =SUM(N17:N20) -> 20 | O21: =SUM(O17:O20) -> 30 | P21: =SUM(P17:P20) -> 40

Sheet Range Names (hidden)
A2: © S. Christian Albright, 2011, All Rights Reserved
K31: 71 | L31: 31 | M31: 9 | N31: 69 | O31: 5
K32: 15 | L32: 74 | M32: 46 | N32: 84 | O32: 27
K33: 14 | L33: 49 | M33: 25 | N33: 38 | O33: 83
K34: 40 | L34: 43 | M34: 20 | N34: 75 | O34: 83
K35: 28 | L35: 72 | M35: 30 | N35: 92 | O35: 75
K36: 41 | L36: 56 | M36: 90 | N36: 89 | O36: 73
K37: 28 | L37: 81 | M37: 43 | N37: 81 | O37: 61
O55: Month | P55: UnitsSold | Q55: UnitPrice | R55: Revenue
O56: Jan | P56: 100 | Q56: 1.25 | R56: =P56*Q56 -> 125
O57: Feb | P57: 150 | Q57: 1.25 | R57: 187.5
O58: Mar | P58: 200 | Q58: 1.4 | R58: 280
O59: Apr | P59: 230 | Q59: 1.4 | R59: 322
O60: May | P60: 200 | Q60: 1.5 | R60: 300
O61: Jun | P61: 300 | Q61: 1.5 | R61: 450
O62: Totals | P62: =SUM(P56:P61) -> 1180 | R62: =SUM(R56:R61) -> 1664.5
O96: Range names used in this workbook:

Sheet Auditing formulas (hidden)
A2: © S. Christian Albright, 2011, All Rights Reserved
K22: Unit printing cost | L22: 0.1
K23: Unit mailing cost | L23: 0.15
K24: Variable cost of printing and mailing | L24: 0.25
K25: Number mailed | L25: 100000
K27: Average revenue per order | L27: 60
K28: Order fulfillment cost (% of revenue) | L28: 0.6
K29: Variable cost per order fulfillment | L29: =0.6*L27 -> 36
K31: Response rate | L31: 0.03
K32: Number of responses | L32: =L25*L31 -> 3000
K34: Total Revenue | L34: =L32*L27 -> 180000
K35: Fixed cost of printing | L35: 20000
K36: Total variable cost of printing and mailing | L36: =L25*L24 -> 25000
K37: Total variable cost of order fulfillment | L37: =L32*L29 -> 108000
K38: Total cost | L38: =SUM(L35:L37) -> 153000
K39: Profit | L39: =L34-L38 -> 27000

Sheet Calculation Options (hidden)
A2: © S. Christian Albright, 2011, All Rights Reserved

Sheet AutoSum Button (hidden)
A2: © S. Christian Albright, 2011, All Rights Reserved
K17: 51 | L17: 94 | M17: 15 | N17: 7
K18: 37 | L18: 6 | M18: 2 | N18: 41
K19: 13 | L19: 83 | M19: 29 | N19: 88
K20: 73 | L20: 64 | M20: 46 | N20: 32
K21: 38 | L21: 11 | M21: 3 | N21: 80

Sheet Evaluating a formula (hidden)
A2: © S. Christian Albright, 2011, All Rights Reserved
K11: Person | L11: Status | M11: Last Invoice | N11: Category
K12: 1 | L12: D | M12: 859.69 | N12: =IF(AND(OR(L12="A",L12="B"),M12>=3000),"Excellent",IF(OR(AND(OR(L12="A",L12="B"),M12>=2000),M12>=3500),"Good","Ok")) -> Ok
K13: 2 | L13: B | M13: 3297.24 | N13: =IF(AND(OR(L13="A",L13="B"),M13>=3000),"Excellent",IF(OR(AND(OR(L13="A",L13="B"),M13>=2000),M13>=3500),"Good","Ok")) -> Excellent
K14: 3 | L14: A | M14: 2130 | N14: Good
K15: 4 | L15: C | M15: 1574.8 | N15: Ok
K16: 5 | L16: D | M16: 3729.78 | N16: Good
K17: 6 | L17: B | M17: 1400.08 | N17: Ok
K18: 7 | L18: D | M18: 2593.58 | N18: Ok
K19: 8 | L19: C | M19: 3827.74 | N19: Good
K20: 9 | L20: A | M20: 3047 | N20: Excellent
K21: 10 | L21: D | M21: 1802.1 | N21: Ok
K22: 11 | L22: A | M22: 3346.41 | N22: Excellent
K23: 12 | L23: A | M23: 1728.75 | N23: Ok
K24: 13 | L24: C | M24: 1421.96 | N24: Ok

Sheet External Formula References (hidden)
A2: © S. Christian Albright, 2011, All Rights Reserved
K3: Average invoice | L3: =AVERAGE('Evaluating a formula'!M12:M24) -> 2366.086923 | N3: Tax rate | O3: 1.05
K4: Avg invoice with tax | L4: =AVERAGE('Evaluating a formula'!M12:M24)*'External Formula References'!O3 -> 2484.391269
K6: Average score | L6: =AVERAGE(IF!L25:L30) -> 75

Sheet Working with Charts (hidden)
A2: © S. Christian Albright, 2011, All Rights Reserved

Sheet Creating a Chart (hidden)
A2: © S. Christian Albright, 2011, All Rights Reserved
K3: Month | L3: Sales
K4: 2009-01-01 | L4: 8627
K5: 2009-02-01 | L5: 5343
K6: 2009-03-01 | L6: 6244
K7: 2009-04-01 | L7: 9451
K8: 2009-05-01 | L8: 6698
K9: 2009-06-01 | L9: 6752
K10: 2009-07-01 | L10: 5985
K11: 2009-08-01 | L11: 5586
K12: 2009-09-01 | L12: 8476
K13: 2009-10-01 | L13: 9191
K14: 2009-11-01 | L14: 7242
K15: 2009-12-01 | L15: 8277
K19: Month | L19: Sales1 | M19: Sales2
K20: 2009-01-01 | L20: 8627 | M20: 8452
K21: 2009-02-01 | L21: 5343 | M21: 6801
K22: 2009-03-01 | L22: 6244 | M22: 5497
K23: 2009-04-01 | L23: 9451 | M23: 10329
K24: 2009-05-01 | L24: 6698 | M24: 5995
K25: 2009-06-01 | L25: 6752 | M25: 8103
K26: 2009-07-01 | L26: 5985 | M26: 6386
K27: 2009-08-01 | L27: 5586 | M27: 5047
K28: 2009-09-01 | L28: 8476 | M28: 8641
K29: 2009-10-01 | L29: 9191 | M29: 10696
K30: 2009-11-01 | L30: 7242 | M30: 6914
K31: 2009-12-01 | L31: 8277 | M31: 9004
K35: Month | L35: 2009-01-01 | M35: 2009-02-01 | N35: 2009-03-01 | O35: 2009-04-01 | P35: 2009-05-01 | Q35: 2009-06-01 | R35: 2009-07-01 | S35: 2009-08-01 | T35: 2009-09-01 | U35: 2009-10-01 | V35: 2009-11-01 | W35: 2009-12-01
K36: Sales1 | L36: 8627 | M36: 5343 | N36: 6244 | O36: 9451 | P36: 6698 | Q36: 6752 | R36: 5985 | S36: 5586 | T36: 8476 | U36: 9191 | V36: 7242 | W36: 8277
K37: Sales2 | L37: 8452 | M37: 6801 | N37: 5497 | O37: 10329 | P37: 5995 | Q37: 8103 | R37: 6386 | S37: 5047 | T37: 8641 | U37: 10696 | V37: 6914 | W37: 9004
L53: Product1 | M53: Product2 | N53: Product3 | O53: Product4
K54: Region1 | L54: 4749 | M54: 1637 | N54: 1002 | O54: 4212
K55: Region2 | L55: 1187 | M55: 2259 | N55: 4236 | O55: 2711
K56: Region3 | L56: 2973 | M56: 3779 | N56: 4419 | O56: 1881
K57: Region4 | L57: 4570 | M57: 3677 | N57: 3682 | O57: 3020
K58: Region5 | L58: 3494 | M58: 1040 | N58: 4637 | O58: 1808
K59: Region6 | L59: 2158 | M59: 4644 | N59: 1296 | O59: 3920
L67: 2009-01-01 | M67: 2009-02-01 | N67: 2009-03-01 | O67: 2009-04-01 | P67: 2009-05-01 | Q67: 2009-06-01
K68: Product1 | L68: 1191 | M68: 2116 | N68: 1328 | O68: 2136 | P68: 2352 | Q68: 4156
K69: Product2 | L69: 3147 | M69: 3751 | N69: 3954 | O69: 4314 | P69: 4194 | Q69: 2442
K70: Product3 | L70: 2959 | M70: 3628 | N70: 3628 | O70: 4529 | P70: 2548 | Q70: 4415
K71: Product4 | L71: 1740 | M71: 2733 | N71: 4310 | O71: 2228 | P71: 1313 | Q71: 2675
K72: Product5 | L72: 4730 | M72: 1058 | N72: 4800 | O72: 2156 | P72: 2518 | Q72: 2917
K73: Product6 | L73: 4970 | M73: 4947 | N73: 2707 | O73: 1134 | P73: 1787 | Q73: 1927
K79: Month | L79: Junk1 | M79: Junk2 | N79: Sales1 | O79: Sales2
K80: 2009-01-01 | L80: 29 | M80: 27 | N80: 2625 | O80: 4139
K81: 2009-02-01 | L81: 74 | M81: 23 | N81: 1776 | O81: 4955
K82: 2009-03-01 | L82: 78 | M82: 59 | N82: 2537 | O82: 2379
K83: 2009-04-01 | L83: 6 | M83: 12 | N83: 4360 | O83: 4631
K84: 2009-05-01 | L84: 69 | M84: 2 | N84: 3636 | O84: 2413
K85: 2009-06-01 | L85: 62 | M85: 3 | N85: 2135 | O85: 4187
K99: Person | L99: Height | M99: Weight
K100: 1 | L100: 60 | M100: 155
K101: 2 | L101: 61 | M101: 162
K102: 3 | L102: 62 | M102: 162
K103: 4 | L103: 63 | M103: 162
K104: 5 | L104: 63 | M104: 164
K105: 6 | L105: 65 | M105: 168
K106: 7 | L106: 70 | M106: 175
K107: 8 | L107: 72 | M107: 199
K108: 9 | L108: 72 | M108: 215
K109: 10 | L109: 76 | M109: 241

Sheet Locating a chart (hidden)
A2: © S. Christian Albright, 2011, All Rights Reserved
K3: Month | L3: Sales
K4: 2009-01-01 | L4: 8627
K5: 2009-02-01 | L5: 5343
K6: 2009-03-01 | L6: 6244
K7: 2009-04-01 | L7: 9451
K8: 2009-05-01 | L8: 6698
K9: 2009-06-01 | L9: 6752
K10: 2009-07-01 | L10: 5985
K11: 2009-08-01 | L11: 5586
K12: 2009-09-01 | L12: 8476
K13: 2009-10-01 | L13: 9191
K14: 2009-11-01 | L14: 7242
K15: 2009-12-01 | L15: 8277

Sheet Modifying a Chart (hidden)
A2: © S. Christian Albright, 2011, All Rights Reserved
K3: Sales1 | L3: Sales2
K4: 8627 | L4: 23919
K5: 5343 | L5: 19507
K6: 6244 | L6: 34377
K7: 9451 | L7: 30285
K8: 6698 | L8: 19673
K9: 6752 | L9: 21007
K10: 5985 | L10: 16644
K11: 5586 | L11: 21022
K12: 8476 | L12: 23928
K13: 9191 | L13: 31403
K14: 7242 | L14: 25333
K15: 8277 | L15: 28071

Sheet Working with Functions (hidden)
A2: © S. Christian Albright, 2011, All Rights Reserved
K3: Bob | L3: Mary | M3: Jack
K4: 10 | L4: 6 | M4: 5
K5: 5 | L5: 11 | M5: 7
K6: 13 | L6: 10 | M6: 6
K7: 2 | L7: 15 | M7: 19
K8: 9 | L8: 5 | M8: 20
K9: 18 | L9: 16 | M9: 19
K10: 18 | L10: 15 | M10: 1
K11: 2 | L11: 19 | M11: 10
K12: 18 | L12: 14 | M12: 6

Sheet Function help (hidden)
A2: © S. Christian Albright, 2011, All Rights Reserved
K3: Payments for Mr. Jones, who just bought a new car
K5: Amount financed | L5: 15000
K6: Annual interest rate | L6: 0.089
K7: Term (number of months financed) | L7: 36
K8: Monthly payment | V8: Payment | W8: =PMT(L6/12,L7,-L5) -> 476.2981773

Sheet Two Essential Functions (hidden)
A2: © S. Christian Albright, 2011, All Rights Reserved

Sheet IF (hidden)
A2: © S. Christian Albright, 2011, All Rights Reserved
K3: For each product, if the end inventory is less than or equal to 50 units,
K4: enough units are ordered to bring stock back up to 200; otherwise, no
K5: units of that product are ordered
K7: Product | L7: End inventory | M7: Order placed (yes or no)? | N7: # of units ordered | V7: Order placed? | W7: # ordered
K8: 1 | L8: 100 | V8: =IF(L8<=50,"yes","no") -> no | W8: =IF(L8<=50,200-L8,0) -> 0
K9: 2 | L9: 40 | V9: =IF(L9<=50,"yes","no") -> yes | W9: =IF(L9<=50,200-L9,0) -> 160
K10: 3 | L10: 20 | V10: =IF(L10<=50,"yes","no") -> yes | W10: =IF(L10<=50,200-L10,0) -> 180
K11: 4 | L11: 70 | V11: =IF(L11<=50,"yes","no") -> no | W11: =IF(L11<=50,200-L11,0) -> 0
K21: Each student gets an A (if score is 90 or above), S for satisfactory (if score
K22: if 60 or above but less than 90) or U for unsatisfactory if score is below 60
K24: Student | L24: Score | M24: Grade | V24: Grade
K25: 1 | L25: 70 | V25: =IF(L25>=90,"A",IF(L25>=60,"S","U")) -> S
K26: 2 | L26: 95 | V26: A
K27: 3 | L27: 55 | V27: U
K28: 4 | L28: 80 | V28: S
K29: 5 | L29: 60 | V29: S
K30: 6 | L30: 90 | V30: A
K43: Investor sells stock only if its price has gone up three consecutive days
K44: (including the current day)
K46: Day | L46: Price change | M46: Sell (yes or no)?
K47: 1 | L47: Up | V47: Sell?
K48: 2 | L48: Down
K49: 3 | L49: Up | V49: =IF(AND(L47="Up",L48="Up",L49="Up"),"Yes","No") -> No
K50: 4 | L50: Up | V50: =IF(AND(L48="Up",L49="Up",L50="Up"),"Yes","No") -> No
K51: 5 | L51: Up | V51: =IF(AND(L49="Up",L50="Up",L51="Up"),"Yes","No") -> Yes
K52: 6 | L52: Down | V52: =IF(AND(L50="Up",L51="Up",L52="Up"),"Yes","No") -> No
K58: Any student who scores at least 95 on any of the exams gets a bonus
K59: which is 1% of their total score.
K61: Student | L61: Exam 1 | M61: Exam 2 | N61: Exam 3 | O61: Exam 4 | P61: Bonus | V61: Bonus
K62: 1 | L62: 87 | M62: 83 | N62: 83 | O62: 80 | V62: =IF(OR(L62>=95,M62>=95,N62>=95,O62>=95),0.01*SUM(L62:O62),0) -> 0
K63: 2 | L63: 77 | M63: 72 | N63: 74 | O63: 97 | V63: 3.2
K64: 3 | L64: 80 | M64: 95 | N64: 79 | O64: 75 | V64: 3.29
K65: 4 | L65: 82 | M65: 87 | N65: 96 | O65: 88 | V65: 3.53
K66: 5 | L66: 78 | M66: 94 | N66: 81 | O66: 79 | V66: 0
K67: 6 | L67: 75 | M67: 83 | N67: 80 | O67: 72 | V67: 0

Sheet VLOOKUP (hidden)
A2: © S. Christian Albright, 2011, All Rights Reserved
K37: Student | L37: Score | M37: Grade | O37: Lookup table
K38: 1 | L38: 67 | M38: =VLOOKUP(L38,$O$38:$P$42,2) -> D | O38: 0 | P38: F
K39: 2 | L39: 72 | M39: C | O39: 60 | P39: D
K40: 3 | L40: 77 | M40: C | O40: 70 | P40: C
K41: 4 | L41: 70 | M41: C | O41: 80 | P41: B
K42: 5 | L42: 66 | M42: D | O42: 90 | P42: A
K43: 6 | L43: 81 | M43: B
K44: 7 | L44: 93 | M44: A
K45: 8 | L45: 59 | M45: F
K46: 9 | L46: 90 | M46: A
K48: Order # | L48: Units sold | M48: Total cost | V48: Total cost | X48: Lookup table
K49: 1 | L49: 373 | V49: =VLOOKUP(L49,$X$49:$Y$51,2)*L49 -> 932.5 | X49: 0 | Y49: 3
K50: 2 | L50: 475 | V50: 950 | X50: 300 | Y50: 2.5
K51: 3 | L51: 459 | V51: 918 | X51: 400 | Y51: 2
K52: 4 | L52: 441 | V52: 882
K53: 5 | L53: 238 | V53: 714
K54: 6 | L54: 349 | V54: 872.5
K55: 7 | L55: 344 | V55: 860
K56: 8 | L56: 203 | V56: =VLOOKUP(L56,$X$49:$Y$51,2)*L56 -> 609
K60: Student | L60: Grade | M60: Gradepoints | O60: Grade | P60: Gradepoints
K61: Adams | L61: B | O61: A | P61: 4
K62: Davis | L62: A- | O62: A- | P62: 3.7
K63: Edwards | L63: C+ | O63: B+ | P63: 3.3
K64: Johnson | L64: B- | O64: B | P64: 3
K65: Myers | L65: B+ | O65: B- | P65: 2.7
K66: Smith | L66: A | O66: C+ | P66: 2.3
K67: Thomson | L67: C | O67: C | P67: 2
K68: Williams | L68: D | O68: C- | P68: 1.7

Sheet Counting, Summing Functions (hidden)
A2: © S. Christian Albright, 2011, All Rights Reserved

Sheet SUM, AVERAGE (hidden)
A2: © S. Christian Albright, 2011, All Rights Reserved
K3: Table of costs for units produced in one month (along side)
K4: for use in another month (along top)
L6: Feb | M6: Mar | N6: Apr | O6: May
K7: Jan | L7: =ROUND(INT(RAND()*4000+3000),-2) -> 3400 | M7: =ROUND(INT(RAND()*4000+3000),-2) -> 4100 | N7: =ROUND(INT(RAND()*4000+3000),-2) -> 6800 | O7: =ROUND(INT(RAND()*4000+3000),-2) -> 3700
K8: Feb | M8: =ROUND(INT(RAND()*4000+3000),-2) -> 4000 | N8: =ROUND(INT(RAND()*4000+3000),-2) -> 4500 | O8: =ROUND(INT(RAND()*4000+3000),-2) -> 5200
K9: Mar | N9: =ROUND(INT(RAND()*4000+3000),-2) -> 3100 | O9: =ROUND(INT(RAND()*4000+3000),-2) -> 5700
K10: Apr | O10: =ROUND(INT(RAND()*4000+3000),-2) -> 4500
K12: Total cost
K27: Student ID | L27: Exam score | O27: Average (only for students who took the exam)
K28: 1533 | L28: 68
K29: 8031 | L29: 74
K30: 9859 | L30: 80 | O30: Average (giving 0s to students who were absent)
K31: 9106 | L31: 63
K32: 3535 | L32: 72
K33: 8192 | L33: Absent
K34: 6102 | L34: 85
K35: 6774 | L35: 70
K36: 7558 | L36: 64
K37: 314 | L37: 72
K38: 9082 | L38: 81
K39: 2397 | L39: 75
K40: 2517 | L40: 80
K41: 2432 | L41: 73
K42: 6016 | L42: 63
K43: 5269 | L43: 80
K44: 4847 | L44: 88
K45: 6537 | L45: 71
K46: 9922 | L46: 73
K47: 4525 | L47: 71
K48: 1491 | L48: 71
K49: 7897 | L49: 68
K50: 4088 | L50: 82
K51: 166 | L51: 76
K52: 7925 | L52: 75
K53: 6405 | L53: 81
K54: 802 | L54: 76
K55: 2931 | L55: 83
K56: 7625 | L56: 67
K57: 2628 | L57: 67
K58: 5417 | L58: 92
K59: 7804 | L59: 72
K60: 3994 | L60: 69
K61: 394 | L61: 85
K62: 8847 | L62: 78
K63: 7855 | L63: 81
K64: 8668 | L64: Absent
K65: 3738 | L65: 77
K66: 5534 | L66: 70
K67: 6965 | L67: 71
K68: 8863 | L68: 69
K69: 8762 | L69: 73
K70: 6466 | L70: 60
K71: 6100 | L71: 76
K72: 1878 | L72: 74
K73: 5970 | L73: 67
K74: 9691 | L74: 62
K75: 8666 | L75: 77
K76: 4865 | L76: 91
K77: 6198 | L77: 81
K78: 8554 | L78: 87
K79: 6753 | L79: 76
K80: 9574 | L80: 77
K81: 3891 | L81: 81
K82: 8186 | L82: Absent
K83: 1306 | L83: 73
K84: 6835 | L84: 83
K85: 3136 | L85: 59
K86: 4938 | L86: 74
K87: 4807 | L87: 74
K88: 4421 | L88: 78

Sheet COUNT, COUNTA, COUNTBLANK (hidden)
A2: © S. Christian Albright, 2011, All Rights Reserved
K3: Student | L3: Exam score | N3: Number enrolled
K4: 1 | L4: 62
K5: 2 | L5: 73
K6: 3 | L6: 74 | N6: Number who took exam
K7: 4
K8: 5 | L8: 77
K9: 6 | L9: 57 | N9: Number who were absent
K10: 7 | L10: 67
K11: 8 | L11: 90
K12: 9 | L12: 77
K13: 10 | L13: 83
K14: 11 | L14: 71
K15: 12 | L15: 75
K16: 13 | L16: 72
K17: 14 | L17: 82
K18: 15 | L18: 68
K19: 16 | L19: 86
K20: 17 | L20: 77
K21: 18 | L21: 68
K22: 19 | L22: 86
K23: 20
K24: 21 | L24: 80
K25: 22 | L25: 81
K26: 23 | L26: 84
K27: 24 | L27: 71
K28: 25 | L28: 76
K29: 26 | L29: 81
K30: 27 | L30: 99
K31: 28 | L31: 72
K32: 29 | L32: 78
K33: 30 | L33: 67
K34: 31 | L34: 89
K35: 32 | L35: 70
K36: 33 | L36: 77
K37: 34
K38: 35 | L38: 83
K39: 36 | L39: 74
K40: 37 | L40: 87
K41: 38 | L41: 75
K42: 39 | L42: 86
K43: 40 | L43: 77
K44: 41 | L44: 73
K45: 42 | L45: 74
K46: 43 | L46: 79
K47: 44 | L47: 80
K48: 45 | L48: 77
K49: 46 | L49: 72
K50: 47 | L50: 77
K51: 48 | L51: 71
K52: 49 | L52: 70
K53: 50 | L53: 68
K54: 51 | L54: 79
K55: 52 | L55: 75
K56: 53 | L56: 80
K57: 54 | L57: 73
K58: 55 | L58: 61
K59: 56 | L59: 62
K60: 57 | L60: 68
K61: 58 | L61: 92
K62: 59 | L62: 85
K63: 60 | L63: 77
K64: 61 | L64: 79
K65: 62 | L65: 86
K66: 63 | L66: 83
K67: 64 | L67: 83
K68: 65 | L68: 76
K69: 66 | L69: 89
K70: 67 | L70: 72
K71: 68 | L71: 69
K72: 69 | L72: 66
K73: 70 | L73: 71
K74: 71 | L74: 80
K75: 72 | L75: 61

Sheet COUNTIF, SUMIF, AVERAGEIF (hidden)
A2: © S. Christian Albright, 2011, All Rights Reserved
K3: Student | L3: Gender | M3: Age | N3: Exam score | P3: Gender condition | Q3: Male
K4: 1 | L4: Male | M4: 18 | N4: 62 | P4: Age cutoff | Q4: 20
K5: 2 | L5: Female | M5: 21 | N5: 73 | P5: Exam score cutoff | Q5: 87
K6: 3 | L6: Female | M6: 18 | N6: 74
K7: 4 | L7: Female | M7: 18 | P7: # of "high" scores | Z7: =COUNTIF(N4:N75,">="&Q5) -> 6
K8: 5 | L8: Male | M8: 18 | N8: 77
K9: 6 | L9: Female | M9: 20 | N9: 57 | P9: Sum of scores for males | Z9: =SUMIF(L4:L75,"Male",N4:N75) -> 2660
K10: 7 | L10: Female | M10: 18 | N10: 67 | P10: Average of scores for males | Z10: =AVERAGEIF(L4:L75,"Male",N4:N75) -> 78.23529412
K11: 8 | L11: Male | M11: 19 | N11: 90 | P11: Sum of scores for "young" people | Z11: =SUMIF(M4:M75,"<"&Q4,N4:N75) -> 2527
K12: 9 | L12: Male | M12: 19 | N12: 77 | P12: Average of scores for "young" people | Z12: =AVERAGEIF(M4:M75,"<"&Q4,N4:N75) -> 76.57575758
K13: 10 | L13: Male | M13: 22 | N13: 83 | P13: Sum of scores for "old" people | Z13: =SUMIF(M4:M75,">="&Q4,N4:N75) -> 2733
K14: 11 | L14: Female | M14: 20 | N14: 71 | P14: Average of scores for "old" people | Z14: =AVERAGEIF(M4:M75,">="&Q4,N4:N75) -> 75.91666667
K15: 12 | L15: Female | M15: 20 | N15: 75
K16: 13 | L16: Female | M16: 20 | N16: 72
K17: 14 | L17: Female | M17: 24 | N17: 82
K18: 15 | L18: Female | M18: 18 | N18: 68
K19: 16 | L19: Male | M19: 18 | N19: 86
K20: 17 | L20: Female | M20: 24 | N20: 77
K21: 18 | L21: Male | M21: 21 | N21: 68
K22: 19 | L22: Male | M22: 20 | N22: 86
K23: 20 | L23: Female | M23: 21
K24: 21 | L24: Male | M24: 20 | N24: 80
K25: 22 | L25: Female | M25: 18 | N25: 81
K26: 23 | L26: Male | M26: 20 | N26: 84
K27: 24 | L27: Female | M27: 19 | N27: 71
K28: 25 | L28: Female | M28: 18 | N28: 76
K29: 26 | L29: Male | M29: 21 | N29: 81
K30: 27 | L30: Female | M30: 18 | N30: 99
K31: 28 | L31: Male | M31: 20 | N31: 72
K32: 29 | L32: Female | M32: 18 | N32: 78
K33: 30 | L33: Female | M33: 21 | N33: 67
K34: 31 | L34: Female | M34: 21 | N34: 89
K35: 32 | L35: Female | M35: 19 | N35: 70
K36: 33 | L36: Female | M36: 19 | N36: 77
K37: 34 | L37: Female | M37: 18
K38: 35 | L38: Male | M38: 22 | N38: 83
K39: 36 | L39: Female | M39: 19 | N39: 74
K40: 37 | L40: Male | M40: 19 | N40: 87
K41: 38 | L41: Male | M41: 18 | N41: 75
K42: 39 | L42: Male | M42: 20 | N42: 86
K43: 40 | L43: Male | M43: 21 | N43: 77
K44: 41 | L44: Male | M44: 20 | N44: 73
K45: 42 | L45: Male | M45: 20 | N45: 74
K46: 43 | L46: Female | M46: 20 | N46: 79
K47: 44 | L47: Male | M47: 18 | N47: 80
K48: 45 | L48: Male | M48: 20 | N48: 77
K49: 46 | L49: Female | M49: 21 | N49: 72
K50: 47 | L50: Male | M50: 19 | N50: 77
K51: 48 | L51: Male | M51: 19 | N51: 71
K52: 49 | L52: Female | M52: 23 | N52: 70
K53: 50 | L53: Female | M53: 19 | N53: 68
K54: 51 | L54: Female | M54: 24 | N54: 79
K55: 52 | L55: Male | M55: 19 | N55: 75
K56: 53 | L56: Male | M56: 18 | N56: 80
K57: 54 | L57: Female | M57: 19 | N57: 73
K58: 55 | L58: Female | M58: 21 | N58: 61
K59: 56 | L59: Female | M59: 21 | N59: 62
K60: 57 | L60: Male | M60: 19 | N60: 68
K61: 58 | L61: Male | M61: 19 | N61: 92
K62: 59 | L62: Female | M62: 20 | N62: 85
K63: 60 | L63: Male | M63: 22 | N63: 77
K64: 61 | L64: Female | M64: 19 | N64: 79
K65: 62 | L65: Male | M65: 20 | N65: 86
K66: 63 | L66: Female | M66: 19 | N66: 83
K67: 64 | L67: Male | M67: 19 | N67: 83
K68: 65 | L68: Male | M68: 18 | N68: 76
K69: 66 | L69: Female | M69: 24 | N69: 89
K70: 67 | L70: Female | M70: 18 | N70: 72
K71: 68 | L71: Female | M71: 21 | N71: 69
K72: 69 | L72: Male | M72: 23 | N72: 66
K73: 70 | L73: Male | M73: 24 | N73: 71
K74: 71 | L74: Male | M74: 20 | N74: 80
K75: 72 | L75: Female | M75: 18 | N75: 61

Sheet COUNTIFS, SUMIFS, AVERAGEIFS (hidden)
A2: © S. Christian Albright, 2011, All Rights Reserved
K3: Student | L3: Gender | M3: Age | N3: Exam score | P3: Gender condition | Q3: Female
K4: 1 | L4: Male | M4: 18 | N4: 62 | P4: Age cutoff | Q4: 20
K5: 2 | L5: Female | M5: 21 | N5: 73 | P5: Exam score cutoff | Q5: 87
K6: 3 | L6: Female | M6: 18 | N6: 1
K7: 4 | L7: Female | M7: 18 | N7: 65 | P7: COUNTIFS question | AA7: =COUNTIFS(L4:L75,Q3,M4:M75,"<"&Q4,N4:N75,"<="&Q5) -> 18
K8: 5 | L8: Male | M8: 18 | N8: 77
K9: 6 | L9: Female | M9: 20 | N9: 57 | P9: SUMIFS question | AA9: =SUMIFS(N4:N75,L4:L75,Q3,M4:M75,"<"&Q4) -> 1342
K10: 7 | L10: Female | M10: 18 | N10: 67 | P10: AVERAGEIFS question | AA10: =AVERAGEIFS(N4:N75,L4:L75,Q3,M4:M75,"<"&Q4) -> 70.63157895
K11: 8 | L11: Male | M11: 19 | N11: 90
K12: 9 | L12: Male | M12: 19 | N12: 77
K13: 10 | L13: Male | M13: 22 | N13: 83
K14: 11 | L14: Female | M14: 20 | N14: 71
K15: 12 | L15: Female | M15: 20 | N15: 75
K16: 13 | L16: Female | M16: 20 | N16: 72
K17: 14 | L17: Female | M17: 24 | N17: 82
K18: 15 | L18: Female | M18: 18 | N18: 68
K19: 16 | L19: Male | M19: 18 | N19: 86
K20: 17 | L20: Female | M20: 24 | N20: 77
K21: 18 | L21: Male | M21: 21 | N21: 68
K22: 19 | L22: Male | M22: 20 | N22: 86
K23: 20 | L23: Female | M23: 21 | N23: 89
K24: 21 | L24: Male | M24: 20 | N24: 80
K25: 22 | L25: Female | M25: 18 | N25: 81
K26: 23 | L26: Male | M26: 20 | N26: 84
K27: 24 | L27: Female | M27: 19 | N27: 71
K28: 25 | L28: Female | M28: 18 | N28: 76
K29: 26 | L29: Male | M29: 21 | N29: 81
K30: 27 | L30: Female | M30: 18 | N30: 99
K31: 28 | L31: Male | M31: 20 | N31: 72
K32: 29 | L32: Female | M32: 18 | N32: 78
K33: 30 | L33: Female | M33: 21 | N33: 67
K34: 31 | L34: Female | M34: 21 | N34: 89
K35: 32 | L35: Female | M35: 19 | N35: 70
K36: 33 | L36: Female | M36: 19 | N36: 77
K37: 34 | L37: Female | M37: 18 | N37: 79
K38: 35 | L38: Male | M38: 22 | N38: 83
K39: 36 | L39: Female | M39: 19 | N39: 74
K40: 37 | L40: Male | M40: 19 | N40: 87
K41: 38 | L41: Male | M41: 18 | N41: 75
K42: 39 | L42: Male | M42: 20 | N42: 86
K43: 40 | L43: Male | M43: 21 | N43: 77
K44: 41 | L44: Male | M44: 20 | N44: 73
K45: 42 | L45: Male | M45: 20 | N45: 74
K46: 43 | L46: Female | M46: 20 | N46: 79
K47: 44 | L47: Male | M47: 18 | N47: 80
K48: 45 | L48: Male | M48: 20 | N48: 77
K49: 46 | L49: Female | M49: 21 | N49: 72
K50: 47 | L50: Male | M50: 19 | N50: 77
K51: 48 | L51: Male | M51: 19 | N51: 71
K52: 49 | L52: Female | M52: 23 | N52: 70
K53: 50 | L53: Female | M53: 19 | N53: 68
K54: 51 | L54: Female | M54: 24 | N54: 79
K55: 52 | L55: Male | M55: 19 | N55: 75
K56: 53 | L56: Male | M56: 18 | N56: 80
K57: 54 | L57: Female | M57: 19 | N57: 73
K58: 55 | L58: Female | M58: 21 | N58: 61
K59: 56 | L59: Female | M59: 21 | N59: 62
K60: 57 | L60: Male | M60: 19 | N60: 68
K61: 58 | L61: Male | M61: 19 | N61: 92
K62: 59 | L62: Female | M62: 20 | N62: 85
K63: 60 | L63: Male | M63: 22 | N63: 77
K64: 61 | L64: Female | M64: 19 | N64: 79
K65: 62 | L65: Male | M65: 20 | N65: 86
K66: 63 | L66: Female | M66: 19 | N66: 83
K67: 64 | L67: Male | M67: 19 | N67: 83
K68: 65 | L68: Male | M68: 18 | N68: 76
K69: 66 | L69: Female | M69: 24 | N69: 89
K70: 67 | L70: Female | M70: 18 | N70: 72
K71: 68 | L71: Female | M71: 21 | N71: 69
K72: 69 | L72: Male | M72: 23 | N72: 66
K73: 70 | L73: Male | M73: 24 | N73: 71
K74: 71 | L74: Male | M74: 20 | N74: 80
K75: 72 | L75: Female | M75: 18 | N75: 61

Sheet SUMPRODUCT (hidden)
A2: © S. Christian Albright, 2011, All Rights Reserved
K3: Unit shipping costs | L3: City1 | M3: City2 | N3: City3
K4: Plant1 | L4: 1.25 | M4: 1.35 | N4: 1.55
K5: Plant2 | L5: 1.15 | M5: 1.45 | N5: 1.25
K6: Plant3 | L6: 1.35 | M6: 1.45 | N6: 1.15
K8: Units shipped | L8: City1 | M8: City2 | N8: City3
K9: Plant1 | L9: 155 | M9: 180 | N9: 0
K10: Plant2 | L10: 250 | M10: 130 | N10: 185
K11: Plant3 | L11: 0 | M11: 210 | N11: 140
K13: Total cost

Sheet Math Functions (hidden)
A2: © S. Christian Albright, 2011, All Rights Reserved

Sheet INT, ROUND (hidden)
A2: © S. Christian Albright, 2011, All Rights Reserved
K3: 1.7 | L3: -3.2 | M3: 14 | N3: -7
K16: 100.35 | L16: 14325 | M16: 16.3467 | N16: 154432 | O16: 0.3569
K17: 0 | L17: -2 | M17: 2 | N17: -3 | O17: 1

Sheet ABS, SQRT, SUMSQ (hidden)
A2: © S. Christian Albright, 2011, All Rights Reserved
K3: 6 | L3: -50 | M3: 0
K13: 64 | L13: 0.5 | M13: -20 | N13: 0
K23: 21 | L23: 43 | M23: 4 | N23: 21 | O23: 35

Sheet LN, EXP (hidden)
A2: © S. Christian Albright, 2011, All Rights Reserved
K3: 1023 | L3: 0.7 | M3: 1 | N3: 0 | O3: -40
K17: 1 | L17: -4 | M17: 2.3 | N17: 0 | O17: 15

Sheet RAND, RANDBETWEEN (hidden)
A2: © S. Christian Albright, 2011, All Rights Reserved

Sheet Text Functions (hidden)
A2: © S. Christian Albright, 2011, All Rights Reserved

Sheet TRIM, VALUE (hidden)
A2: © S. Christian Albright, 2011, All Rights Reserved
K3: Bob
K4: Jane
K5: Justin
K6: Lindsay
K7: George
K8: Sam
K9: Christine
K10: Tom
K11: Jenny
K12: Doug
K23: 19
K24: 65
K25: 36
K26: 12
K27: 57
K28: 93
K29: 45

Sheet Concatenating (hidden)
A2: © S. Christian Albright, 2011, All Rights Reserved
K3: Bob | L3: E | M3: Jones
K4: Stephen | L4: C | M4: Davis
K5: Andy | L5: T | M5: Thompson
K6: John | L6: F | M6: Wilson
K7: Kathy | L7: C | M7: Fredericks
K8: Karen | L8: D | M8: Williams
K9: Tom | L9: T | M9: Smith
K10: Peter | L10: F | M10: Jennings
K11: Ted | L11: R | M11: Benson
K12: Jason | L12: E | M12: Samson

Sheet Parsing with Text to Columns (hidden)
A2: © S. Christian Albright, 2011, All Rights Reserved
K3: 606,360,516,1757,371
K4: 1631,1337,1260,1855,2823
K5: 904,749,486,1852,1612
K6: 2463,1324,1889,2597,312
K7: 1256,1839,1745,244,1508
K8: 2159,2917,1699,1351,974
K9: 1084,2379,1791,1933,507
K10: 1686,2454,1954,256,1068
K11: 1274,2330,2334,343,255
K12: 303,2128,578,824,1714
K13: 2989,2317,2196,642,2812
K14: 1743,2122,2428,871,2701
K15: 2817,2330,1217,407,327
K16: 894,1893,1963,1641,2533
K17: 2747,1952,243,2832,1487
K18: 358,2674,1660,1006,1249
K19: 1032,939,2172,2112,347
K20: 2639,2489,2905,412,2877
K21: 730,696,639,454,1591
K22: 1774,2506,2690,2498,2407
K23: 2406,493,1457,1317,2993
K24: 1359,894,2281,2454,1239
K25: 2847,1432,381,1518,941
K26: 1597,313,1231,596,702
K27: 2838,2547,846,868,1753
K28: 2049,558,201,1034,351
K29: 1395,1314,1004,489,275
K30: 2628,2596,1901,2114,381
K31: 1439,1574,2318,277,1202
K32: 918,2177,621,1777,2106
K33: 867,2906,2844,2173,1370
K34: 2314,236,1387,1586,1106
K35: 1316,1475,1791,1494,2405
K36: 1006,795,1804,861,979

Sheet Parsing with text functions (hidden)
A2: © S. Christian Albright, 2011, All Rights Reserved
K3: Jones, Bob | L3: Bob | M3: Jones
K4: Davis, Stephen
K5: Thompson, Andy
K6: Wilson, John
K7: Fredericks, Kathy
K8: Williams, Karen
K9: Smith, Tom
K10: Jennings, Peter
K11: Benson, Ted
K12: Samson, Jason
K93: Full name | L93: Length | M93: Comma | N93: Space | O93: First name | P93: Last name | X93: Full name | Y93: Length | Z93: Comma | AA93: Space | AB93: First name | AC93: Last name
K94: Jones, Bob | X94: Jones, Bob | Y94: =LEN(X94) -> 10 | Z94: =FIND(",",X94,1) -> 6 | AA94: =Z94+1 -> 7 | AB94: =RIGHT(X94,Y94-AA94) -> Bob | AC94: =LEFT(X94,Z94-1) -> Jones
K95: Davis, Stephen | X95: Davis, Stephen | Y95: 14 | Z95: 6 | AA95: 7 | AB95: Stephen | AC95: Davis
K96: Thompson, Andy | X96: Thompson, Andy | Y96: 14 | Z96: 9 | AA96: 10 | AB96: Andy | AC96: Thompson
K97: Wilson, John | X97: Wilson, John | Y97: 12 | Z97: 7 | AA97: 8 | AB97: John | AC97: Wilson
K98: Fredericks, Kathy | X98: Fredericks, Kathy | Y98: 17 | Z98: 11 | AA98: 12 | AB98: Kathy | AC98: Fredericks
K99: Williams, Karen | X99: Williams, Karen | Y99: 15 | Z99: 9 | AA99: 10 | AB99: Karen | AC99: Williams
K100: Smith, Tom | X100: Smith, Tom | Y100: 10 | Z100: 6 | AA100: 7 | AB100: Tom | AC100: Smith
K101: Jennings, Peter | X101: Jennings, Peter | Y101: 15 | Z101: 9 | AA101: 10 | AB101: Peter | AC101: Jennings
K102: Benson, Ted | X102: Benson, Ted | Y102: 11 | Z102: 7 | AA102: 8 | AB102: Ted | AC102: Benson
K103: Samson, Jason | X103: Samson, Jason | Y103: 13 | Z103: 7 | AA103: 8 | AB103: Jason | AC103: Samson
X111: Full name | Y111: Length | Z111: Comma | AA111: Space1 | AB111: Period | AC111: Space2 | AD111: Last name | AE111: Used name | AF111: Initial | AG111: Middle initial
K112: Jones, Bob E. | X112: Jones, Bob E. | Y112: =LEN(X112) -> 13 | Z112: =FIND(",",X112,1) -> 6 | AA112: =Z112+1 -> 7 | AB112: =FIND(".",X112,1) -> 13 | AC112: =FIND(" ",X112,AA112+1) -> 11 | AD112: =LEFT(X112,Z112-1) -> Jones | AE112: =IF(ISERROR(AB112),RIGHT(X112,Y112-AA112),IF(AC112=AB112+1,RIGHT(X112,Y112-AC112),MID(X112,AA112+1,AC112-AA112-1))) -> Bob | AF112: =IF(ISERROR(AB112),"",MID(X112,AB112-1,1)) -> E | AG112: =IF(ISERROR(AB112),"",IF(AB112=Y112,"Yes","No")) -> Yes
K113: Davis, F. Stephen | X113: Davis, F. Stephen | Y113: 17 | Z113: 6 | AA113: 7 | AB113: 9 | AC113: 10 | AD113: =LEFT(X113,Z113-1) -> Davis | AE113: =IF(ISERROR(AB113),RIGHT(X113,Y113-AA113),IF(AC113=AB113+1,RIGHT(X113,Y113-AC113),MID(X113,AA113+1,AC113-AA113-1))) -> Stephen | AF113: =IF(ISERROR(AB113),"",MID(X113,AB113-1,1)) -> F | AG113: =IF(ISERROR(AB113),"",IF(AB113=Y113,"Yes","No")) -> No
K114: Thompson, Andy | X114: Thompson, Andy | Y114: 14 | Z114: 9 | AA114: 10 | AD114: Thompson | AE114: Andy
K115: Wilson, John B. | X115: Wilson, John B. | Y115: 15 | Z115: 7 | AA115: 8 | AB115: 15 | AC115: 13 | AD115: Wilson | AE115: John | AF115: B | AG115: Yes
K116: Fredericks, Kathy C. | X116: Fredericks, Kathy C. | Y116: 20 | Z116: 11 | AA116: 12 | AB116: 20 | AC116: 18 | AD116: Fredericks | AE116: Kathy | AF116: C | AG116: Yes
K117: Williams, Karen R. | X117: Williams, Karen R. | Y117: 18 | Z117: 9 | AA117: 10 | AB117: 18 | AC117: 16 | AD117: Williams | AE117: Karen | AF117: R | AG117: Yes
K118: Smith, J. Tom | X118: Smith, J. Tom | Y118: 13 | Z118: 6 | AA118: 7 | AB118: 9 | AC118: 10 | AD118: Smith | AE118: Tom | AF118: J | AG118: No
K119: Jennings, Peter | X119: Jennings, Peter | Y119: 15 | Z119: 9 | AA119: 10 | AD119: Jennings | AE119: Peter
K120: Benson, Ted C. | X120: Benson, Ted C. | Y120: 14 | Z120: 7 | AA120: 8 | AB120: 14 | AC120: 12 | AD120: Benson | AE120: Ted | AF120: C | AG120: Yes
K121: Samson, Jason A. | X121: Samson, Jason A. | Y121: 16 | Z121: 7 | AA121: 8 | AB121: 16 | AC121: 14 | AD121: Samson | AE121: Jason | AF121: A | AG121: Yes

Sheet Date functions (hidden)
A2: © S. Christian Albright, 2011, All Rights Reserved
K35: 2004-03-14T13:30:00
K36: 1901-12-31
K37: 03:50:00
K38: 12:00:00
K39: 1996-02-29
K40: 1946-09-24T14:45:00

Sheet Y2K (hidden)
A2: © S. Christian Albright, 2011, All Rights Reserved

Sheet NOW, TODAY (hidden)
A2: © S. Christian Albright, 2011, All Rights Reserved
K3: Today's date
K4: Current time

Sheet YEAR, MONTH, DAY, WEEKDAY (hidden)
A2: © S. Christian Albright, 2011, All Rights Reserved
K3: Date | L3: Year | M3: Month number | N3: Month name | O3: Day | P3: Weekday number | Q3: Weekday name
K4: 2001-09-11
K5: 1986-01-28
K6: 1963-11-22
K7: 1945-08-06
K8: 1941-12-07
K9: 1912-04-14
K11: Lookup table - months | N11: Lookup table - days
K12: 1 | L12: January | N12: 1 | O12: Sunday
K13: 2 | L13: February | N13: 2 | O13: Monday
K14: 3 | L14: March | N14: 3 | O14: Tuesday
K15: 4 | L15: April | N15: 4 | O15: Wednesday
K16: 5 | L16: May | N16: 5 | O16: Thursday
K17: 6 | L17: June | N17: 6 | O17: Friday
K18: 7 | L18: July | N18: 7 | O18: Saturday
K19: 8 | L19: August
K20: 9 | L20: September
K21: 10 | L21: October
K22: 11 | L22: November
K23: 12 | L23: December

Sheet DATEDIF (hidden)
A2: © S. Christian Albright, 2011, All Rights Reserved
K3: Dates of last two physical exams
K5: First exam | L5: 2009-04-05
K6: Next exam | L6: 2011-07-15
K8: Days (subtraction) | W8: =L6-L5 -> 831
K9: Days (DATEDIF) | W9: =DATEDIF(L5,L6,"d") -> 831
K10: Months (DATEDIF) | W10: =DATEDIF(L5,L6,"m") -> 27
K11: Years (DATEDIF) | W11: =DATEDIF(L5,L6,"y") -> 2

Sheet DATE, DATEVALUE (hidden)
A2: © S. Christian Albright, 2011, All Rights Reserved
K3: Birthdate | L3: Next birthday
K4: 1976-07-22 | L4: =IF(DATE(YEAR(TODAY()),MONTH(K4),DAY(K4))<TODAY(),DATE(YEAR(TODAY()+1),MONTH(K4),DAY(K4)),DATE(YEAR(TODAY()),MONTH(K4),DAY(K4))) -> 2012-07-22
K16: Birthdate | L16: Age | W16: Birthdate | X16: Age
W17: 1976-08-16 | X17: =IF(DATE(YEAR(TODAY()),MONTH(W17),DAY(W17))<=TODAY(),YEAR(TODAY())-YEAR(W17),YEAR(TODAY())-YEAR(W17)-1) -> 35
K24: Dates imported from a legacy system
K26: Nov 25, 1997
K27: Nov 26, 1997
K28: Nov 29, 1997
K29: Dec 1, 1997
K30: Dec 3, 1997

Sheet NETWORKDAYS, WORKDAY (hidden)
A2: © S. Christian Albright, 2011, All Rights Reserved
K5: Start date | L5: 2010-06-01 | N5: Holidays | X5: NETWORKDAYS | Y5: =NETWORKDAYS(L5,L6,O6:O12) -> 210
K6: Finish date | L6: 2011-03-25 | N6: Independence Day | O6: 2010-07-04 | X6: NETWORKDAYS.INTL | Y6: =NETWORKDAYS.INTL(L5,L6,11,O6:O12) -> 250
N7: Thanksgiving | O7: 2010-11-25
K8: Network days | O8: 2010-11-26
N9: Christmas, New Years | O9: 2010-12-24
O10: 2010-12-25
O11: 2010-12-31
O12: 2011-01-01
K25: Start date | L25: 2010-06-01 | N25: Holidays | X25: WORKDAY | Y25: =WORKDAY(L25,L26,O26:O32) -> 2011-02-07
K26: Days required | L26: 175 | N26: Independence Day | O26: 2010-07-04 | X26: WEEKDAY | Y26: =WEEKDAY(Y25) -> 2 | Z26: Monday
N27: Thanksgiving | O27: 2010-11-25
K28: First available workday | O28: 2010-11-26 | X28: WORKDAY.INTL | Y28: =WORKDAY.INTL(L25,L26,11,O26:O32) -> 2010-12-27
N29: Christmas, New Years | O29: 2010-12-24 | X29: WEEKDAY | Y29: =WEEKDAY(Y28) -> 2 | Z29: Monday
O30: 2010-12-25
O31: 2010-12-31
O32: 2011-01-01

Sheet Statistical Functions (hidden)
A2: © S. Christian Albright, 2011, All Rights Reserved

Sheet MIN, MAX (hidden)
A2: © S. Christian Albright, 2011, All Rights Reserved
K3: Sales rep | L3: Allison | M3: Baker | N3: Jones | O3: Miller | P3: Smith | Q3: Taylor
K4: Jan sales | L4: 3700 | M4: 2400 | N4: 2300 | O4: 3000 | P4: 3800 | Q4: 3700
K5: Feb sales | L5: 2600 | M5: 2200 | N5: 2400 | O5: 2800 | P5: 3600 | Q5: 2300
L8: Min sales | M8: Max sales
K9: Jan
K10: Feb

Sheet MEDIAN, PERCENTILE, QUANTILE (hidden)
A2: © S. Christian Albright, 2011, All Rights Reserved
K3: 33 | M3: Average
K4: 3 | M4: Median
K5: 0
K6: 1 | M6: Quartiles
K7: 4 | M7: Q1
K8: 14 | M8: Q2
K9: 5 | M9: Q3
K10: 41
K11: 3 | M11: Percentiles
K12: 5 | M12: P01
K13: 9 | M13: P05
K14: 1 | M14: P10
K15: 0 | M15: P25
K16: 22 | M16: P50
K17: 10 | M17: P75
K18: 5 | M18: P90
K19: 13 | M19: P95
K20: 7 | M20: P99
K21: 6
K22: 3
K23: 9
K24: 5
K25: 14
K26: 7
K27: 27
K28: 10
K29: 7
K30: 3
K31: 11
K32: 15
K33: 35
K34: 9
K35: 0
K36: 5
K37: 6
K38: 11
K39: 13
K40: 4
K41: 17
K42: 3
K43: 19
K44: 4
K45: 5
K46: 1
K47: 21
K48: 4
K49: 16
K50: 6
K51: 18
K52: 18
K53: 2
K54: 3
K55: 17
K56: 7
K57: 9
K58: 6
K59: 4
K60: 2
K61: 7
K62: 3
K63: 0
K64: 14
K65: 2
K66: 4
K67: 24
K68: 12
K69: 1
K70: 4
K71: 36
K72: 3
K73: 0
K74: 2
K75: 4
K76: 12
K77: 7
K78: 2
K79: 1
K80: 16
K81: 5
K82: 31
K83: 15
K84: 29
K85: 12
K86: 5
K87: 4
K88: 5
K89: 22
K90: 14
K91: 7
K92: 7
K93: 19
K94: 38
K95: 15
K96: 45
K97: 1
K98: 4
K99: 14
K100: 3
K101: 16
K102: 4

Sheet STDEV, VAR (hidden)
A2: © S. Christian Albright, 2011, All Rights Reserved
K3: 1034.44 | M3: Mean | X3: Mean | Y3: =AVERAGE(K3:K202) -> 999.77185
K4: 877.35 | M4: Variance | X4: Variance | Y4: =VAR(K3:K202) -> 83102.37763
K5: 794.42 | M5: Standard deviation | X5: St Dev | Y5: =STDEV(K3:K202) -> 288.27483
K6: 828.45
K7: 765.9 | M7: % within 1 stdev | X7: Mean - Stdev | Y7: =Y3-Y5 -> 711.49702 | Z7: # less | AA7: =COUNTIF(K3:K202,"<"&Y7) -> 36
K8: 1088.95 | X8: Mean + Stdev | Y8: =Y3+Y5 -> 1288.04668 | Z8: # greater | AA8: =COUNTIF(K3:K202,">"&Y8) -> 40
K9: 786.05 | X9: Pct with 1 stdev of mean | AA9: =1-SUM(AA7:AA8)/200 -> 0.62
K10: 1523.02
K11: 920.48
K12: 777.23
K13: 1247.63
K14: 1117.87
K15: 1157.3
K16: 641.35
K17: 520.49
K18: 586.68
K19: 952.22
K20: 878.36
K21: 1582.12
K22: 807.99
K23: 913.13
K24: 1051.65
K25: 628.44
K26: 651.86
K27: 843.55
K28: 1233.37
K29: 1036.55
K30: 543.17
K31: 866.31
K32: 883.25
K33: 1285.68
K34: 650.44
K35: 1412.4
K36: 1105.44
K37: 671.55
K38: 1077.21
K39: 1471.87
K40: 1362.55
K41: 1044.37
K42: 601.52
K43: 1256.48
K44: 1069.69
K45: 407.54
K46: 1609.11
K47: 1141.03
K48: 972.54
K49: 851.91
K50: 1324.67
K51: 1061.09
K52: 809.91
K53: 655.81
K54: 1224.02
K55: 1105.52
K56: 1102.63
K57: 342.62
K58: 642.01
K59: 762.48
K60: 945.73
K61: 1431.55
K62: 695.66
K63: 871.12
K64: 827.21
K65: 1468.62
K66: 863.17
K67: 582.4
K68: 919.07
K69: 1314.83
K70: 1418.85
K71: 909.82
K72: 1086.11
K73: 620.14
K74: 668.74
K75: 598.66
K76: 1175.09
K77: 1139
K78: 1369.23
K79: 618.31
K80: 693.67
K81: 1341.85
K82: 1479.33
K83: 477.41
K84: 962.29
K85: 686.64
K86: 1495.96
K87: 1101.87
K88: 1018.6
K89: 1027.43
K90: 921.99
K91: 868.49
K92: 856.14
K93: 724.87
K94: 1345.72
K95: 1127.91
K96: 1467.66
K97: 918.88
K98: 997.56
K99: 965.11
K100: 1059.32
K101: 1157.35
K102: 1116.73
K103: 1410.39
K104: 786.62
K105: 1477.32
K106: 1328.5
K107: 753.26
K108: 905.17
K109: 821.06
K110: 1052.57
K111: 926.89
K112: 579.01
K113: 873.54
K114: 1100.79
K115: 727.32
K116: 718.17
K117: 948.09
K118: 866.89
K119: 684.5
K120: 1391.63
K121: 678.82
K122: 961.36
K123: 1023.22
K124: 851.44
K125: 1247.63
K126: 1373.37
K127: 1177.79
K128: 929.79
K129: 690.18
K130: 736.95
K131: 1293.14
K132: 1134.24
K133: 1316.3
K134: 1440.09
K135: 1249.47
K136: 787.9
K137: 1320.84
K138: 1263.38
K139: 1212.95
K140: 1081.63
K141: 1214.14
K142: 1367.41
K143: 1579.93
K144: 1405.68
K145: 965.25
K146: 1081.01
K147: 713.61
K148: 1033.28
K149: 999.4
K150: 361.42
K151: 721.3
K152: 1052.62
K153: 1094.3
K154: 937.92
K155: 1217.14
K156: 225.9
K157: 707.88
K158: 856.16
K159: 949.8
K160: 1510.56
K161: 1234.83
K162: 1147.42
K163: 820.95
K164: 1049.69
K165: 915.41
K166: 862.87
K167: 1017.05
K168: 763.08
K169: 978.67
K170: 1357.03
K171: 1279.62
K172: 1361.16
K173: 952.66
K174: 523.33
K175: 1375.14
K176: 545.6
K177: 847.12
K178: 1464.07
K179: 1113.21
K180: 1292.26
K181: 634.98
K182: 651.65
K183: 602.12
K184: 1367.6
K185: 891.63
K186: 1197.37
K187: 1355.34
K188: 904.44
K189: 1638.89
K190: 1325.24
K191: 892.26
K192: 1553.37
K193: 697.54
K194: 1127.03
K195: 854.27
K196: 810.98
K197: 902.46
K198: 623.26
K199: 952.45
K200: 853.4
K201: 1029.52
... 1 more rows

Sheet CORREL, COVAR (hidden)
A2: © S. Christian Albright, 2011, All Rights Reserved
K3: Month | L3: Sales1 | M3: Sales2 | N3: Sales3 | P3: Correlations
K4: 2003-01-01 | L4: 800 | M4: 1750 | N4: 640 | P4: Sales1 vs Sales2 | AA4: =CORREL(L4:L82,M4:M82) -> 0.7761119316
K5: 2003-02-01 | L5: 1360 | M5: 2970 | N5: 280 | P5: Sales1 vs Sales3 | AA5: =CORREL(L4:L82,N4:N82) -> -0.3127392567
K6: 2003-03-01 | L6: 1150 | M6: 2370 | N6: 230 | P6: Sales2 vs Sales3 | AA6: =CORREL(M4:M82,N4:N82) -> -0.4124205182
K7: 2003-04-01 | L7: 940 | M7: 2010 | N7: 410
K8: 2003-05-01 | L8: 740 | M8: 1690 | N8: 290
K9: 2003-06-01 | L9: 1090 | M9: 2590 | N9: 460
K10: 2003-07-01 | L10: 780 | M10: 1640 | N10: 760
K11: 2003-08-01 | L11: 910 | M11: 2100 | N11: 840
K12: 2003-09-01 | L12: 990 | M12: 1620 | N12: 760
K13: 2003-10-01 | L13: 800 | M13: 1790 | N13: 710
K14: 2003-11-01 | L14: 1200 | M14: 2320 | N14: 690
K15: 2003-12-01 | L15: 1150 | M15: 2090 | N15: 640
K16: 2004-01-01 | L16: 880 | M16: 2170 | N16: 530
K17: 2004-02-01 | L17: 870 | M17: 1640 | N17: 640
K18: 2004-03-01 | L18: 870 | M18: 1980 | N18: 560
K19: 2004-04-01 | L19: 760 | M19: 1360 | N19: 980
K20: 2004-05-01 | L20: 1010 | M20: 2110 | N20: 880
K21: 2004-06-01 | L21: 820 | M21: 1740 | N21: 570
K22: 2004-07-01 | L22: 1140 | M22: 2040 | N22: 650
K23: 2004-08-01 | L23: 730 | M23: 1940 | N23: 600
K24: 2004-09-01 | L24: 1150 | M24: 2000 | N24: 540
K25: 2004-10-01 | L25: 690 | M25: 890 | N25: 1130
K26: 2004-11-01 | L26: 1210 | M26: 2480 | N26: 600
K27: 2004-12-01 | L27: 1080 | M27: 2050 | N27: 660
K28: 2005-01-01 | L28: 1420 | M28: 2840 | N28: 330
K29: 2005-02-01 | L29: 1230 | M29: 2490 | N29: 710
K30: 2005-03-01 | L30: 1170 | M30: 2330 | N30: 610
K31: 2005-04-01 | L31: 1140 | M31: 2540 | N31: 840
K32: 2005-05-01 | L32: 560 | M32: 1750 | N32: 1010
K33: 2005-06-01 | L33: 910 | M33: 2490 | N33: 950
K34: 2005-07-01 | L34: 1260 | M34: 2930 | N34: 150
K35: 2005-08-01 | L35: 1050 | M35: 2500 | N35: 390
K36: 2005-09-01 | L36: 1020 | M36: 2240 | N36: 440
K37: 2005-10-01 | L37: 760 | M37: 1630 | N37: 420
K38: 2005-11-01 | L38: 710 | M38: 1380 | N38: 880
K39: 2005-12-01 | L39: 1000 | M39: 2000 | N39: 660
K40: 2006-01-01 | L40: 940 | M40: 2200 | N40: 630
K41: 2006-02-01 | L41: 1270 | M41: 2510 | N41: 510
K42: 2006-03-01 | L42: 1370 | M42: 2610 | N42: 560
K43: 2006-04-01 | L43: 1050 | M43: 2180 | N43: 620
K44: 2006-05-01 | L44: 1110 | M44: 2590 | N44: 470
K45: 2006-06-01 | L45: 1170 | M45: 2160 | N45: 580
K46: 2006-07-01 | L46: 990 | M46: 2020 | N46: 480
K47: 2006-08-01 | L47: 1040 | M47: 1870 | N47: 300
K48: 2006-09-01 | L48: 1350 | M48: 2590 | N48: 540
K49: 2006-10-01 | L49: 820 | M49: 1440 | N49: 520
K50: 2006-11-01 | L50: 860 | M50: 1870 | N50: 620
K51: 2006-12-01 | L51: 1190 | M51: 2640 | N51: 460
K52: 2007-01-01 | L52: 910 | M52: 1980 | N52: 590
K53: 2007-02-01 | L53: 950 | M53: 2290 | N53: 510
K54: 2007-03-01 | L54: 820 | M54: 1850 | N54: 550
K55: 2007-04-01 | L55: 770 | M55: 1710 | N55: 610
K56: 2007-05-01 | L56: 810 | M56: 1480 | N56: 720
K57: 2007-06-01 | L57: 1370 | M57: 2820 | N57: 770
K58: 2007-07-01 | L58: 940 | M58: 2360 | N58: 540
K59: 2007-08-01 | L59: 1020 | M59: 1940 | N59: 420
K60: 2007-09-01 | L60: 930 | M60: 1900 | N60: 800
K61: 2007-10-01 | L61: 1110 | M61: 2520 | N61: 660
K62: 2007-11-01 | L62: 1230 | M62: 2320 | N62: 610
K63: 2007-12-01 | L63: 1080 | M63: 2240 | N63: 990
K64: 2008-01-01 | L64: 890 | M64: 1840 | N64: 530
K65: 2008-02-01 | L65: 970 | M65: 1940 | N65: 520
K66: 2008-03-01 | L66: 920 | M66: 2510 | N66: 480
K67: 2008-04-01 | L67: 1000 | M67: 2360 | N67: 370
K68: 2008-05-01 | L68: 1250 | M68: 2400 | N68: 380
K69: 2008-06-01 | L69: 1280 | M69: 2490 | N69: 640
K70: 2008-07-01 | L70: 790 | M70: 1760 | N70: 450
K71: 2008-08-01 | L71: 940 | M71: 2000 | N71: 290
K72: 2008-09-01 | L72: 1140 | M72: 2570 | N72: 460
K73: 2008-10-01 | L73: 1020 | M73: 2760 | N73: 370
K74: 2008-11-01 | L74: 1060 | M74: 1680 | N74: 560
K75: 2008-12-01 | L75: 1130 | M75: 2000 | N75: 60
K76: 2009-01-01 | L76: 1050 | M76: 2270 | N76: 710
K77: 2009-02-01 | L77: 1380 | M77: 2350 | N77: 660
K78: 2009-03-01 | L78: 770 | M78: 1410 | N78: 800
K79: 2009-04-01 | L79: 860 | M79: 2410 | N79: 360
K80: 2009-05-01 | L80: 1130 | M80: 1980 | N80: 700
K81: 2009-06-01 | L81: 1350 | M81: 2960 | N81: 300
K82: 2009-07-01 | L82: 920 | M82: 2320 | N82: 380

Sheet RANK, LARGE, SMALL (hidden)
A2: © S. Christian Albright, 2011, All Rights Reserved
L3: Rank 1 largest | M3: Rank 1 smallest | W3: =RANK(K4,$K$4:$K$13,0) -> 6 | X3: =RANK(K4,$K$4:$K$13,1) -> 4
K4: 55 | W4: 4 | X4: 7
K5: 66 | W5: 1 | X5: 10
K6: 76 | W6: 10 | X6: 1
K7: 34 | W7: 6 | X7: 4
K8: 55 | W8: 3 | X8: 8
K9: 68 | W9: 2 | X9: 9
K10: 75 | W10: 8 | X10: 3
K11: 44 | W11: 9 | X11: 2
K12: 38 | W12: 5 | X12: 6
K13: 58
N24: Largest | O24: Smallest
K25: 679.02 | M25: 1 | W25: =LARGE($K$25:$K$274,M25) -> 1847.97 | X25: =SMALL($K$25:$K$274,M25) -> 323.69
K26: 1208.42 | M26: 2 | W26: 1699.23 | X26: 379.17
K27: 1635.72 | M27: 3 | W27: 1648.23 | X27: 380.33
K28: 729.63 | M28: 4 | W28: 1635.72 | X28: 478.23
K29: 1036.08 | M29: 5 | W29: 1614.91 | X29: 485.68
K30: 716.62 | M30: 6 | W30: 1597.1 | X30: 488.53
K31: 972.92 | M31: 7 | W31: 1594.35 | X31: 489.87
K32: 1175.68 | M32: 8 | W32: 1528.9 | X32: 512.38
K33: 1271.38 | M33: 9 | W33: 1527.33 | X33: 517.26
K34: 1048.93 | M34: 10 | W34: 1525.45 | X34: 523.64
K35: 718.89
K36: 1282.89
K37: 960.55
K38: 1356.75
K39: 1257.66
K40: 902.38
K41: 1648.23
K42: 1111.56
K43: 750.54
K44: 1001.74
K45: 742.81
K46: 707.5
K47: 1080.94
K48: 1290.85
K49: 1115.66
K50: 1005.36
K51: 1243.57
K52: 1454.84
K53: 1491.96
K54: 991.85
K55: 1345.71
K56: 1098.38
K57: 584.24
K58: 1209.5
K59: 1416.73
K60: 530.54
K61: 1171.91
K62: 1354.49
K63: 989.32
K64: 788.77
K65: 1264.69
K66: 1594.35
K67: 1274.46
K68: 1023.2
K69: 1377.79
K70: 1090.11
K71: 963.47
K72: 623.22
K73: 591.33
K74: 1060.24
K75: 669.8
K76: 1260.54
K77: 1019.52
K78: 819.22
K79: 602.14
K80: 714.58
K81: 996.73
K82: 698.22
K83: 1116.06
K84: 851.37
K85: 1223.55
K86: 963.66
K87: 1114.35
K88: 1473.56
K89: 755.3
K90: 833.3
K91: 670.82
K92: 859.38
K93: 1109.96
K94: 1614.91
K95: 1035.87
K96: 927.74
K97: 681.5
K98: 953.19
K99: 1296.71
K100: 379.17
K101: 773.67
K102: 1235.87
K103: 1442.2
K104: 1332.61
K105: 1314.41
K106: 1102.07
K107: 894.25
K108: 949.84
K109: 899.89
K110: 842.8
K111: 737.26
K112: 853.25
K113: 1699.23
K114: 1084.52
K115: 753.02
K116: 1004.51
K117: 550.14
K118: 995.72
K119: 1284.55
K120: 1217.77
K121: 1527.33
K122: 937.32
K123: 523.64
K124: 672.17
K125: 1131.39
K126: 1283.45
K127: 822.97
K128: 1364.57
K129: 512.38
K130: 774.36
K131: 1105.61
K132: 946.32
K133: 730.95
K134: 759.13
K135: 1119.85
K136: 1139.42
K137: 1090.73
K138: 1446.34
K139: 866.76
K140: 800.82
K141: 1290.49
K142: 1477.84
K143: 977.47
K144: 1101.76
K145: 1101.66
K146: 1071.95
K147: 846.98
K148: 1222.82
K149: 1277.73
K150: 1129.76
K151: 1320.94
K152: 762.96
K153: 1145.85
K154: 985.63
K155: 664.06
K156: 808.46
K157: 808.69
K158: 1433.58
K159: 933.24
K160: 1059.9
K161: 1172.61
K162: 1334.85
K163: 752.82
K164: 1025.82
K165: 798.93
K166: 590.03
K167: 1362.43
K168: 581.92
K169: 921.59
K170: 1166.95
K171: 690.62
K172: 1472.74
K173: 931.17
K174: 1525.45
K175: 323.69
K176: 1388.36
K177: 668.07
K178: 1377.3
K179: 1374.89
K180: 968.95
K181: 637.91
K182: 592.42
K183: 1202.37
K184: 1188.52
K185: 1031.24
K186: 1004.71
K187: 1451.57
K188: 972.33
K189: 1172.22
K190: 828.66
K191: 914.55
K192: 543.38
K193: 489.87
K194: 988.93
K195: 1331.98
K196: 1211.72
K197: 999.51
K198: 963.75
K199: 1188.93
K200: 517.26
K201: 1234.76
K202: 953.21
K203: 1384.28
K204: 1059.93
K205: 1041.8
K206: 964.87
K207: 488.53
K208: 1398.93
K209: 1046.12
K210: 913.83
K211: 485.68
... 63 more rows

Sheet Financial Functions (hidden)
A2: © S. Christian Albright, 2011, All Rights Reserved

Sheet PMT (hidden)
A2: © S. Christian Albright, 2011, All Rights Reserved
K3: Principal | L3: 30000 | N3: Data table for payment versus term
K4: Annual interest | L4: 0.0675
K5: Term | L5: 36 | W5: Term | X5: Payment
K6: Payment | X6: =PMT(L4/12,L5,-L3) -> 922.8876413
W7: 24 | X7: 1339.779885
W8: 36 | X8: 922.8876413
W9: 48 | X9: 714.9128387
W10: 60 | X10: 590.5038199

Sheet NPV, XNPV (hidden)
A2: © S. Christian Albright, 2011, All Rights Reserved
K17: Discount rate | L17: 0.12
K18: Initial payment | L18: 100000
K20: Cash inflows at ends of years
K21: Year | L21: 1 | M21: 2 | N21: 3 | O21: 4 | P21: 5
K22: Inflow | L22: 20000 | M22: 35000 | N22: 50000 | O22: 45000 | P22: 35000
K24: NPV | W24: NPV | X24: =-L18+NPV(L17,L22:P22) -> 29806.19444
K43: Discount rate | L43: 0.12
K45: Stream of cash flows
K46: Date | L46: 2009-01-01 | M46: 2009-05-25 | N46: 2009-09-15 | O46: 2010-01-15 | P46: 2010-06-30
K47: Cash | L47: -85000 | M47: 22500 | N47: 31000 | O47: 65500 | P47: 55000
K49: NPV | W49: NPV | X49: =XNPV(L43,L47:P47,L46:P46) -> 69805.02384

Sheet IRR (hidden)
A2: © S. Christian Albright, 2011, All Rights Reserved
K31: Cash flows (initial value is a payment)
K32: -100000 | L32: 35000 | M32: 45000 | N32: 40000 | O32: 25000 | P32: 10000
K34: IRR | W34: IRR | X34: =IRR(K32:P32,0.15) -> 0.1981223286

Sheet Reference Functions (hidden)
A2: © S. Christian Albright, 2011, All Rights Reserved

Sheet INDEX (hidden)
A2: © S. Christian Albright, 2011, All Rights Reserved
K3: Unit shipping costs | L3: City1 | M3: City2 | N3: City3
K4: Plant1 | L4: 1.25 | M4: 1.35 | N4: 1.55
K5: Plant2 | L5: 1.15 | M5: 1.45 | N5: 1.25
K6: Plant3 | L6: 1.35 | M6: 1.45 | N6: 1.15
K8: Unit shipping from Plant2 to City3 | U8: =INDEX(L4:N6,2,3) -> 1.25
K10: Plant | L10: 1
K11: City | L11: 2
K12: Unit shipping cost | U12: =INDEX(L4:N6,L10,L11) -> 1.35

Sheet MATCH (hidden)
A2: © S. Christian Albright, 2011, All Rights Reserved
K3: Table of profit versus order quantity
K4: Order quantity | L4: Profit
K5: 200 | L5: 5325
K6: 250 | L6: 5430
K7: 300 | L7: 5640
K8: 350 | L8: 5565
K9: 400 | L9: 5235
K11: Best profit | L11: =MAX(L5:L9) -> 5640
K12: Best order quantity | L12: =INDEX(K5:K9,MATCH(L11,L5:L9,0)) -> 300
K27: Profit for various order quantities (column L) and unit stockout costs (row 32)
L28: 2 | M28: 3 | N28: 4 | O28: 5
K29: 200 | L29: 5235 | M29: 5175 | N29: 5025 | O29: 4935
K30: 250 | L30: 5465 | M30: 5285 | N30: 5190 | O30: 5085
K31: 300 | L31: 5355 | M31: 5325 | N31: 5265 | O31: 5100
K32: 350 | L32: 5215 | M32: 5195 | N32: 5130 | O32: 5125
K33: 400 | L33: 5145 | M33: 5085 | N33: 5015 | O33: 5005
K35: Best order quantities | W35: =INDEX($K$29:$K$33,MATCH(MAX(L29:L33),L29:L33,0)) -> 250 | X35: =INDEX($K$29:$K$33,MATCH(MAX(M29:M33),M29:M33,0)) -> 300 | Y35: =INDEX($K$29:$K$33,MATCH(MAX(N29:N33),N29:N33,0)) -> 300 | Z35: =INDEX($K$29:$K$33,MATCH(MAX(O29:O33),O29:O33,0)) -> 350

Sheet OFFSET (hidden)
A2: © S. Christian Albright, 2011, All Rights Reserved
K26: Payment delay | L26: 2
K28: Month | L28: Oct | M28: Nov | N28: Dec | O28: Jan | P28: Feb | Q28: Mar | R28: Apr | S28: May | T28: Jun | U28: Jul | V28: Aug
K29: Sales | L29: 3200 | M29: 4600 | N29: 5500 | O29: 2500 | P29: 3300 | Q29: 4200 | R29: 2900 | S29: 4500 | T29: 2750
K30: Receipts | N30: =OFFSET(N29,0,-$L$26) -> 3200 | O30: 4600 | P30: 5500 | Q30: 2500 | R30: 3300 | S30: 4200 | T30: 2900 | U30: 4500 | V30: 2750
K36: Percent paid | L36: 0.4 | M36: when: | N36: 1 | O36: month from now
L37: 0.6 | N37: 2 | O37: months from now
K39: Month | L39: Oct | M39: Nov | N39: Dec | O39: Jan | P39: Feb | Q39: Mar | R39: Apr | S39: May | T39: Jun | U39: Jul | V39: Aug | AA39: Jan | AB39: Feb | AC39: Mar | AD39: Apr | AE39: May | AF39: Jun | AG39: Jul | AH39: Aug
K40: Cost | L40: 1950 | M40: 2900 | N40: 4150 | O40: 2500 | P40: 3350 | Q40: 2850 | R40: 3550 | S40: 1850 | T40: 4200 | U40: 2300
K41: Payment | AA41: =$L$36*OFFSET(O40,0,-$N$36)+$L$37*OFFSET(O40,0,-$N$37) -> 3400 | AB41: =$L$36*OFFSET(P40,0,-$N$36)+$L$37*OFFSET(P40,0,-$N$37) -> 3490 | AC41: 2840 | AD41: 3150 | AE41: 3130 | AF41: 2870 | AG41: 2790 | AH41: 3440
K56: Month | L56: Sales | N56: Total | O56: =SUM(Sales) -> 17030
K57: 2011-01-01 | L57: 2450
K58: 2011-02-01 | L58: 3140
K59: 2011-03-01 | L59: 3250
K60: 2011-04-01 | L60: 4510
K61: 2011-05-01 | L61: 3680
AJ71: Total sales
AM72: Smith | AN72: Jones | AO72: Wilson | AP72: Donalds
AL73: 2005-01-01 | AM73: 6700 | AN73: 7400 | AO73: 5800 | AP73: 9000
AL74: 2005-02-01 | AM74: 5800 | AN74: 8900 | AO74: 5500 | AP74: 7900
AL75: 2005-03-01 | AM75: 5000 | AN75: 7900 | AO75: 5900 | AP75: 8300
AL76: 2005-04-01 | AM76: 6700 | AN76: 5800 | AO76: 6000 | AP76: 9700
AL77: 2005-05-01 | AM77: 9400 | AN77: 7800 | AO77: 6700 | AP77: 8400
AL78: 2005-06-01 | AM78: 6200 | AN78: 5800 | AO78: 9400 | AP78: 8500
AL79: 2005-07-01 | AM79: 8700 | AN79: 5300 | AO79: 6900 | AP79: 7500

Sheet INDIRECT (hidden)
A2: © S. Christian Albright, 2011, All Rights Reserved
K3: Monthly sales
K4: Month | L4: Product1 | M4: Product2 | N4: Product3 | O4: Product4
K5: 2009-01-01 | L5: 1043 | M5: 1047 | N5: 957 | O5: 1031
K6: 2009-02-01 | L6: 993 | M6: 832 | N6: 883 | O6: 796
K7: 2009-03-01 | L7: 968 | M7: 1114 | N7: 1206 | O7: 1048
K8: 2009-04-01 | L8: 1461 | M8: 1487 | N8: 1495 | O8: 1519
K9: 2009-05-01 | L9: 1137 | M9: 1183 | N9: 1035 | O9: 1045
K10: 2009-06-01 | L10: 1103 | M10: 999 | N10: 931 | O10: 1133
K11: 2009-07-01 | L11: 1140 | M11: 1025 | N11: 1124 | O11: 982
K12: 2009-08-01 | L12: 772 | M12: 927 | N12: 797 | O12: 922
K13: 2009-09-01 | L13: 1195 | M13: 1297 | N13: 1231 | O13: 1230
K14: 2009-10-01 | L14: 1140 | M14: 1358 | N14: 1267 | O14: 1253
K15: 2009-11-01 | L15: 1236 | M15: 1120 | N15: 1107 | O15: 1275
K16: 2009-12-01 | L16: 696 | M16: 573 | N16: 513 | O16: 687
K17: 2010-01-01 | L17: 749 | M17: 581 | N17: 481 | O17: 711
K18: 2010-02-01 | L18: 984 | M18: 1005 | N18: 998 | O18: 804
K19: 2010-03-01 | L19: 1114 | M19: 933 | N19: 1084 | O19: 963
K20: 2010-04-01 | L20: 758 | M20: 832 | N20: 950 | O20: 745
K21: 2010-05-01 | L21: 307 | M21: 418 | N21: 428 | O21: 508
K22: 2010-06-01 | L22: 1055 | M22: 807 | N22: 865 | O22: 1102
K23: 2010-07-01 | L23: 1108 | M23: 1149 | N23: 1240 | O23: 1275
K24: 2010-08-01 | L24: 1286 | M24: 1041 | N24: 919 | O24: 968
K26: Averages, standard deviations | AH26: Averages, standard deviations
L27: Average | M27: Stdev | AI27: Average | AJ27: Stdev
K28: Product1 | AH28: Product1 | AI28: =AVERAGE(INDIRECT(AH28)) -> 1012.25 | AJ28: =STDEV(INDIRECT(AH28:AH31)) -> 254.5058938
K29: Product2 | AH29: Product2 | AI29: =AVERAGE(INDIRECT(AH29)) -> 986.4 | AJ29: =STDEV(INDIRECT(AH29:AH32)) -> 265.3298642
K30: Product3 | AH30: Product3 | AI30: =AVERAGE(INDIRECT(AH30)) -> 975.55 | AJ30: =STDEV(INDIRECT(AH30:AH33)) -> 272.9346317
K31: Product4 | AH31: Product4 | AI31: =AVERAGE(INDIRECT(AH31)) -> 999.85 | AJ31: =STDEV(INDIRECT(AH31:AH34)) -> 245.8406148
K33: Correlations | AH33: Correlations
L34: Product1 | M34: Product2 | N34: Product3 | O34: Product4 | AI34: Product1 | AJ34: Product2 | AK34: Product3 | AL34: Product4
K35: Product1 | AH35: Product1 | AI35: =CORREL(INDIRECT($AH35),INDIRECT(AI$34)) -> 1 | AJ35: 0.8552388159 | AK35: 0.8238500736 | AL35: 0.8548624243
K36: Product2 | AH36: Product2 | AI36: 0.8552388159 | AJ36: 1 | AK36: 0.9422888569 | AL36: 0.8912306702
K37: Product3 | AH37: Product3 | AI37: 0.8238500736 | AJ37: 0.9422888569 | AK37: 1 | AL37: 0.8581758967
K38: Product4 | AH38: Product4 | AI38: 0.8548624243 | AJ38: 0.8912306702 | AK38: 0.8581758967 | AL38: 1
AJ68: Total sales
AM69: Smith | AN69: Jones | AO69: Wilson | AP69: Donalds
AL70: 2005-01-01 | AM70: 6700 | AN70: 7400 | AO70: 5800 | AP70: 9000
AL71: 2005-02-01 | AM71: 5800 | AN71: 8900 | AO71: 5500 | AP71: 7900
AL72: 2005-03-01 | AM72: 5000 | AN72: 7900 | AO72: 5900 | AP72: 8300
AL73: 2005-04-01 | AM73: 6700 | AN73: 5800 | AO73: 6000 | AP73: 9700
AL74: 2005-05-01 | AM74: 9400 | AN74: 7800 | AO74: 6700 | AP74: 8400
AL75: 2005-06-01 | AM75: 6200 | AN75: 5800 | AO75: 9400 | AP75: 8500
AL76: 2005-07-01 | AM76: 8700 | AN76: 5300 | AO76: 6900 | AP76: 7500

Sheet Tools for Analyzing Data (hidden)
A2: © S. Christian Albright, 2011, All Rights Reserved

Sheet Data Tables (hidden)
A2: © S. Christian Albright, 2011, All Rights Reserved

Sheet One-Way Data Table (hidden)
A2: © S. Christian Albright, 2011, All Rights Reserved
K3: Price of car | L3: 20000 | N3: Data table
K4: Down payment | L4: 5000 | N4: Interest rate | O4: Monthly payment
K5: Amount financed | L5: =L3-L4 -> 15000 | O5: =L9 -> 459.7350431
K6: Annual interest rate | L6: 0.065 | N6: 0.06 | O6: 456.3290618
K7: Number of payments | L7: 36 | N7: 0.0625 | O7: 458.0301227
N8: 0.065 | O8: 459.7350431
K9: Monthly payment | L9: =PMT(L6/12,L7,-L5) -> 459.7350431 | N9: 0.0675 | O9: 461.4438207
K10: Total interest paid | L10: =L9*L7-L5 -> 1550.461553 | N10: 0.07 | O10: 463.156453
K33: Price of car | L33: 20000 | N33: Data table
K34: Down payment | L34: 5000 | N34: Interest | O34: Monthly payment | P34: Total interest
K35: Amount financed | L35: =L33-L34 -> 15000 | O35: =L39 -> 459.7350431 | P35: =L40 -> 1550.461553
K36: Annual interest rate | L36: 0.065 | N36: 0.06 | O36: 456.3290618 | P36: 1427.846224
K37: Number of payments | L37: 36 | N37: 0.0625 | O37: 458.0301227 | P37: 1489.084419
N38: 0.065 | O38: 459.7350431 | P38: 1550.461553
K39: Monthly payment | L39: =PMT(L36/12,L37,-L35) -> 459.7350431 | N39: 0.0675 | O39: 461.4438207 | P39: 1611.977544
K40: Total interest paid | L40: =L39*L37-L35 -> 1550.461553 | N40: 0.07 | O40: 463.156453 | P40: 1673.632307
K43: Price of car | L43: 20000 | U43: Data table
K44: Down payment | L44: 5000 | U44: Term | V44: Monthly payment | W44: Total interest
K45: Amount financed | L45: =L43-L44 -> 15000 | V45: =L49 -> 459.7350431 | W45: =L50 -> 1550.461553
K46: Annual interest rate | L46: 0.065 | U46: 12 | V46: 1294.446254 | W46: 533.3550529
K47: Number of payments | L47: 36 | U47: 24 | V47: 668.1937715 | W47: 1036.650516
U48: 36 | V48: 459.7350431 | W48: 1550.461553
K49: Monthly payment | L49: =PMT(L46/12,L47,-L45) -> 459.7350431 | U49: 48 | V49: 355.7242939 | W49: 2074.766109
K50: Total interest paid | L50: =L49*L47-L45 -> 1550.461553

Sheet Two-Way Data Table (hidden)
A2: © S. Christian Albright, 2011, All Rights Reserved
K3: Price of car | L3: 20000 | N3: Data table of monthly payment
K4: Down payment | L4: 5000 | N4: =L9 -> 459.7350431 | O4: 4000 | P4: 5000 | Q4: 6000
K5: Amount financed | L5: =L3-L4 -> 15000 | N5: 0.06 | O5: 486.7509992 | P5: 456.3290618 | Q5: 425.9071243
K6: Annual interest rate | L6: 0.065 | N6: 0.0625 | O6: 488.5654643 | P6: 458.0301227 | Q6: 427.4947812
K7: Number of payments | L7: 36 | N7: 0.065 | O7: 490.384046 | P7: 459.7350431 | Q7: 429.0860403
N8: 0.0675 | O8: 492.206742 | P8: 461.4438207 | Q8: 430.6808993
K9: Monthly payment | L9: =PMT(L6/12,L7,-L5) -> 459.7350431 | N9: 0.07 | O9: 494.0335498 | P9: 463.156453 | Q9: 432.2793561
K10: Total interest paid | L10: =L9*L7-L5 -> 1550.461553
K21: Price of car | L21: 20000 | N21: Data table of total interest paid | Y21: Data table of total interest paid
K22: Down payment | L22: 5000 | Y22: =L28 -> 1550.461553 | Z22: 4000 | AA22: 5000 | AB22: 6000
K23: Amount financed | L23: =L21-L22 -> 15000 | Y23: 12 | Z23: 568.9120564 | AA23: 533.3550529 | AB23: 497.7980493
K24: Annual interest rate | L24: 0.065 | Y24: 24 | Z24: 1105.76055 | AA24: 1036.650516 | AB24: 967.5404817
K25: Number of payments | L25: 36 | Y25: 36 | Z25: 1653.825657 | AA25: 1550.461553 | AB25: 1447.09745
Y26: 48 | Z26: 2213.083849 | AA26: 2074.766109 | AB26: 1936.448368
K27: Monthly payment | L27: =PMT(L24/12,L25,-L23) -> 459.7350431 | Y27: 60 | Z27: 2783.50229 | AA27: 2609.533397 | AB27: 2435.564504
K28: Total interest paid | L28: =L27*L25-L23 -> 1550.461553

Sheet Tables (hidden)
A2: © S. Christian Albright, 2011, All Rights Reserved
K3: Person | L3: Birthdate | M3: Gender | N3: State | O3: Children | P3: Salary
K4: 1 | L4: 1959-08-05 | M4: Male | N4: Illinois | O4: 1 | P4: 65400
K5: 2 | L5: 1977-10-15 | M5: Female | N5: Wisconsin | O5: 2 | P5: 62000
K6: 3 | L6: 1981-01-03 | M6: Male | N6: Ohio | O6: 0 | P6: 63200
K7: 4 | L7: 1949-05-05 | M7: Male | N7: Indiana | O7: 2 | P7: 52000
K8: 5 | L8: 1987-04-04 | M8: Female | N8: Michigan | O8: 3 | P8: 81400
K9: 6 | L9: 1949-06-30 | M9: Female | N9: Indiana | O9: 3 | P9: 46300
K10: 7 | L10: 1949-05-22 | M10: Female | N10: Illinois | O10: 2 | P10: 49600
K11: 8 | L11: 1952-10-30 | M11: Male | N11: Michigan | O11: 1 | P11: 45900
K12: 9 | L12: 1957-01-17 | M12: Male | N12: Michigan | O12: 3 | P12: 47700
K13: 10 | L13: 1985-09-18 | M13: Female | N13: Indiana | O13: 1 | P13: 59900
K14: 11 | L14: 1953-07-19 | M14: Male | N14: Ohio | O14: 1 | P14: 48100
K15: 12 | L15: 1946-12-10 | M15: Female | N15: Wisconsin | O15: 0 | P15: 58100
K16: 13 | L16: 1986-03-29 | M16: Female | N16: Michigan | O16: 2 | P16: 56000
K17: 14 | L17: 1952-12-12 | M17: Female | N17: Indiana | O17: 2 | P17: 53400
K18: 15 | L18: 1977-06-12 | M18: Female | N18: Indiana | O18: 2 | P18: 39000
K19: 16 | L19: 1989-11-19 | M19: Male | N19: Wisconsin | O19: 1 | P19: 61500
K20: 17 | L20: 1957-09-06 | M20: Male | N20: Ohio | O20: 0 | P20: 37700
K21: 18 | L21: 1970-09-30 | M21: Female | N21: Michigan | O21: 2 | P21: 36700
K22: 19 | L22: 1973-10-24 | M22: Male | N22: Wisconsin | O22: 2 | P22: 45200
K23: 20 | L23: 1978-06-08 | M23: Male | N23: Illinois | O23: 0 | P23: 59000
K24: 21 | L24: 1990-08-27 | M24: Female | N24: Ohio | O24: 2 | P24: 54300
K25: 22 | L25: 1947-02-09 | M25: Male | N25: Indiana | O25: 1 | P25: 62100
K26: 23 | L26: 1989-04-01 | M26: Male | N26: Michigan | O26: 0 | P26: 78000
K27: 24 | L27: 1970-03-12 | M27: Male | N27: Wisconsin | O27: 0 | P27: 43200
K28: 25 | L28: 1970-03-28 | M28: Male | N28: Ohio | O28: 1 | P28: 44500
K29: 26 | L29: 1963-05-06 | M29: Male | N29: Michigan | O29: 1 | P29: 43300
K30: 27 | L30: 1959-05-07 | M30: Male | N30: Indiana | O30: 3 | P30: 45400
K31: 28 | L31: 1987-03-06 | M31: Male | N31: Michigan | O31: 2 | P31: 53900
K32: 29 | L32: 1958-02-09 | M32: Male | N32: Illinois | O32: 1 | P32: 44100
K33: 30 | L33: 1955-08-04 | M33: Female | N33: Ohio | O33: 2 | P33: 31000
K34: 31 | L34: 1984-11-09 | M34: Male | N34: Indiana | O34: 2 | P34: 67400
K35: 32 | L35: 1961-02-10 | M35: Female | N35: Ohio | O35: 1 | P35: 59300
K36: 33 | L36: 1961-04-01 | M36: Female | N36: Ohio | O36: 1 | P36: 48600
K37: 34 | L37: 1961-10-20 | M37: Male | N37: Illinois | O37: 0 | P37: 58400
K38: 35 | L38: 1970-04-25 | M38: Male | N38: Michigan | O38: 2 | P38: 65500
K39: 36 | L39: 1977-02-17 | M39: Male | N39: Michigan | O39: 0 | P39: 46900
K40: 37 | L40: 1985-04-13 | M40: Male | N40: Michigan | O40: 2 | P40: 41000
K41: 38 | L41: 1966-05-16 | M41: Male | N41: Ohio | O41: 0 | P41: 89300
K42: 39 | L42: 1969-10-28 | M42: Female | N42: Indiana | O42: 3 | P42: 71800
K43: 40 | L43: 1958-11-30 | M43: Male | N43: Illinois | O43: 1 | P43: 95000
K44: 41 | L44: 1962-09-27 | M44: Male | N44: Illinois | O44: 1 | P44: 49700
K45: 42 | L45: 1968-01-25 | M45: Male | N45: Ohio | O45: 2 | P45: 71700
K46: 43 | L46: 1988-10-15 | M46: Female | N46: Wisconsin | O46: 0 | P46: 52900
K47: 44 | L47: 1978-02-11 | M47: Female | N47: Michigan | O47: 0 | P47: 58300
K48: 45 | L48: 1974-06-19 | M48: Male | N48: Indiana | O48: 2 | P48: 82000
K49: 46 | L49: 1989-09-22 | M49: Male | N49: Wisconsin | O49: 0 | P49: 41300
K50: 47 | L50: 1983-07-25 | M50: Female | N50: Wisconsin | O50: 1 | P50: 72000
K51: 48 | L51: 1956-04-09 | M51: Female | N51: Indiana | O51: 2 | P51: 73500
K52: 49 | L52: 1989-02-09 | M52: Male | N52: Ohio | O52: 2 | P52: 55200
K53: 50 | L53: 1960-12-10 | M53: Female | N53: Michigan | O53: 1 | P53: 57000
K54: 51 | L54: 1956-08-06 | M54: Male | N54: Michigan | O54: 2 | P54: 84300
K55: 52 | L55: 1981-09-20 | M55: Male | N55: Indiana | O55: 2 | P55: 68900
K56: 53 | L56: 1963-01-31 | M56: Male | N56: Wisconsin | O56: 2 | P56: 59000
K57: 54 | L57: 1973-12-07 | M57: Female | N57: Ohio | O57: 0 | P57: 83200
K58: 55 | L58: 1988-12-03 | M58: Male | N58: Wisconsin | O58: 0 | P58: 52400
K83: Month | L83: Product1 | M83: Product2
K84: 2008-01-01 | L84: =RANDBETWEEN(1000,5000) -> 1978 | M84: 4013
K85: 2008-02-01 | L85: 3119 | M85: 4505
K86: 2008-03-01 | L86: 4356 | M86: 1285
K87: 2008-04-01 | L87: 2352 | M87: 4281
K88: 2008-05-01 | L88: 3569 | M88: 3411
K89: 2008-06-01 | L89: =RANDBETWEEN(1000,5000) -> 3395 | M89: 2033
K90: 2008-07-01 | L90: 4404 | M90: 4112
K91: 2008-08-01 | L91: 4302 | M91: 2879
K92: 2008-09-01 | L92: 4204 | M92: 4458
K93: 2008-10-01 | L93: 4788 | M93: 4533
K94: 2008-11-01 | L94: =RANDBETWEEN(1000,5000) -> 1973 | M94: 3890
K95: 2008-12-01 | L95: 4755 | M95: 3243
K96: 2009-01-01 | L96: 3824 | M96: 3573
K97: 2009-02-01 | L97: 1924 | M97: 1703
K98: 2009-03-01 | L98: 3960 | M98: 2801
K99: 2009-04-01 | L99: 3395 | M99: 4125
K100: 2009-05-01 | L100: 1997 | M100: 2499
K101: 2009-06-01 | L101: 4485 | M101: 1751
K102: 2009-07-01 | L102: 4021 | M102: 1529
K103: 2009-08-01 | L103: 4701 | M103: 1278
K104: 2009-09-01 | L104: 4106 | M104: 4553
K105: 2009-10-01 | L105: 2230 | M105: 3532
K106: 2009-11-01 | L106: 1972 | M106: 2322
K107: 2009-12-01 | L107: =RANDBETWEEN(1000,5000) -> 3511 | M107: =RANDBETWEEN(1000,5000) -> 2847

Sheet Pivot Tables (hidden)
A2: © S. Christian Albright, 2011, All Rights Reserved
K3: Date | L3: Day | M3: Time | N3: Region | O3: Paid With | P3: Gender | Q3: Items Ordered | R3: Total Cost
K4: 2009-03-10 | L4: Mon | M4: Morning | N4: West | O4: VISA | P4: Female | Q4: 4 | R4: 136.97
K5: 2009-03-10 | L5: Mon | M5: Morning | N5: West | O5: Mastercard | P5: Female | Q5: 1 | R5: 25.55
K6: 2009-03-10 | L6: Mon | M6: Afternoon | N6: West | O6: VISA | P6: Female | Q6: 5 | R6: 113.95
K7: 2009-03-10 | L7: Mon | M7: Afternoon | N7: NorthEast | O7: VISA | P7: Female | Q7: 1 | R7: 6.82
K8: 2009-03-10 | L8: Mon | M8: Afternoon | N8: West | O8: Mastercard | P8: Male | Q8: 4 | R8: 147.32
K9: 2009-03-10 | L9: Mon | M9: Afternoon | N9: NorthEast | O9: VISA | P9: Female | Q9: 5 | R9: 142.15
K10: 2009-03-11 | L10: Tues | M10: Evening | N10: West | O10: Mastercard | P10: Male | Q10: 1 | R10: 18.65
K11: 2009-03-11 | L11: Tues | M11: Evening | N11: South | O11: VISA | P11: Male | Q11: 4 | R11: 178.34
K12: 2009-03-11 | L12: Tues | M12: Evening | N12: West | O12: Cash | P12: Male | Q12: 2 | R12: 25.83
K13: 2009-03-12 | L13: Wed | M13: Morning | N13: MidWest | O13: Mastercard | P13: Female | Q13: 1 | R13: 18.13
K14: 2009-03-12 | L14: Wed | M14: Morning | N14: NorthEast | O14: Mastercard | P14: Female | Q14: 2 | R14: 54.52
K15: 2009-03-12 | L15: Wed | M15: Afternoon | N15: South | O15: VISA | P15: Male | Q15: 2 | R15: 61.93
K16: 2009-03-13 | L16: Thurs | M16: Morning | N16: NorthEast | O16: VISA | P16: Male | Q16: 3 | R16: 147.68
K17: 2009-03-13 | L17: Thurs | M17: Afternoon | N17: NorthEast | O17: Mastercard | P17: Male | Q17: 1 | R17: 27.24
K18: 2009-03-14 | L18: Fri | M18: Morning | N18: West | O18: Mastercard | P18: Female | Q18: 3 | R18: 46.18
K19: 2009-03-14 | L19: Fri | M19: Afternoon | N19: West | O19: VISA | P19: Male | Q19: 5 | R19: 107.44
K20: 2009-03-14 | L20: Fri | M20: Afternoon | N20: South | O20: Cash | P20: Female | Q20: 6 | R20: 96.53
K21: 2009-03-14 | L21: Fri | M21: Afternoon | N21: West | O21: VISA | P21: Female | Q21: 4 | R21: 77.44
K22: 2009-03-15 | L22: Sat | M22: Morning | N22: South | O22: Mastercard | P22: Male | Q22: 1 | R22: 15.19
K23: 2009-03-15 | L23: Sat | M23: Afternoon | N23: South | O23: Cash | P23: Male | Q23: 1 | R23: 45.52
K24: 2009-03-16 | L24: Sun | M24: Morning | N24: West | O24: VISA | P24: Male | Q24: 4 | R24: 157.05
K25: 2009-03-16 | L25: Sun | M25: Afternoon | N25: West | O25: VISA | P25: Male | Q25: 2 | R25: 51.95
K26: 2009-03-16 | L26: Sun | M26: Evening | N26: West | O26: Mastercard | P26: Female | Q26: 9 | R26: 429.98
K27: 2009-03-17 | L27: Mon | M27: Afternoon | N27: South | O27: VISA | P27: Female | Q27: 1 | R27: 33.37
K28: 2009-03-17 | L28: Mon | M28: Evening | N28: West | O28: VISA | P28: Male | Q28: 3 | R28: 71.84
K29: 2009-03-18 | L29: Tues | M29: Morning | N29: NorthEast | O29: Mastercard | P29: Female | Q29: 5 | R29: 139.51
K30: 2009-03-18 | L30: Tues | M30: Afternoon | N30: South | O30: Mastercard | P30: Male | Q30: 3 | R30: 78.46
K31: 2009-03-18 | L31: Tues | M31: Evening | N31: MidWest | O31: Mastercard | P31: Male | Q31: 3 | R31: 125.13
K32: 2009-03-19 | L32: Wed | M32: Afternoon | N32: MidWest | O32: VISA | P32: Male | Q32: 1 | R32: 14.76
K33: 2009-03-19 | L33: Wed | M33: Afternoon | N33: South | O33: Cash | P33: Female | Q33: 2 | R33: 83.38
K34: 2009-03-20 | L34: Thurs | M34: Morning | N34: West | O34: Mastercard | P34: Female | Q34: 3 | R34: 104.91
K35: 2009-03-20 | L35: Thurs | M35: Afternoon | N35: NorthEast | O35: VISA | P35: Male | Q35: 4 | R35: 101.37
K36: 2009-03-20 | L36: Thurs | M36: Afternoon | N36: NorthEast | O36: VISA | P36: Female | Q36: 2 | R36: 53.16
K37: 2009-03-20 | L37: Thurs | M37: Evening | N37: West | O37: VISA | P37: Female | Q37: 2 | R37: 40.63
K38: 2009-03-21 | L38: Fri | M38: Morning | N38: West | O38: VISA | P38: Female | Q38: 7 | R38: 286.41
K39: 2009-03-21 | L39: Fri | M39: Afternoon | N39: South | O39: Mastercard | P39: Female | Q39: 2 | R39: 59.39
K40: 2009-03-21 | L40: Fri | M40: Evening | N40: NorthEast | O40: VISA | P40: Male | Q40: 4 | R40: 185.45
K41: 2009-03-22 | L41: Sat | M41: Morning | N41: NorthEast | O41: Mastercard | P41: Female | Q41: 2 | R41: 35.08
K42: 2009-03-22 | L42: Sat | M42: Morning | N42: MidWest | O42: Mastercard | P42: Male | Q42: 2 | R42: 91.62
K43: 2009-03-22 | L43: Sat | M43: Morning | N43: NorthEast | O43: Cash | P43: Female | Q43: 8 | R43: 155.5
K44: 2009-03-22 | L44: Sat | M44: Evening | N44: West | O44: VISA | P44: Male | Q44: 4 | R44: 20.89
K45: 2009-03-22 | L45: Sat | M45: Evening | N45: West | O45: Mastercard | P45: Male | Q45: 6 | R45: 186.29
K46: 2009-03-22 | L46: Sat | M46: Evening | N46: West | O46: Cash | P46: Female | Q46: 1 | R46: 42.22
K47: 2009-03-22 | L47: Sat | M47: Evening | N47: West | O47: VISA | P47: Male | Q47: 2 | R47: 42.19
K48: 2009-03-23 | L48: Sun | M48: Afternoon | N48: MidWest | O48: VISA | P48: Female | Q48: 1 | R48: 47.86
K49: 2009-03-24 | L49: Mon | M49: Morning | N49: South | O49: Mastercard | P49: Female | Q49: 3 | R49: 139.76
K50: 2009-03-24 | L50: Mon | M50: Morning | N50: NorthEast | O50: Mastercard | P50: Female | Q50: 6 | R50: 186.42
K51: 2009-03-24 | L51: Mon | M51: Afternoon | N51: South | O51: Mastercard | P51: Female | Q51: 1 | R51: 54.08
K52: 2009-03-24 | L52: Mon | M52: Afternoon | N52: West | O52: Mastercard | P52: Female | Q52: 3 | R52: 84.98
K53: 2009-03-24 | L53: Mon | M53: Afternoon | N53: South | O53: Cash | P53: Female | Q53: 2 | R53: 27.13
K54: 2009-03-25 | L54: Tues | M54: Morning | N54: West | O54: Mastercard | P54: Female | Q54: 2 | R54: 54.7
K55: 2009-03-25 | L55: Tues | M55: Afternoon | N55: South | O55: Mastercard | P55: Female | Q55: 5 | R55: 229.54
K56: 2009-03-25 | L56: Tues | M56: Evening | N56: West | O56: Cash | P56: Male | Q56: 4 | R56: 124.21
K57: 2009-03-26 | L57: Wed | M57: Morning | N57: West | O57: VISA | P57: Female | Q57: 2 | R57: 26.39
K58: 2009-03-27 | L58: Thurs | M58: Morning | N58: West | O58: Mastercard | P58: Female | Q58: 4 | R58: 106.97
K59: 2009-03-27 | L59: Thurs | M59: Afternoon | N59: West | O59: Cash | P59: Female | Q59: 8 | R59: 377.18
K60: 2009-03-28 | L60: Fri | M60: Morning | N60: NorthEast | O60: Mastercard | P60: Female | Q60: 1 | R60: 24.31
K61: 2009-03-28 | L61: Fri | M61: Afternoon | N61: South | O61: Mastercard | P61: Female | Q61: 1 | R61: 34.47
K62: 2009-03-28 | L62: Fri | M62: Afternoon | N62: West | O62: Mastercard | P62: Male | Q62: 3 | R62: 106.19
K63: 2009-03-28 | L63: Fri | M63: Evening | N63: NorthEast | O63: VISA | P63: Male | Q63: 2 | R63: 55.3
K64: 2009-03-29 | L64: Sat | M64: Morning | N64: NorthEast | O64: VISA | P64: Female | Q64: 2 | R64: 82.98
K65: 2009-03-29 | L65: Sat | M65: Morning | N65: NorthEast | O65: Cash | P65: Male | Q65: 4 | R65: 101.79
K66: 2009-03-29 | L66: Sat | M66: Morning | N66: MidWest | O66: Mastercard | P66: Male | Q66: 3 | R66: 99.28
K67: 2009-03-29 | L67: Sat | M67: Morning | N67: NorthEast | O67: Mastercard | P67: Female | Q67: 3 | R67: 100.09
K68: 2009-03-29 | L68: Sat | M68: Afternoon | N68: NorthEast | O68: Cash | P68: Female | Q68: 3 | R68: 88.91
K69: 2009-03-29 | L69: Sat | M69: Afternoon | N69: MidWest | O69: Cash | P69: Male | Q69: 2 | R69: 62.58
K70: 2009-03-29 | L70: Sat | M70: Afternoon | N70: South | O70: VISA | P70: Female | Q70: 1 | R70: 28.87
K71: 2009-03-29 | L71: Sat | M71: Afternoon | N71: MidWest | O71: VISA | P71: Male | Q71: 4 | R71: 141.29
K72: 2009-03-29 | L72: Sat | M72: Evening | N72: NorthEast | O72: Cash | P72: Male | Q72: 4 | R72: 66.54
K73: 2009-03-29 | L73: Sat | M73: Evening | N73: South | O73: VISA | P73: Female | Q73: 2 | R73: 69.03
K74: 2009-03-30 | L74: Mon | M74: Afternoon | N74: South | O74: Mastercard | P74: Female | Q74: 2 | R74: 65.51
K75: 2009-03-30 | L75: Mon | M75: Evening | N75: West | O75: VISA | P75: Female | Q75: 2 | R75: 35.59
K76: 2009-03-31 | L76: Wed | M76: Afternoon | N76: South | O76: VISA | P76: Female | Q76: 7 | R76: 320.18
K77: 2009-03-31 | L77: Wed | M77: Afternoon | N77: MidWest | O77: Mastercard | P77: Male | Q77: 5 | R77: 128.57
K78: 2009-03-31 | L78: Wed | M78: Evening | N78: West | O78: Mastercard | P78: Male | Q78: 6 | R78: 248.42
K79: 2009-03-31 | L79: Wed | M79: Evening | N79: NorthEast | O79: Cash | P79: Male | Q79: 2 | R79: 50.04
K80: 2009-04-01 | L80: Thurs | M80: Morning | N80: NorthEast | O80: Cash | P80: Male | Q80: 4 | R80: 145.48
K81: 2009-04-01 | L81: Thurs | M81: Afternoon | N81: West | O81: Mastercard | P81: Female | Q81: 9 | R81: 403.6
K82: 2009-04-01 | L82: Thurs | M82: Afternoon | N82: NorthEast | O82: Cash | P82: Female | Q82: 6 | R82: 284.14
K83: 2009-04-01 | L83: Thurs | M83: Afternoon | N83: West | O83: Mastercard | P83: Female | Q83: 1 | R83: 81.14
K84: 2009-04-02 | L84: Fri | M84: Morning | N84: MidWest | O84: Mastercard | P84: Female | Q84: 3 | R84: 82.36
K85: 2009-04-02 | L85: Fri | M85: Afternoon | N85: MidWest | O85: Mastercard | P85: Female | Q85: 2 | R85: 32.65
K86: 2009-04-02 | L86: Fri | M86: Afternoon | N86: NorthEast | O86: VISA | P86: Female | Q86: 6 | R86: 200.7
K87: 2009-04-02 | L87: Fri | M87: Afternoon | N87: NorthEast | O87: Mastercard | P87: Female | Q87: 3 | R87: 99.13
K88: 2009-04-03 | L88: Sat | M88: Morning | N88: South | O88: VISA | P88: Female | Q88: 4 | R88: 85.88
K89: 2009-04-03 | L89: Sat | M89: Afternoon | N89: South | O89: Mastercard | P89: Male | Q89: 3 | R89: 183.52
K90: 2009-04-03 | L90: Sat | M90: Afternoon | N90: West | O90: VISA | P90: Female | Q90: 2 | R90: 53.87
K91: 2009-04-03 | L91: Sat | M91: Evening | N91: NorthEast | O91: Mastercard | P91: Male | Q91: 3 | R91: 44.08
K92: 2009-04-04 | L92: Sun | M92: Morning | N92: MidWest | O92: VISA | P92: Female | Q92: 1 | R92: 82.34
K93: 2009-04-04 | L93: Sun | M93: Afternoon | N93: South | O93: Cash | P93: Male | Q93: 3 | R93: 151.29
K94: 2009-04-05 | L94: Mon | M94: Morning | N94: NorthEast | O94: VISA | P94: Male | Q94: 5 | R94: 87.02
K95: 2009-04-05 | L95: Mon | M95: Afternoon | N95: MidWest | O95: VISA | P95: Male | Q95: 2 | R95: 54.96
K96: 2009-04-05 | L96: Mon | M96: Afternoon | N96: MidWest | O96: Mastercard | P96: Female | Q96: 1 | R96: 65.11
K97: 2009-04-05 | L97: Mon | M97: Afternoon | N97: NorthEast | O97: Mastercard | P97: Female | Q97: 3 | R97: 76.69
K98: 2009-04-05 | L98: Mon | M98: Evening | N98: NorthEast | O98: VISA | P98: Female | Q98: 2 | R98: 48.38
K99: 2009-04-06 | L99: Tues | M99: Morning | N99: NorthEast | O99: Cash | P99: Female | Q99: 5 | R99: 76.64
K100: 2009-04-06 | L100: Tues | M100: Afternoon | N100: NorthEast | O100: VISA | P100: Female | Q100: 2 | R100: 54.08
K101: 2009-04-06 | L101: Tues | M101: Afternoon | N101: South | O101: Mastercard | P101: Female | Q101: 3 | R101: 130
K102: 2009-04-06 | L102: Tues | M102: Evening | N102: MidWest | O102: Mastercard | P102: Female | Q102: 4 | R102: 218.29
K103: 2009-04-07 | L103: Wed | M103: Evening | N103: West | O103: VISA | P103: Male | Q103: 1 | R103: 38.1
K104: 2009-04-08 | L104: Thurs | M104: Morning | N104: NorthEast | O104: VISA | P104: Male | Q104: 4 | R104: 100.02
K105: 2009-04-08 | L105: Thurs | M105: Morning | N105: West | O105: Cash | P105: Female | Q105: 4 | R105: 248.73
K106: 2009-04-08 | L106: Thurs | M106: Morning | N106: West | O106: Mastercard | P106: Female | Q106: 2 | R106: 25.8
K107: 2009-04-08 | L107: Thurs | M107: Evening | N107: MidWest | O107: Cash | P107: Male | Q107: 1 | R107: 52.83
K108: 2009-04-09 | L108: Fri | M108: Morning | N108: West | O108: VISA | P108: Male | Q108: 3 | R108: 131.89
K109: 2009-04-09 | L109: Fri | M109: Morning | N109: NorthEast | O109: Mastercard | P109: Male | Q109: 3 | R109: 82.69
K110: 2009-04-09 | L110: Fri | M110: Morning | N110: West | O110: Mastercard | P110: Male | Q110: 1 | R110: 70.03
K111: 2009-04-09 | L111: Fri | M111: Morning | N111: NorthEast | O111: Mastercard | P111: Female | Q111: 1 | R111: 102.86
K112: 2009-04-09 | L112: Fri | M112: Morning | N112: West | O112: Cash | P112: Male | Q112: 4 | R112: 174.13
K113: 2009-04-10 | L113: Sat | M113: Morning | N113: South | O113: Mastercard | P113: Female | Q113: 2 | R113: 49.8
K114: 2009-04-10 | L114: Sat | M114: Morning | N114: MidWest | O114: Cash | P114: Female | Q114: 2 | R114: 29.97
K115: 2009-04-10 | L115: Sat | M115: Afternoon | N115: MidWest | O115: Mastercard | P115: Male | Q115: 2 | R115: 82.53
K116: 2009-04-10 | L116: Sat | M116: Afternoon | N116: South | O116: Mastercard | P116: Female | Q116: 4 | R116: 142.76
K117: 2009-04-10 | L117: Sat | M117: Evening | N117: NorthEast | O117: Cash | P117: Male | Q117: 2 | R117: 72.58
K118: 2009-04-10 | L118: Sat | M118: Evening | N118: MidWest | O118: VISA | P118: Male | Q118: 2 | R118: 55.39
K119: 2009-04-11 | L119: Sun | M119: Afternoon | N119: West | O119: VISA | P119: Female | Q119: 4 | R119: 206.39
K120: 2009-04-12 | L120: Tues | M120: Morning | N120: MidWest | O120: Mastercard | P120: Female | Q120: 4 | R120: 245.67
K121: 2009-04-12 | L121: Tues | M121: Morning | N121: NorthEast | O121: Mastercard | P121: Female | Q121: 5 | R121: 265.69
K122: 2009-04-12 | L122: Tues | M122: Afternoon | N122: South | O122: Mastercard | P122: Female | Q122: 3 | R122: 124.46
K123: 2009-04-12 | L123: Tues | M123: Afternoon | N123: NorthEast | O123: Mastercard | P123: Female | Q123: 6 | R123: 206.26
K124: 2009-04-13 | L124: Wed | M124: Afternoon | N124: South | O124: Mastercard | P124: Female | Q124: 7 | R124: 306.23
K125: 2009-04-14 | L125: Fri | M125: Morning | N125: South | O125: Cash | P125: Female | Q125: 1 | R125: 48.12
K126: 2009-04-14 | L126: Fri | M126: Afternoon | N126: MidWest | O126: Mastercard | P126: Male | Q126: 4 | R126: 113.95
K127: 2009-04-14 | L127: Fri | M127: Afternoon | N127: West | O127: VISA | P127: Female | Q127: 6 | R127: 261.44
K128: 2009-04-15 | L128: Sat | M128: Morning | N128: South | O128: Cash | P128: Male | Q128: 2 | R128: 59.9
K129: 2009-04-15 | L129: Sat | M129: Morning | N129: MidWest | O129: VISA | P129: Female | Q129: 2 | R129: 49.73
K130: 2009-04-15 | L130: Sat | M130: Morning | N130: MidWest | O130: VISA | P130: Female | Q130: 3 | R130: 65.06
K131: 2009-04-15 | L131: Sat | M131: Afternoon | N131: West | O131: VISA | P131: Male | Q131: 4 | R131: 97.71
K132: 2009-04-15 | L132: Sat | M132: Afternoon | N132: NorthEast | O132: Cash | P132: Female | Q132: 1 | R132: 49.84
K133: 2009-04-15 | L133: Sat | M133: Evening | N133: MidWest | O133: Cash | P133: Female | Q133: 6 | R133: 233.94
K134: 2009-04-15 | L134: Sat | M134: Evening | N134: West | O134: Mastercard | P134: Female | Q134: 9 | R134: 370.26
K135: 2009-04-16 | L135: Sun | M135: Afternoon | N135: West | O135: Cash | P135: Male | Q135: 6 | R135: 313.11
K136: 2009-04-16 | L136: Sun | M136: Afternoon | N136: NorthEast | O136: Cash | P136: Female | Q136: 6 | R136: 141.77
K137: 2009-04-16 | L137: Sun | M137: Evening | N137: South | O137: Mastercard | P137: Female | Q137: 1 | R137: 27.99
K138: 2009-04-17 | L138: Mon | M138: Morning | N138: MidWest | O138: VISA | P138: Female | Q138: 3 | R138: 81.34
K139: 2009-04-17 | L139: Mon | M139: Afternoon | N139: West | O139: VISA | P139: Female | Q139: 2 | R139: 97.15
K140: 2009-04-17 | L140: Mon | M140: Evening | N140: West | O140: Cash | P140: Male | Q140: 7 | R140: 352.49
K141: 2009-04-18 | L141: Tues | M141: Morning | N141: South | O141: VISA | P141: Female | Q141: 3 | R141: 88.75
K142: 2009-04-18 | L142: Tues | M142: Afternoon | N142: NorthEast | O142: VISA | P142: Female | Q142: 4 | R142: 107.95
K143: 2009-04-18 | L143: Tues | M143: Evening | N143: NorthEast | O143: Mastercard | P143: Male | Q143: 5 | R143: 186.22
K144: 2009-04-19 | L144: Wed | M144: Morning | N144: MidWest | O144: Mastercard | P144: Female | Q144: 4 | R144: 159.23
K145: 2009-04-19 | L145: Wed | M145: Afternoon | N145: MidWest | O145: Mastercard | P145: Female | Q145: 2 | R145: 82.43
K146: 2009-04-19 | L146: Wed | M146: Evening | N146: NorthEast | O146: Mastercard | P146: Male | Q146: 4 | R146: 99.42
K147: 2009-04-20 | L147: Thurs | M147: Afternoon | N147: NorthEast | O147: Cash | P147: Male | Q147: 3 | R147: 79.32
K148: 2009-04-20 | L148: Thurs | M148: Evening | N148: South | O148: VISA | P148: Male | Q148: 3 | R148: 160.01
K149: 2009-04-20 | L149: Thurs | M149: Evening | N149: West | O149: VISA | P149: Male | Q149: 2 | R149: 51.99
K150: 2009-04-21 | L150: Fri | M150: Morning | N150: West | O150: VISA | P150: Female | Q150: 8 | R150: 267.67
K151: 2009-04-21 | L151: Fri | M151: Afternoon | N151: NorthEast | O151: Mastercard | P151: Female | Q151: 9 | R151: 429.22
K152: 2009-04-21 | L152: Fri | M152: Afternoon | N152: NorthEast | O152: Cash | P152: Female | Q152: 1 | R152: 46.2
K153: 2009-04-21 | L153: Fri | M153: Afternoon | N153: NorthEast | O153: VISA | P153: Female | Q153: 5 | R153: 240.02
K154: 2009-04-22 | L154: Sat | M154: Morning | N154: South | O154: Cash | P154: Male | Q154: 4 | R154: 157.14
K155: 2009-04-22 | L155: Sat | M155: Afternoon | N155: MidWest | O155: Mastercard | P155: Female | Q155: 5 | R155: 140.4
K156: 2009-04-22 | L156: Sat | M156: Evening | N156: NorthEast | O156: Mastercard | P156: Male | Q156: 5 | R156: 204.93
K157: 2009-04-23 | L157: Sun | M157: Morning | N157: South | O157: VISA | P157: Female | Q157: 2 | R157: 88.18
K158: 2009-04-23 | L158: Sun | M158: Afternoon | N158: South | O158: Cash | P158: Female | Q158: 3 | R158: 95.47
K159: 2009-04-24 | L159: Mon | M159: Morning | N159: South | O159: Mastercard | P159: Female | Q159: 5 | R159: 224.73
K160: 2009-04-24 | L160: Mon | M160: Morning | N160: West | O160: Mastercard | P160: Female | Q160: 8 | R160: 344.73
K161: 2009-04-24 | L161: Mon | M161: Afternoon | N161: NorthEast | O161: VISA | P161: Female | Q161: 4 | R161: 185.32
K162: 2009-04-24 | L162: Mon | M162: Afternoon | N162: South | O162: VISA | P162: Female | Q162: 6 | R162: 297.31
K163: 2009-04-24 | L163: Mon | M163: Evening | N163: South | O163: Cash | P163: Male | Q163: 4 | R163: 223.32
K164: 2009-04-24 | L164: Mon | M164: Evening | N164: South | O164: VISA | P164: Female | Q164: 3 | R164: 164.4
K165: 2009-04-25 | L165: Tues | M165: Morning | N165: West | O165: Mastercard | P165: Female | Q165: 2 | R165: 123.57
K166: 2009-04-25 | L166: Tues | M166: Evening | N166: NorthEast | O166: Mastercard | P166: Male | Q166: 5 | R166: 236.97
K167: 2009-04-26 | L167: Wed | M167: Morning | N167: West | O167: VISA | P167: Female | Q167: 2 | R167: 82.75
K168: 2009-04-26 | L168: Wed | M168: Morning | N168: South | O168: Cash | P168: Male | Q168: 6 | R168: 307.75
K169: 2009-04-26 | L169: Wed | M169: Afternoon | N169: MidWest | O169: Cash | P169: Female | Q169: 4 | R169: 200.73
K170: 2009-04-27 | L170: Thurs | M170: Morning | N170: MidWest | O170: VISA | P170: Female | Q170: 4 | R170: 242.06
K171: 2009-04-27 | L171: Thurs | M171: Evening | N171: South | O171: VISA | P171: Male | Q171: 4 | R171: 215.09
K172: 2009-04-27 | L172: Thurs | M172: Evening | N172: NorthEast | O172: Mastercard | P172: Male | Q172: 3 | R172: 162.9
K173: 2009-04-28 | L173: Fri | M173: Afternoon | N173: West | O173: Mastercard | P173: Female | Q173: 5 | R173: 214.31
K174: 2009-04-28 | L174: Fri | M174: Afternoon | N174: South | O174: Mastercard | P174: Female | Q174: 1 | R174: 42.07
K175: 2009-04-28 | L175: Fri | M175: Evening | N175: NorthEast | O175: VISA | P175: Male | Q175: 2 | R175: 69.05
K176: 2009-04-28 | L176: Fri | M176: Evening | N176: NorthEast | O176: VISA | P176: Female | Q176: 4 | R176: 148.9
K177: 2009-04-29 | L177: Sat | M177: Morning | N177: NorthEast | O177: VISA | P177: Male | Q177: 4 | R177: 105.74
K178: 2009-04-29 | L178: Sat | M178: Morning | N178: MidWest | O178: Mastercard | P178: Male | Q178: 3 | R178: 138.32
K179: 2009-04-29 | L179: Sat | M179: Afternoon | N179: West | O179: Mastercard | P179: Male | Q179: 2 | R179: 61.71
K180: 2009-04-29 | L180: Sat | M180: Evening | N180: South | O180: VISA | P180: Male | Q180: 3 | R180: 120.11
K181: 2009-04-29 | L181: Sat | M181: Evening | N181: MidWest | O181: Mastercard | P181: Male | Q181: 1 | R181: 72.8
K182: 2009-04-29 | L182: Sat | M182: Evening | N182: MidWest | O182: Mastercard | P182: Female | Q182: 2 | R182: 134.86
K183: 2009-04-29 | L183: Sat | M183: Evening | N183: West | O183: VISA | P183: Male | Q183: 4 | R183: 89.75
K184: 2009-04-30 | L184: Sun | M184: Morning | N184: West | O184: Mastercard | P184: Female | Q184: 4 | R184: 220.04
K185: 2009-04-30 | L185: Sun | M185: Afternoon | N185: South | O185: Mastercard | P185: Female | Q185: 3 | R185: 168.39
K186: 2009-04-30 | L186: Sun | M186: Evening | N186: NorthEast | O186: Mastercard | P186: Male | Q186: 6 | R186: 277.8
K187: 2009-05-01 | L187: Mon | M187: Afternoon | N187: NorthEast | O187: VISA | P187: Female | Q187: 3 | R187: 130.49
K188: 2009-05-02 | L188: Tues | M188: Evening | N188: NorthEast | O188: Cash | P188: Male | Q188: 2 | R188: 94.39
K189: 2009-05-03 | L189: Wed | M189: Afternoon | N189: West | O189: Mastercard | P189: Female | Q189: 4 | R189: 120.48
K190: 2009-05-03 | L190: Wed | M190: Afternoon | N190: South | O190: VISA | P190: Female | Q190: 6 | R190: 304.95
K191: 2009-05-04 | L191: Thurs | M191: Evening | N191: West | O191: VISA | P191: Female | Q191: 9 | R191: 389.79
K192: 2009-05-05 | L192: Fri | M192: Morning | N192: NorthEast | O192: VISA | P192: Female | Q192: 4 | R192: 161.08
K193: 2009-05-05 | L193: Fri | M193: Afternoon | N193: NorthEast | O193: VISA | P193: Female | Q193: 2 | R193: 69.61
K194: 2009-05-06 | L194: Sat | M194: Morning | N194: West | O194: VISA | P194: Female | Q194: 3 | R194: 59.99
K195: 2009-05-06 | L195: Sat | M195: Morning | N195: MidWest | O195: Mastercard | P195: Male | Q195: 2 | R195: 120.78
K196: 2009-05-06 | L196: Sat | M196: Morning | N196: West | O196: Cash | P196: Female | Q196: 3 | R196: 82.3
K197: 2009-05-06 | L197: Sat | M197: Morning | N197: South | O197: VISA | P197: Female | Q197: 2 | R197: 91.88
K198: 2009-05-06 | L198: Sat | M198: Morning | N198: West | O198: Mastercard | P198: Male | Q198: 1 | R198: 87.1
K199: 2009-05-06 | L199: Sat | M199: Afternoon | N199: MidWest | O199: Mastercard | P199: Female | Q199: 2 | R199: 70.1
K200: 2009-05-06 | L200: Sat | M200: Afternoon | N200: NorthEast | O200: Cash | P200: Female | Q200: 2 | R200: 106.67
K201: 2009-05-06 | L201: Sat | M201: Evening | N201: NorthEast | O201: Mastercard | P201: Male | Q201: 1 | R201: 34.31
... 202 more rows

Sheet Goal Seek (hidden)
A2: © S. Christian Albright, 2011, All Rights Reserved
K3: Unit cost | L3: 50
K4: Unit price | L4: 60
K6: Demand curve (linear)
K7: Intercept | L7: 2000
K8: Slope | L8: -20
K10: Demand | L10: =L7+L8*L4 -> 800
K12: Profit | L12: =(L4-L3)*L10 -> 8000

Sheet Solver (hidden)
A2: © S. Christian Albright, 2011, All Rights Reserved
K3: Unit shipping costs
M4: To
M5: Region 1 | N5: Region 2 | O5: Region 3 | P5: Region 4
K6: From | L6: Plant 1 | M6: 131 | N6: 218 | O6: 266 | P6: 120
L7: Plant 2 | M7: 250 | N7: 116 | O7: 263 | P7: 278
L8: Plant 3 | M8: 178 | N8: 132 | O8: 122 | P8: 180
K10: Shipping plan, and constraints on supply and demand
M11: To
M12: Region 1 | N12: Region 2 | O12: Region 3 | P12: Region 4 | Q12: Total shipped | S12: Capacity
K13: From | L13: Plant 1 | M13: 150 | N13: 0 | O13: 0 | P13: 300 | Q13: =SUM(M13:P13) -> 450 | R13: <= | S13: 450
L14: Plant 2 | M14: 100 | N14: 200 | O14: 0 | P14: 0 | Q14: =SUM(M14:P14) -> 300 | R14: <= | S14: 600
L15: Plant 3 | M15: 200 | N15: 0 | O15: 300 | P15: 0 | Q15: =SUM(M15:P15) -> 500 | R15: <= | S15: 500
L16: Total received | M16: =SUM(M13:M15) -> 450 | N16: =SUM(N13:N15) -> 200 | O16: =SUM(O13:O15) -> 300 | P16: =SUM(P13:P15) -> 300
M17: >= | N17: >= | O17: >= | P17: >=
L18: Demand | M18: 450 | N18: 200 | O18: 300 | P18: 300
K20: Objective to minimize
K21: Total cost | L21: =SUMPRODUCT(M6:P8,M13:P15) -> 176050

Sheet Importing External Data (hidden)
A2: © S. Christian Albright, 2011, All Rights Reserved

Sheet From Built-in Connections (hidden)
A2: © S. Christian Albright, 2011, All Rights Reserved
K30: --> -->
K31: Currency Rates Provided by MSN Money
K32: Click here to visit MSN Money
K34: Name | L34: In US$ | M34: Per US$
K35: Argentine Peso to US Dollar | L35: 0.25387 | M35: 3.939
K36: Australian Dollar to US Dollar | L36: 0.89174 | M36: 1.121
K37: Bahraini Dinar to US Dollar | L37: 2.6503 | M37: 0.377
K38: Bolivian Boliviano to US Dollar | L38: 0.14225 | M38: 7.03
K39: Brazilian Real to US Dollar | L39: 0.56529 | M39: 1.769
K40: British Pound to US Dollar | L40: 1.5598 | M40: 0.641
K41: Canadian Dollar to US Dollar | L41: 0.9608 | M41: 1.041
K42: Chile Peso to US Dollar | L42: 0.00198 | M42: 505.2
K43: Chinese Yuan to US Dollar | L43: 0.14715 | M43: 6.796
K44: Colombian Peso to US Dollar | L44: 0.00055 | M44: 1828
K45: Czech Koruna to US Dollar | L45: 0.05151 | M45: 19.413
K46: Danish Krone to US Dollar | L46: 0.17212 | M46: 5.81
K47: Euro to US Dollar | L47: 1.2822 | M47: 0.78
K48: Egyptian Pound* to US Dollar | L48: 0.17549 | M48: 5.699
K49: Hong Kong Dollar to US Dollar | L49: 0.12869 | M49: 7.771
K50: Hungarian Forint to US Dollar | L50: 0.0046 | M50: 217.4
K51: Indian Rupee to US Dollar | L51: 0.02156 | M51: 46.38
K52: Indonesia Rupiah to US Dollar | L52: 0.00011 | M52: 8970
K53: Japanese Yen to US Dollar | L53: 0.01171 | M53: 85.38
K54: Jordanian Dinar to US Dollar | L54: 1.4096 | M54: 0.709
K55: Kenyan Shilling to US Dollar | L55: 0.01234 | M55: 81.05
K56: South Korean Won to US Dollar | L56: 0.00085 | M56: 1172
K57: Kuwaiti Dinar to US Dollar | L57: 3.4708 | M57: 0.288
K58: Morocco Dirham to US Dollar | L58: 0.11569 | M58: 8.644
K59: Malaysian Ringgit to US Dollar | L59: 0.31949 | M59: 3.13
K60: Mexican Peso to US Dollar | L60: 0.07853 | M60: 12.734
K61: Norwegian Krone to US Dollar | L61: 0.16165 | M61: 6.186
K62: Omani Rial to US Dollar | L62: 2.5967 | M62: 0.385
K63: Peruvian New Sol to US Dollar | L63: 0.35613 | M63: 2.808
K64: Philippine Peso to US Dollar | L64: 0.02221 | M64: 45.02
K65: Pakistani Rupee to US Dollar | L65: 0.0116 | M65: 86.21
K66: Saudi Riyal to US Dollar | L66: 0.2666 | M66: 3.751
K67: Singapore Dollar to US Dollar | L67: 0.73779 | M67: 1.355
K68: South African Rand to US Dollar | L68: 0.13713 | M68: 7.292
K69: Swedish Krona to US Dollar | L69: 0.13536 | M69: 7.388
K70: Swiss Franc to US Dollar | L70: 0.96899 | M70: 1.032
K71: Taiwan Dollar to US Dollar | L71: 0.03132 | M71: 31.926
K72: Thai Baht to US Dollar | L72: 0.03167 | M72: 31.58
K73: Tunisian Dinar to US Dollar | L73: 0.67833 | M73: 1.474
K74: Emirati Dirham to US Dollar | L74: 0.27221 | M74: 3.674
K75: United States Dollar | L75: 1 | M75: 1
K76: Venezuelan Bolivar to US Dollar | L76: 0.23283 | M76: 4.295
K78: Data providers
K79: Copyright © 2010 Thomson Reuters. Click for Restrictions.
K80: Quotes supplied by Interactive Data Real-Time Services.
K82: MSN Money | M82: Microsoft Office Update
K83: Discover Investor's tools, columns, and more! | M83: Get the latest from Microsoft Office
K84: MSN privacy
K85: Legal
K86: Advertise
K87: RSS
K89: Feedback
K90: About our ads
K91: Site map
K93: © 2010 Microsoft

Sheet From the Web (hidden)
A2: © S. Christian Albright, 2011, All Rights Reserved
K56: Player | L56: Salary | M56: Position
K57: Abreu, Bobby | L57: 5000000 | M57: Outfielder
K58: Adenhart, Nick | L58: 400000 | M58: Pitcher
K59: Arredondo, Jose | L59: 410000 | M59: Pitcher
K60: Aybar, Erick | L60: 460000 | M60: Shortstop
K61: Bulger, Jason | L61: 403000 | M61: Pitcher
K62: Escobar, Kelvim | L62: 10000000 | M62: Pitcher
K63: Figgins, Chone | L63: 5775000 | M63: Third Baseman
K64: Fuentes, Brian | L64: 8500000 | M64: Pitcher
K65: Guerrero, Vladimir | L65: 15000000 | M65: Outfielder
K66: Hunter, Torii | L66: 18000000 | M66: Outfielder
K67: Izturis, Maicer | L67: 1600000 | M67: Shortstop
K68: Jepsen, Kevin | L68: 401000 | M68: Pitcher
K69: Kendrick, Howie | L69: 465000 | M69: Second Baseman
K70: Lackey, John | L70: 10000000 | M70: Pitcher
K71: Loux, Shane | L71: 405000 | M71: Pitcher
K72: Mathis, Jeff | L72: 450000 | M72: Catcher
K73: Matthews, Gary | L73: 10400000 | M73: Outfielder
K74: Morales, Kendry | L74: 1100000 | M74: First Baseman
K75: Moseley, Dustin | L75: 435000 | M75: Pitcher
K76: Napoli, Mike | L76: 2000000 | M76: Catcher
K77: Oliver, Darren | L77: 3665000 | M77: Pitcher
K78: Quinlan, Robb | L78: 1100000 | M78: First Baseman
K79: Rivera, Juan | L79: 3250000 | M79: Outfielder
K80: Santana, Ervin | L80: 3800000 | M80: Pitcher
K81: Saunders, Joe | L81: 475000 | M81: Pitcher
K82: Shields, Scot | L82: 5000000 | M82: Pitcher
K83: Speier, Justin | L83: 4750000 | M83: Pitcher
K84: Weaver, Jered | L84: 465000 | M84: Pitcher

Sheet From a Text File (hidden)
A2: © S. Christian Albright, 2011, All Rights Reserved
B36: Faculty | C36: Support Staff | D36: Supply Budget
B37: Credit Hours | C37: Research Pubs
B38: Business
B39: 150 | C39: 70 | D39: 5
B40: 15 | C40: 225
B41: Education
B42: 60 | C42: 20 | D42: 3
B43: 5.4 | C43: 70
B44: Arts & Sciences
B45: 800 | C45: 140 | D45: 20
B46: 56 | C46: 1300
B47: HPER
B48: 30 | C48: 15 | D48: 1
B49: 2.1 | C49: 40

Sheet From a Database (hidden)
A2: © S. Christian Albright, 2011, All Rights Reserved

Sheet Making Professional Apps (hidden)
A2: © S. Christian Albright, 2011, All Rights Reserved

Sheet Conditional Formatting (hidden)
A2: © S. Christian Albright, 2011, All Rights Reserved
K18: Exam score | M18: Cutoffs for extremes
K19: 62 | M19: High | N19: 94
K20: 88 | M20: Low | N20: 66
K21: 77
K22: 62
K23: 94
K24: 68
K25: 73
K26: 61
K27: 99
K28: 94
K29: 88
K30: 82
K31: 87
K32: 65
K33: 82
K34: 70
K35: 94
K36: 80
K37: 96
K41: Person | L41: Birthdate | M41: Gender | N41: State | O41: Children | P41: Salary
K42: 1 | L42: 1959-08-05 | M42: Male | N42: Indiana | O42: 1 | P42: 65400
K43: 2 | L43: 1977-10-15 | M43: Female | N43: Michigan | O43: 2 | P43: 62000
K44: 3 | L44: 1981-01-03 | M44: Male | N44: Illinois | O44: 0 | P44: 63200
K45: 4 | L45: 1949-05-05 | M45: Male | N45: Wisconsin | O45: 2 | P45: 52000
K46: 5 | L46: 1987-04-04 | M46: Female | N46: Michigan | O46: 3 | P46: 81400
K47: 6 | L47: 1949-06-30 | M47: Female | N47: Wisconsin | O47: 3 | P47: 46300
K48: 7 | L48: 1949-05-22 | M48: Female | N48: Ohio | O48: 2 | P48: 49600
K49: 8 | L49: 1952-10-30 | M49: Male | N49: Ohio | O49: 1 | P49: 45900
K50: 9 | L50: 1957-01-17 | M50: Male | N50: Illinois | O50: 3 | P50: 47700
K51: 10 | L51: 1985-09-18 | M51: Female | N51: Indiana | O51: 1 | P51: 59900
K52: 11 | L52: 1953-07-19 | M52: Male | N52: Illinois | O52: 1 | P52: 48100
K53: 12 | L53: 1946-12-10 | M53: Female | N53: Michigan | O53: 0 | P53: 58100
K54: 13 | L54: 1986-03-29 | M54: Female | N54: Wisconsin | O54: 2 | P54: 56000
K55: 14 | L55: 1952-12-12 | M55: Female | N55: Illinois | O55: 2 | P55: 53400
K56: 15 | L56: 1977-06-12 | M56: Female | N56: Illinois | O56: 2 | P56: 39000
K57: 16 | L57: 1989-11-19 | M57: Male | N57: Ohio | O57: 1 | P57: 61500
K58: 17 | L58: 1957-09-06 | M58: Male | N58: Ohio | O58: 0 | P58: 37700
K59: 18 | L59: 1970-09-30 | M59: Female | N59: Michigan | O59: 2 | P59: 36700
K60: 19 | L60: 1973-10-24 | M60: Male | N60: Illinois | O60: 2 | P60: 45200
B61: Scroll down for more below… | K61: 20 | L61: 1978-06-08 | M61: Male | N61: Ohio | O61: 0 | P61: 59000
K62: 21 | L62: 1990-08-27 | M62: Female | N62: Ohio | O62: 2 | P62: 54300
K63: 22 | L63: 1947-02-09 | M63: Male | N63: Illinois | O63: 1 | P63: 62100
K64: 23 | L64: 1989-04-01 | M64: Male | N64: Wisconsin | O64: 0 | P64: 78000
K65: 24 | L65: 1970-03-12 | M65: Male | N65: Ohio | O65: 0 | P65: 43200
K66: 25 | L66: 1970-03-28 | M66: Male | N66: Indiana | O66: 1 | P66: 44500
K67: 26 | L67: 1963-05-06 | M67: Male | N67: Michigan | O67: 1 | P67: 43300
K68: 27 | L68: 1959-05-07 | M68: Male | N68: Ohio | O68: 3 | P68: 45400
K69: 28 | L69: 1987-03-06 | M69: Male | N69: Indiana | O69: 2 | P69: 53900
K70: 29 | L70: 1958-02-09 | M70: Male | N70: Michigan | O70: 1 | P70: 44100
K71: 30 | L71: 1955-08-04 | M71: Female | N71: Indiana | O71: 2 | P71: 31000
K74: Month | L74: Region1 | M74: Region2 | N74: Region3 | O74: Region4 | P74: Region5 | Q74: Region6
K75: 2009-01-01 | L75: =RANDBETWEEN(1000,5000) -> 1197 | M75: 1779 | N75: 2877 | O75: 2184 | P75: 1539 | Q75: 4315
K76: 2009-02-01 | L76: 4683 | M76: 1657 | N76: 3843 | O76: 1667 | P76: 3743 | Q76: 2200
K77: 2009-03-01 | L77: 4719 | M77: 1626 | N77: 2011 | O77: 2135 | P77: 2026 | Q77: 3636
K78: 2009-04-01 | L78: 2123 | M78: 1795 | N78: 1192 | O78: 3292 | P78: 4376 | Q78: 4865
K79: 2009-05-01 | L79: 4189 | M79: 2409 | N79: 2211 | O79: 3019 | P79: 4115 | Q79: 4940
K80: 2009-06-01 | L80: 2166 | M80: 3862 | N80: 3405 | O80: 4122 | P80: 4571 | Q80: 4372
K81: 2009-07-01 | L81: 3289 | M81: 3328 | N81: 1751 | O81: 3780 | P81: 2198 | Q81: 4123
K82: 2009-08-01 | L82: 4574 | M82: 1116 | N82: 2345 | O82: 2828 | P82: 1829 | Q82: 4828
K83: 2009-09-01 | L83: 1622 | M83: 3251 | N83: 3500 | O83: 1221 | P83: 3036 | Q83: 4178
K84: 2009-10-01 | L84: 2000 | M84: 2149 | N84: 2152 | O84: 2696 | P84: 1006 | Q84: 4178
K85: 2009-11-01 | L85: 1729 | M85: 3071 | N85: 3645 | O85: 3721 | P85: 3545 | Q85: 1603
K86: 2009-12-01 | L86: 3409 | M86: 4145 | N86: 4354 | O86: 4612 | P86: 1340 | Q86: 2882

Sheet Data Validation (hidden)
A2: © S. Christian Albright, 2011, All Rights Reserved
M24: any integer between 1 and 10
M25: any decimal number between 1 and 10
M26: any positive integer
M27: any negative decimal number
M28: any integer between the two values below (which could change)
M29: 30 | N29: 40
K43: Amount financed | L43: 25000
K44: Interest rate | L44: 0.0625
K45: Term
K46: Monthy payment | L46: =PMT(L44/12,L45,-L43) -> 
K62: Date of loan

Sheet Protecting (hidden)
A2: © S. Christian Albright, 2011, All Rights Reserved

Sheet Adding Form Controls (hidden)
AA1: 2
A2: © S. Christian Albright, 2011, All Rights Reserved | AA2: TRUE
O3: Prices
O4: Flat-screen TV | P4: 2500
O5: Blu-ray disc player | P5: 450
O6: Laptop computer | P6: 650
O8: Preferred discount | P8: 0.05
K12: Invoice
K13: Product | L13: =INDEX(O4:O6,AA1) -> Blu-ray disc player
K14: Price | L14: =INDEX(P4:P6,AA1) -> 450
K15: Discount | L15: =IF(AA2=TRUE,P8*L14,0) -> 22.5
K16: Net price | L16: =L14-L15 -> 427.5

Sheet Recording Macros (hidden)
A2: © S. Christian Albright, 2011, All Rights Reserved
K72: 2.0001 | M72: 50.0001
K73: 30.9999 | M73: 0.9999
K74: -3.0002

Sheet Template (hidden)
F1: Save this file under another name, such as My Excel Tutorial.xlsm, and work with the copy.
A2: © S. Christian Albright, 2011, All Rights Reserved
